Workbook

Sheet Instructions
A12: Links:

Sheet Indicator Registry
A1: Indicator Registry - highlighting those used for HNO and HRP response planning
A2: Global Clusters | B2: HNO and HRP | C2: Code | D2: Sub-domain | E2: Title | F2: Description | G2: Unit of Measurement | H2: Unit Description | I2: Denominator | J2: Numerator | K2: Disaggregation | L2: Key indicator | M2: Types | N2: Response Monitoring | O2: Standards | P2: Threshold | Q2: Guidance on phases | R2: General guidance | S2: Guidance for pre-crisis/baseline | T2: Comments | U2: Data Sources | V2: Sector cross-tagging
A3: Nutrition | B3: Core - Outcome | C3: N-001 | D3: N1 Prevention and Management of Acute Malnutrition | E3: Global acute malnutrition (GAM) | F3: prevalence (%) of global acute malnutrition in children 6 to 59 months of age based on presence of bilateral pitting oedema and / or weight-for-height z-score less than -2 standard deviations of the median of the standard population (WHO 2006) | G3: Individual | H3: Percentage | I3: Total number of children aged 6-59 months surveyed | J3: Number of children aged 6-59 months that meet the criteria for global acute malnutrition | K3: Geographical area, age, sex | L3: Yes | M3: Baseline, Outcome | N3: Yes | P3: WHO TRS 854. Severity classification: 5,10, 15% | Q3: preparatory; Phase III and IV | R3: Should be based on a methodologically solid anthropometric nutrition survey finding and include Confidence Intervals | T3: Note that WFH and MUAC do not measure the same things and are not comparable. Data on the global malnutrition rate should be compared by sex in order to identify any specific discrimination girls or boys might face in accessing nutrition. In case there is an important difference between the percentage of girls and the percentage of boys suffering from malnutrition, the programme should address these gaps by undertaking a gender analysis of the specific challenges the disadvantaged group is facing in equally accessing nutrition, including an analysis of the socio cultural habits and beliefs that might differently impact on girls' and boys' nutritional well being. | U3: Population-based surveys with representative sampling methods (MICS, DHS, SMART) | V3: F1 Food Assistance, H2 Child health, H4.2 Maternal and newborn care, W1 Hygiene Promotion, W2 Water Supply, W3 Excreta Disposal
A4: Nutrition | B4: Core - Outcome | C4: N-005 | D4: N1 Prevention and Management of Acute Malnutrition | E4: Moderate acute malnutrition (MAM) | F4: prevalence (%) of moderate acute malnutrition in children 6 to 59 months of age based on presence of weight-for-height z-score less than -2 and equal or greater than -3 standard deviations of the median of the standard population (WHO 2006) | G4: Individual | H4: Percentage | I4: Total number of children aged 6-59 months surveyed | J4: Number of children aged 6-59 months that meet the criteria for moderate acute malnutrition | K4: Geographical area, age, sex | L4: Yes | M4: Baseline, Outcome | N4: Yes | P4: No standard WHO thresholds; this indicator cut-off should be interpreted in consideration of other indicators including morbidity, mortality and proportion of GAM | Q4: preparatory; Phase III and IV | R4: Should be based on a methodologically solid anthropometric nutrition survey finding and include Confidence Intervals | S4: Prevalence easy to derive by subtracting SAM from GAM | T4: Note that WFH and MUAC do not measure the same things and are not comparable. Data on the moderate acute malnutrition prevalence should be compared by sex in order to identify any specific discrimination girls or boys might face in accessing nutrition. In case there is an important difference between the percentage of girls and the percentage of boys suffering from malnutrition, the programme should address these gaps by undertaking a gender analysis of the specific challenges the disadvantaged group is facing in equally accessing nutrition, including an analysis of the socio cultural habits and beliefs that might differently impact on girls' and boys' nutritional well being. | U4: Population-based surveys with representative sampling methods (MICS, DHS, SMART) | V4: F1 Food Assistance, H2 Child health, H4.2 Maternal and newborn care, W1 Hygiene Promotion, W2 Water Supply, W3 Excreta Disposal
A5: Nutrition | B5: Core - Outcome | C5: N-003 | D5: N1 Prevention and Management of Acute Malnutrition | E5: Severe acute malnutrition (SAM) | F5: prevalence (%) of severe acute malnutrition in children 6 to 59 months of age based on presence of bilateral pitting oedema and / or weight-for-height z-score less than -3 standard deviations of the median of the standard population (WHO 2006) | G5: Individual | H5: Percentage | I5: Total number of children aged 6-59 months surveyed | J5: Number of children aged 6-59 months that meet the criteria for severe acute malnutrition | K5: Geographical area, age, sex | L5: Yes | M5: Baseline, Outcome | N5: Yes | P5: No standard WHO thresholds; this indicator cut-off should be interpreted in consideration of other indicators including morbidity, mortality and proportion of GAM; Reference: WHO child growth standards and the identification of severe acute malnutrition in infants and children. A Joint Statement by the World Health Organization and the United Nations Children's Fund, 2009. | Q5: preparatory; Phase III and IV | R5: Should be based on a methodologically solid anthropometric nutrition survey finding and include Confidence Intervals | T5: Note that WFH and MUAC do not measure the same things and are not comparable. Data on the severe acute malnutrition prevalence should be compared by sex in order to identify any specific discrimination girls or boys might face in accessing nutrition. In case there is an important difference between the percentage of girls and the percentage of boys suffering from malnutrition, the programme should address these gaps by undertaking a gender analysis of the specific challenges the disadvantaged group is facing in equally accessing nutrition, including an analysis of the socio cultural habits and beliefs that might differently impact on girls' and boys' nutritional well being. | U5: Population-based surveys with representative sampling methods (MICS, DHS, SMART) | V5: F1 Food Assistance, H1 General clinical services & essential trauma care, H2 Child health, H4.2 Maternal and newborn care, W1 Hygiene Promotion, W2 Water Supply, W3 Excreta Disposal
A6: Nutrition | B6: Core - Outcome | C6: N-008 | D6: N1 Prevention and Management of Acute Malnutrition | E6: Acute malnutrition based on MUAC and oedema | F6: prevalence (%) of children 6-59 months with MUAC less than 125 mm and/or having bilateral pitting oedema | G6: Individual | H6: Percentage | I6: Total number of children aged 6-59 months surveyed | J6: Number of children aged 6-59 months that meet the criteria for wasting based on MUAC | K6: Geographical area, age, sex | L6: Yes | M6: Baseline, Outcome | N6: Yes | P6: WHO child growth standards and the identification of severe acute malnutrition in infants and children. A Joint Statement by the World Health Organization and the United Nations Children's Fund, 2009. | Q6: Phase I,II; added to surveys Phase III,IV | R6: When possible to use representative surveys, alternatively - rapid nutrition assessment with smaller number of children can give an idea of the situation - but these findings from a rapid nutrition assessment - with small numbers of children need to be treated with caution and should NOT be presented as prevalence but as number of children | T6: It is a good practice to disaggregate oedema cases, however there is a concern of accuracy and precision | U6: Population surveys with representative sampling methods (MICS, DHS, SMART) & rapid nutrition assessment | V6: F1 Food Assistance, F3 Food Access, F5 Market Access, F7 Utilization, H2 Child health, H4.2 Maternal and newborn care, W1 Hygiene Promotion, W2 Water Supply, W3 Excreta Disposal, W4 Vector Control
A7: Nutrition | B7: Core - Outcome | C7: N-010 | D7: N1 Prevention and Management of Acute Malnutrition | E7: Moderate acute malnutrition based on MUAC | F7: prevalence (%) children 6-59 months with MUAC less than 125 mm but equal or more than 115 mm | G7: Individual | H7: Percentage | I7: Total number of children aged 6-59 months surveyed | J7: Number of children aged 6-59 months that meet the criteria for moderate wasting based on MUAC | K7: Geographical area, age, sex | L7: Yes | M7: Baseline, Outcome | N7: Yes | Q7: Phase I,II; added to surveys Phase III,IV | R7: When possible to use representative survey, alternatively - rapid nutrition assessment with smaller number of children can give you a idea of the situation - but these findings from a rapid nutrition assessment - with small numbers of children need to be treated with caution and should NOT be presented as prevalence but as number of children | S7: Prevalence easy to derive by subtracting Proportion of severe wasting based on low MUAC from Proportion of wasting based on low MUAC | U7: Population-based surveys with representative sampling methods (MICS, DHS, SMART) | V7: F1 Food Assistance, F3 Food Access, F5 Market Access, F7 Utilization, H2 Child health, H4.2 Maternal and newborn care, W1 Hygiene Promotion, W2 Water Supply, W3 Excreta Disposal, W4 Vector Control
A8: Nutrition | B8: Core - Outcome | C8: N-009 | D8: N1 Prevention and Management of Acute Malnutrition | E8: Severe acute malnutrition based on MUAC and oedema | F8: prevalence (%) children 6-59 months with MUAC less than 115 mm and/or having bilateral pitting oedema | G8: Individual | H8: Percentage | I8: Total number of children aged 6-59 months surveyed | J8: Number of children aged 6-59 months that meet the criteria for severe wasting based on MUAC | K8: Geographical area, age, sex | L8: Yes | M8: Baseline, Outcome | N8: Yes | P8: WHO child growth standards and the identification of severe acute malnutrition in infants and children. A Joint Statement by the World Health Organization and the United Nations Children's Fund, 2009. | Q8: Phase I,II; added to surveys Phase III,IV | R8: When possible to use representative surveys, alternatively - rapid nutrition assessment with smaller number of children can give an idea of the situation - but these findings from a rapid nutrition assessment - with small numbers of children need to be treated with caution and should NOT be presented as prevalence but as number of children | T8: It is a good practice to disaggregate oedema cases, however there is a concern of accuracy and precision. | U8: Population surveys with representative sampling methods (MICS, DHS, SMART) & rapid nutrition assessment | V8: F1 Food Assistance, F3 Food Access, F5 Market Access, F7 Utilization, H1 General clinical services & essential trauma care, H2 Child health, H4.2 Maternal and newborn care, W1 Hygiene Promotion, W2 Water Supply, W3 Excreta Disposal, W4 Vector Control
A9: Nutrition | B9: Core - Outcome | C9: N-011 | D9: N1 Prevention and Management of Acute Malnutrition | E9: Acute malnutrition in Pregnant and Lactating Women | F9: prevalence (%) PLW with MUAC less than 210-230 mm (Note: Countries use a range of different cut-offs depending on resources) | G9: Individual | H9: Percentage | I9: Total number of Pregnant and Lactating Women with infants below age of 0 to 5 months surveyed | J9: Number of Pregnant and Lactating Women with infants 0-5 months that meet the criteria for acute malnutrition based on MUAC | K9: Geographical area | L9: Yes | M9: Baseline, Outcome | N9: Yes | Q9: All phases | R9: There are NO agreed international Cut off points for MUAC for PLW so National MUAC cut off points may vary, If available/possible, use representative survey, if not - rapid nutrition assessment with smaller number of PLW can give you some idea of the situation | T9: PLW may be a problematic to define and identify, SMART surveys provide data for women with children, so definition of lactating should be mothers with infants 0-5 months; caution on excluding women in first pregnancy | U9: Population-based surveys with representative sampling methods (MICS, DHS, SMART) or rapid nutrition assessment | V9: F1 Food Assistance, F3 Food Access, F4 Income Access, F5 Market Access, F6 Availability, F7 Utilization, H1 General clinical services & essential trauma care, H2 Child health, H4.2 Maternal and newborn care, W1 Hygiene Promotion, W2 Water Supply, W4 Vector Control
A10: Nutrition | B10: Core - Outcome/Key Contributing Factor | C10: N-007 | D10: N1 Prevention and Management of Acute Malnutrition | E10: Childhood stunting | F10: prevalence (%) of stunting in children 0 to 59 months of age based on height-for-age z-score less than -2 standard deviations of the median of the standard population (WHO 2006) | G10: Individual | H10: Percentage | I10: Total number of children 0 to 59 months of age surveyed | J10: Number of children 0 to 59 months of age that meet the criteria for stunting | K10: Geographical area, age, sex | L10: Yes | M10: Baseline, Outcome | N10: Yes | P10: WHO TRS 854. Severity classification: 20,30,40 % | Q10: preparatory; Phase III and IV | R10: Should be based on a methodologically solid anthropometric nutrition survey finding and include Confidence Intervals | S10: Aim should be to assess stunting in the entire age group 0-59 months | T10: Disaggregation by sex and age group should be aimed for and results should be analysed. Note: if surveys being undertaken include 0-59 then use this age group - if not - and the survey is including 6-59 then we may use 6-59. Ideally the Proportion of should be adjusted for 0-59 months) | U10: Population-based surveys with representative sampling methods (MICS, DHS, SMART) | V10: F1 Food Assistance, F2 Livelihood Assistance, F3 Food Access, F4 Income Access, H2 Child health, H4.2 Maternal and newborn care, W1 Hygiene Promotion, W2 Water Supply, W3 Excreta Disposal, W4 Vector Control
A11: Nutrition | B11: Core - Key Contributing Factor | C11: N-030 | D11: N2 Infant and Young Child Feeding | E11: Exclusive breastfeeding under 6 months | F11: Proportion of infants 0-5 months of age who are fed exclusively with breast milk | G11: Individual | H11: Percentage | I11: Total number of infants 0 to 5 months of age surveyed | J11: Infants 0 to 5 months of age who received only breast milk during the previous day | K11: Geographical area, sex, age: 0-1, 2-3, 4-5 months if available | L11: Yes | M11: Baseline, Outcome | N11: Yes | O11: Food Security and Nutrition 4.2.1 | P11: No standard; < 80Proportion of is generally a priority. Discuss high, medium and low designations as a group | Q11: For Phases III and IV, core WHO indicator should be measured. In Phases 1 and 11, it is not possible to accurately assess the exclusive breastfeeding rate in the population. Baseline information and N-40 (not breastfed) will be key information in Phases I and II. | R11: WHO IYCF core indicator. | S11: For preparatory phase, core WHO indicator should be measured | T11: Attention should be paid on the potential difference in breastfeeding male and female infants. If difference exists, this should inform the nutritional education messages. | U11: Preparatory, Phase III and IV: representative IYCF survey. Phase I and II: use key informant interviews and opportunistic sampling to give an ALERT indication | V11: H2 Child health, H4.2 Maternal and newborn care, (R) Early Recovery
A12: Nutrition | B12: Core - Key Contributing Factor | C12: N-040 | D12: N2 Infant and Young Child Feeding | E12: Distribution of infant formula, dried or liquid milk to the affected population | F12: Confirmed distribution of infant formula, dried or liquid milk to the affected population | G12: Individual | H12: Yes/No | I12: N/A | J12: N/A | K12: Geographical area | L12: Yes | M12: Baseline, Outcome | N12: Yes | O12: Food Security and Nutrition 4.2.1 | P12: zero tolerance | Q12: Phases 1,11, 111 and IV. | R12: This is an alert to problems. Any general distribution of these products to the affected population is a concern as there is a risk of spill over to infants and young children. | U12: Key informant interviews (include logistics and any agencies involved in distribution, as well as health and nutrition staff and caregivers). Distribution reports. Observations. | V12: H2 Child health, H4.2 Maternal and newborn care
A13: Nutrition | B13: Core - Key Contributing Factor | C13: N-041 | D13: N2 Infant and Young Child Feeding | E13: Inappropriate distribution of infant formula, dried or liquid milk to children 0-<2 years | F13: Confirmed distribution of infant formula, dried or liquid milk to children 0-< 2 years | G13: Community | H13: Yes/No | I13: N/A | J13: N/A | K13: Geographical area | L13: Yes | M13: Baseline, Outcome | N13: Yes | O13: Food Security and Nutrition 4.2.1 | P13: zero tolerance | Q13: Phases 1,11, 111 and IV. | R13: This is an alert to problems. Inappropriate distribution is where distribution is not in accordance with the Operational Guidance on IFE in meeting criteria for assessment of need, skilled support available, guaranteed continuity of supplies, individual follow up, availability of storage and preparation facilities, appropriate labelling, and monitoring for spill over to breastfed infants. | U13: Key informant interviews (include logistics and any agencies involved in distribution, as well as health and nutrition staff and caregivers). Distribution reports. Observations. | V13: H2 Child health, H4.2 Maternal and newborn care
A14: Nutrition | B14: Core - Key Contributing Factor | C14: N-035 | D14: N2 Infant and Young Child Feeding | E14: Minimum dietary diversity | F14: Proportion of children 6-23 months of age who receive foods from 4 or more food groups | G14: Individual | H14: Percentage | I14: Total number of children 6-23 months surveyed | J14: Number of children 6-23 months who receive food from 4 or more food groups | K14: Geographical area, sex | L14: No | M14: Baseline, Outcome | N14: Yes | O14: Food Security and Nutrition 4.2.2 | P14: No standard; < 80Proportion of is generally a priority. Discuss high, medium and low designations as a group | Q14: preparatory; Phase III and IV | R14: This indicator is adapted from the WHO IYCF core indicator for children 6-23 months. | T14: Data should be compared by sex in order to identify any specific limitation girls or boys might face in accessing dietary diversity. In case there is an important difference, the programme should address these gaps by undertaking a gender analysis of the specific challenges the disadvantaged group is facing, including an analysis of the socio cultural habits and beliefs (i.e. food taboos) that might differently impact on girls' and boys' dietary diversity. | U14: representative IYCF survey | V14: F3 Food Access, F4 Income Access, F5 Market Access, F6 Availability, F7 Utilization, H2 Child health
A15: Nutrition | B15: Core - Key Contributing Factor | C15: N-037 | D15: N2 Infant and Young Child Feeding | E15: Minimum acceptable diet | F15: Proportion of children 6-23 months of age who receive a minimum acceptable diet (apart from breast milk) | G15: Individual | H15: Percentage | I15: Total number of children 6-23 months surveyed | J15: Number of children 6-23 months who receive a minimum acceptable diet | K15: Geographical area, sex | L15: Yes | M15: Baseline, Outcome | N15: Yes | O15: Food Security and Nutrition 4.2.2 | P15: No standard; < 80Proportion of is generally a priority. Discuss high, medium and low designations as a group | Q15: preparatory; Phase III and IV | R15: WHO IYCF core indicator | U15: representative IYCF survey | V15: F3 Food Access, F4 Income Access, F5 Market Access, F6 Availability, F7 Utilization, H2 Child health
A16: Nutrition | B16: Core - Key Contributing Factor | C16: N-024 | D16: N3 Prevention and Control of Micronutrients Deficiencies | E16: Prevalence of anaemia | F16: Proportion of children below five years of age with Hb concentration of <11 g/dL | G16: Individual | H16: Percentage | I16: Total number of children below five years of age surveyed | J16: Number of children below five years of age with Hb concentration of <11 g/dL | K16: Geographical area | L16: No | M16: Baseline, Outcome | N16: Yes | O16: Food Security and Nutrition 4.1.0 | P16: Public Health Significance: <4.9Proportion of Normal/Adequate; 5-19.9Proportion of Low; 20-39.9Proportion of Medium; >40Proportion of High (ref: WHO 2001). | Q16: Preparatory | R16: The finger-prick blood sample test is easy to administer in the field. The test could be easily integrated in regular health or prenatal visit to capture all women in reproductive ages. Cost of equipment may be prohibitive | T16: WHO guideline: who.int/indicators/haemolobin.pdf; | U16: primary data - National Surveys, Local studies, DHS, MICS; secondary data - VMNIS | V16: F1 Food Assistance, F3 Food Access, F4 Income Access, F5 Market Access, F6 Availability, F7 Utilization, H2 Child health, H4.2 Maternal and newborn care, H5 Non communicable diseases and mental health
A17: Nutrition | B17: Core - Key Contributing Factor | C17: N-025 | D17: N3 Prevention and Control of Micronutrients Deficiencies | E17: Prevalence of anaemia | F17: Proportion of PW with Hb concentration of <11 g/dL | G17: Individual | H17: Percentage | I17: Total number of pregnant women surveyed | J17: Number of pregnant women with anaemia (Hb<11g/dl for pregnant women) | K17: Geographical area | L17: No | M17: Baseline, Outcome | N17: Yes | O17: Food Security and Nutrition 4.1.1 | P17: Public Health Significance: <4.9Proportion of Normal/Adequate; 5-19.9Proportion of Low; 20-39.9Proportion of Medium; >40Proportion of High (ref: WHO 2001). | Q17: Preparatory | R17: The finger-prick blood sample test is easy to administer in the field. The test could be easily integrated in regular health or prenatal visit to capture all women in reproductive ages. Cost of equipment may be prohibitive | T17: WHO guideline: who.int/indicators/haemolobin.pdf; | U17: primary data - National Surveys, Local studies, DHS, MICS; secondary data - VMNIS | V17: F1 Food Assistance, F3 Food Access, F4 Income Access, F5 Market Access, F6 Availability, F7 Utilization, H2 Child health, H4.2 Maternal and newborn care, H5 Non communicable diseases and mental health
A18: Nutrition | B18: Core - Contextual Factor | C18: N-001 | D18: N4 Prevention and Management of Double Burden of Malnutrition | E18: Prevalence of overweight | F18: prevalence (%) of overweight in children 6 to 59 months of age based on weight-for-height z-score more than 2 standard deviations of the median of the standard population (WHO 2006) | G18: Individual | H18: Percentage | I18: Total number of children aged 6-59 months surveyed | J18: Number of children aged 6-59 months that meet the criteria for overweight | K18: Geographical area, age, sex | L18: Yes | M18: Baseline, Outcome | N18: Yes | P18: WHO TRS 854. Severity classification: 5,10, 15% | R18: Should be based on a methodologically solid anthropometric nutrition survey finding and include Confidence Intervals | U18: Population-based surveys with representative sampling methods (MICS, DHS, SMART)
A19: Nutrition | B19: Core - Contextual Factor | C19: N-015 | D19: N1 Prevention and Management of Acute Malnutrition | E19: Acute malnutrition for older people | F19: prevalence (%) of older people with a MUAC below 210mm or having bilateral pitting oedema | G19: Individual | H19: Percentage | I19: Total number of older people surveyed | J19: Number of older people that meet the criteria for acute malnutrition | K19: Geographical area, sex: in preparatory, Phase III and IV, disaggregate by severity (<185mm and between 185 and 209mm) | L19: Yes | M19: Baseline, Outcome | N19: Yes | P19: MUAC >210mm: no malnutrition; MAM: MUAC <210mm SAM: MUAC<185mm or oedema (Help Age guidelines 2013) | Q19: In preparatory phase as well as phases I and II: use rapid assessment methods In phases III and IV, organize surveys with larger samples or use rapid assessment method, with multi-indicator questionnaire | R19: Rapid assessment methods can be used at any phase. The questionnaire should include questions about socio-economic status, health, household food security, water and sanitation. | S19: In preparatory phase,: Collect baseline demographic data about the percentage of people 50 and above (or 60 and above) disaggregated by sex and by age groups of 5 years (50-59, 60-64, 65-69, 70-74, 75-80, 80 and above) Assess household food security Organize focus group discussions with older people to have an idea of their access to food. | T19: older people are defined as "people aged 60 and above" (UN definition), but in some contexts (e.g. Somali, Ethiopia, Sudan etc.), can be 50 and above (as people are considered "old" from this age); Note: Nutritional oedema in older people may be difficult to distinguish from other types of oedema, so suggestion to separate BMI and oedema cases if necessary. Data on acute malnutrition rate should be compared by sex in order to identify any specific discrimination elderly women and elderly men might face in accessing nutrition. In case there is an important difference between the percentage of elderly women and the percentage of elderly men suffering from acute malnutrition, the programme should address these gaps by undertaking a gender analysis of the specific challenges the disadvantaged group is facing, including an analysis of the socio cultural habits and beliefs as well as on the social and family support networks available to them that might differ, hence impacting differently their nutritional well being. | U19: surveys: rapid assessments | V19: F1 Food Assistance, F3 Food Access, F4 Income Access, F5 Market Access, F6 Availability, F7 Utilization, H3 Communicable diseases, W1 Hygiene Promotion, W2 Water Supply, W4 Vector Control
A20: Nutrition | B20: Core - Contextual Factor | C20: N-014 | D20: N1 Prevention and Management of Acute Malnutrition | E20: Undernutrition for 5 to 19 year olds | F20: prevalence (%) of children and adolescents 5-19 years of age with Z-scores defined as BMI-for-age index less than -2 standard deviations from the median BMI of a reference population of children/adolescents of the same age and/or having bilateral pitting oedema | G20: Individual | H20: Percentage | I20: Total number of children and adolescents 5-19 years surveyed | J20: Number of children and adolescents 5-19 years that meet the criteria for undernutrition | K20: Geographical area, sex | L20: No | M20: Baseline, Outcome | N20: Yes | P20: WHO Reference 2007 www.who.int/growthref. | Q20: Preparatory and phase iv and beyond | R20: Should be based on a methodologically solid anthropometric nutrition survey finding and include Confidence Intervals | T20: Particularly important for adolescent girls. Data on the undernutrition rate should be compared by sex in order to identify any specific discrimination girls, boys, adolescent girls and adolescent boys might face in accessing nutrition. In case there is an important difference between the percentage of girls and the percentage of boys suffering from undernutrition, the programme should address these gaps by undertaking a gender analysis of the specific challenges the disadvantaged group is facing, including an analysis of the socio cultural habits and beliefs that might differently impact on girls' and boys' nutritional well being. Note: the indicator includes 5.0 to 19.0 years. Based on WHO 2007 reference population | V20: F1 Food Assistance, F3 Food Access, F4 Income Access, F5 Market Access, F6 Availability, F7 Utilization, H3 Communicable diseases, H4.2 Maternal and newborn care, W1 Hygiene Promotion, W2 Water Supply, W4 Vector Control
A23: ADDITIONAL INDICATORS TO BE CONSIDERED GIVEN THE HUMANITARIAN CONTEXT
A24: Nutrition | B24: Non-core | C24: N-031 | D24: N2 Infant and Young Child Feeding | E24: Continued breastfeeding at one year and at 2 years | F24: Proportion of children 12-15 months of age and 20-23 months of age who are fed breast milk | G24: Individual | H24: Percentage | I24: Total number of infants 12-15 months of age and total number of infants 20-23 months of age surveyed | J24: Infants 12-15 months of age and 20-23 months of age who receive any breast milk | K24: Geographical area | L24: No | M24: Baseline, Outcome | N24: Yes | Q24: preparatory; Phase III and IV | R24: The WHO IYCF core indicator reports continued breastfeeding at 1 year. In emergencies, it is important to also monitor continued breastfeeding rate at 2 years (WHO IYCF optional indicator) as children 1-2 years are also at significant risk of increased morbidity and mortality if not breastfed in this context. | T24: Attention should be paid on the potential difference in breastfeeding male and female infants. If difference exists, this should inform the nutritional education messages. | U24: representative IYCF survey | V24: H2 Child health, H4.2 Maternal and newborn care, (R) Early Recovery
A25: Nutrition | B25: Non-core | C25: N-032 | D25: N2 Infant and Young Child Feeding | E25: Children ever breastfed | F25: Proportion of children born in the last 24 months who were ever breastfed | G25: Individual | H25: Percentage | I25: Total number of infants born in the past 23 months in the surveyed area | J25: Number of infants 0-23 months of age who ever received breast milk | K25: Geographical area | L25: Yes | M25: Baseline, Outcome | N25: Yes | P25: No standard; < 80Proportion of is generally a priority. Discuss high, medium and low designations as a group | Q25: For measurement in Phases 1-IV, an adapted indicator should be used where the denominator should be infants born since onset of the emergency. In phases 1 and 2, opportunistic sampling will be necessary, e.g. piggy backed onto reproductive health sampling or anthropometric screening or food security assessment. | R25: WHO IYCF core indicator. | S25: For preparatory phase, the core WHO Indicator should be used as a baseline where the denominator is infants born in the last 24 months. | U25: Preparatory, Phase III and IV: representative IYCF survey. Phase I and II: use key informant interviews and opportunistic sampling to give an ALERT indication | V25: H2 Child health, H4.2 Maternal and newborn care, (R) Early Recovery
A26: Nutrition | B26: Non-core | C26: N-033 | D26: N2 Infant and Young Child Feeding | E26: Predominant breastfeeding under 6 months | F26: Proportion of infants 0-5 months of age who are predominantly breastfed | G26: Individual | H26: Percentage | I26: Total number of infants 0 to 5 months of age surveyed | J26: Number of infants 0-5 months of age who are predominantly breastfed | K26: Geographical area, sex | L26: No | M26: Baseline | N26: No | P26: No standard; < 80Proportion of is generally a priority. Discuss high, medium and low designations as a group | Q26: preparatory; Phase III and IV | R26: WHO IYCF optional indicator | T26: Attention should be paid on the potential difference in breastfeeding male and female infants. If difference exists, this should inform the nutritional education messages. | U26: representative IYCF survey | V26: H2 Child health, H4.2 Maternal and newborn care, (R) Early Recovery
A27: Nutrition | B27: Non-core | C27: N-034 | D27: N2 Infant and Young Child Feeding | E27: Bottle feeding | F27: Proportion of children 0-23 months of age who are fed with a bottle | G27: Individual | H27: Percentage | I27: Total number of infants 0-23 months surveyed | J27: Number of infants 0-23 months who are fed with a bottle | K27: Geographical area, sex | L27: Yes | M27: Baseline, Outcome | N27: Yes | O27: Food Security and Nutrition 4.2.4 | Q27: preparatory; Phases I, II, III and IV | R27: WHO IYCF optional indicator. This indicator determines the use of bottles which carry risk; is not an indicator of use of infant formula or breast milk substitutes, since it records any item fed using a bottle including breast milk, water, semi-solids, etc.). | U27: Preparatory, Phase III and IV: representative IYCF survey. Phase I and II use key informant interviews and opportunistic sampling to give an ALERT indication | V27: H2 Child health, H4.2 Maternal and newborn care, W1 Hygiene Promotion, W2 Water Supply
A28: Nutrition | B28: Non-core | C28: N-026 | D28: N3 Prevention and Control of Micronutrients Deficiencies | E28: prevalence of iodine deficiency | F28: Median urinary iodine concentration (?g/L) in children aged 6-12 years | G28: Individual | H28: Percentage | I28: Total number of children aged 6- 12 years surveyed | J28: Median urinary iodine concentration (?g/L) in children aged 6-12 years | K28: Geographical area, age | L28: Yes | M28: Baseline | N28: No | O28: Food Security and Nutrition 4.1.1 | P28: For children under-5, Public Health significance if <100µg/l but I don't know for children 6-12 years of age (ref: WHO, UNICEF, ICCIDD 2007) | Q28: Preparatory | R28: A median urinary iodine concentration in a population of < 100 ?g/l indicates that the iodine intake is insufficient. A non-invasive method of measurement, the cost of spoturine samples tests is affordable. School age children 6-12 years can be easily tested in population-based surveys. | T28: WHO guideline: apps.who.int/iris/bitstream/10665/85972/1/WHO_NMH_NHD_EPG_13.1_eng.pdf; According to WHO ideally one should also assess PLW | U28: primary data - National Surveys, Local studies; secondary data - VMNIS | V28: F1 Food Assistance, F6 Availability, H2 Child health, H4.2 Maternal and newborn care, H5 Non communicable diseases and mental health
A29: Nutrition | B29: Non-core | C29: N-027 | D29: N1 Prevention and Management of Acute Malnutrition | E29: Child morbidity | F29: Proportion of children 0-59 months whose caregiver reported an illness in the previous 2 weeks | G29: Individual | H29: Percentage | I29: Total number of children 0 to 59 months of age surveyed | J29: Number of children 0-59 months whose caregiver reported an illness in the previous 2 weeks | K29: Geographical area | L29: Yes | M29: Baseline | N29: No | P29: No threshold | Q29: preparatory; Phase I and II; Phase II and IV | R29: survey data | T29: This information may be available through the Health Cluster, but nutrition surveys may provide updated representative information | U29: SMART surveys, Disease early warning systems | V29: H1 General clinical services & essential trauma care, H2 Child health, H3 Communicable diseases, H4.2 Maternal and newborn care, W1 Hygiene Promotion, W2 Water Supply, W3 Excreta Disposal
A30: Nutrition | B30: Non-core | C30: N-028 | D30: N1 Prevention and Management of Acute Malnutrition | E30: Under-five mortality | F30: The rate of death among children below of 5 years of age in the population | G30: Individual | H30: death per 10,000 children under 5 years/day | I30: Total number of children under 5 years multiple by number of days in time period over 10,000 persons | J30: Total number of death in children under 5 years during time period | K30: Geographical area | L30: Yes | M30: Baseline | N30: No | O30: Health Action 2.2.1 | P30: See Sphere (http://www.spherehandbook.org/en/essential-health-services-standard-1-prioritising-health-services/) for emergency thresholds for different regions. When the baseline rate is unknown or of doubtful validity, agencies should aim to maintain the U5MR at least below 2.0/10,000/day | Q30: preparatory; Phases I, II III and IV | R30: Under-five mortality rate as defined here is strictly speaking not a rate (i.e. the number of deaths divided by the number of population at risk during a certain period of time) but a probability of death derived from a life table and expressed as rate per 1000 live births | T30: These data should be taken from Health Cluster or specific mortality surveys, representative surveys, A proxy can be calculated through health facilities and community records in early phases of emergency. Under-five mortality rate measures child survival. It also reflects the social, economic and environmental conditions in which children (and others in society) live, including their health care. Because data on the incidences and prevalence of diseases (morbidity data) frequently are unavailable, mortality rates are often used to identify vulnerable populations. Under-five mortality rate is an MDG indicator | U30: Representative survey and or from health facility / community records | V30: H1 General clinical services & essential trauma care, H2 Child health, W1 Hygiene Promotion, W2 Water Supply, W3 Excreta Disposal
A31: Nutrition | B31: Non-core | C31: N-002 | D31: N1 Prevention and Management of Acute Malnutrition | E31: Acute malnutrition in infants less than 6 months | F31: prevalence (%) of global acute malnutrition in infants less than 6 months of age based on presence of bilateral pitting oedema and /or weight-for-height z-score less than -2 standard deviations of the median of the standard population (WHO 2006) | G31: Individual | H31: Percentage | I31: Total number of children less than 6 months surveyed | J31: Number of infants 0-5 months that meet the criteria for global acute malnutrition | K31: Geographical area, sex | L31: Yes | M31: Baseline, Outcome | N31: Yes | P31: WHO TRS 854. Severity classification: 5,10, 15% | Q31: preparatory; Phase III and IV | R31: Should be based on a methodologically solid anthropometric nutrition survey finding and include Confidence Intervals | T31: Note that WFH and MUAC do not measure the same things and are not comparable. Data on the acute malnutrition rate should be compared by sex in order to identify any specific discrimination baby girls or baby boys might face in accessing nutrition. In case there is an important difference between the percentage of infant girls and the percentage of infant boys suffering from malnutrition, the programme should address these gaps by undertaking a gender analysis of the specific challenges the disadvantaged group is facing, including an analysis of the socio cultural habits and beliefs on breastfeeding that might differently impact on baby girls' and baby boys' nutritional well being. | U31: Population-based surveys with representative sampling methods (MICS, DHS, SMART) | V31: F1 Food Assistance, H2 Child health, H4.2 Maternal and newborn care, W1 Hygiene Promotion, W2 Water Supply, W3 Excreta Disposal
A32: Nutrition | B32: Non-core | C32: N-006 | D32: N1 Prevention and Management of Acute Malnutrition | E32: Moderate acute malnutrition (MAM) in infants 0-5 months | F32: prevalence (%) of moderate acute malnutrition in infants less than 6 months of age based on weight-for-height z-score less than -2 and equal or greater than -3 standard deviations of the median of the standard population (WHO 2006) | G32: Individual | H32: Percentage | I32: Total number of children less than 6 months surveyed | J32: Number of infants less than 6 months that meet the criteria for moderate acute malnutrition | K32: Geographical area, sex | L32: Yes | M32: Baseline, Outcome | N32: Yes | P32: No standard WHO thresholds; this indicator cut-off should be interpreted in consideration of other indicators including morbidity, mortality and proportion of GAM | Q32: preparatory; Phase III and IV | R32: Should be based on a methodologically solid anthropometric nutrition survey finding and include Confidence Intervals | S32: Prevalence easy to derive by subtracting Proportion of SAM from Proportion of GAM | T32: Note that WFH and MUAC do not measure the same things and are not comparable. Data on the moderate acute malnutrition rate should be compared by sex in order to identify any specific discrimination baby girls or baby boys might face in accessing nutrition. In case there is an important difference between the percentage of infant girls and the percentage of infant boys suffering from malnutrition, the programme should address these gaps by undertaking a gender analysis of the specific challenges the disadvantaged group is facing, including an analysis of the socio cultural habits and beliefs on breastfeeding that might differently impact on baby girls' and baby boys' nutritional well being. | U32: Population-based surveys with representative sampling methods (MICS, DHS, SMART) | V32: F1 Food Assistance, H2 Child health, H4.2 Maternal and newborn care, W1 Hygiene Promotion, W2 Water Supply, W3 Excreta Disposal
A33: Nutrition | B33: Non-core | C33: N-004 | D33: N1 Prevention and Management of Acute Malnutrition | E33: Severe acute malnutrition (SAM) in infants 0-5 months | F33: prevalence (%) of severe acute malnutrition in infants less than 6 months of age based on presence of bilateral pitting oedema and weight-for-height z-score less than -3 standard deviations of the median of the standard population (WHO 2006) | G33: Individual | H33: Percentage | I33: Total number of children 0-5 months surveyed | J33: Number of infants 0-5 months that meet the criteria for severe acute malnutrition | K33: Geographical area, sex | L33: Yes | M33: Baseline, Outcome | N33: Yes | P33: No standard WHO thresholds; this indicator cut-off should be interpreted in consideration of other indicators including morbidity, mortality and proportion of GAM; Reference: WHO child growth standards and the identification of severe acute malnutrition in infants and children. A Joint Statement by the World Health Organization and the United Nations Children's Fund, 2009. | Q33: preparatory; Phase III and IV | R33: Should be based on a methodologically solid anthropometric nutrition survey finding and include Confidence Intervals | T33: Note that WFH and MUAC do not measure the same things and are not comparable. Data on the severe acute malnutrition rate should be compared by sex in order to identify any specific discrimination baby girls or baby boys might face in accessing nutrition. In case there is an important difference between the percentage of infant girls and the percentage of infant boys suffering from malnutrition, the programme should address these gaps by undertaking a gender analysis of the specific challenges the disadvantaged group is facing, including an analysis of the socio cultural habits and beliefs on breastfeeding that might differently impact on baby girls' and baby boys' nutritional well being. | U33: Population-based surveys with representative sampling methods (MICS, DHS, SMART) | V33: F1 Food Assistance, H1 General clinical services & essential trauma care, H2 Child health, H4.2 Maternal and newborn care, W1 Hygiene Promotion, W2 Water Supply, W3 Excreta Disposal
A34: Nutrition | B34: Non-core | C34: N-012 | D34: N1 Prevention and Management of Acute Malnutrition | E34: Stunting in women of reproductive age | F34: prevalence (%) of women 15-49 years old who have height less than 145 cm | G34: Individual | H34: Percentage | I34: Total number of women 15-49 years surveyed | J34: Number of women 15-49 years that meet the criteria for stunting | K34: Geographical area | L34: No | M34: Baseline, Outcome | N34: Yes | Q34: preparatory; Phase III and IV | R34: Should be based on a methodologically solid anthropometric nutrition survey finding and include Confidence Intervals | U34: Population-based surveys with representative sampling methods (MICS, DHS, SMART) | V34: F1 Food Assistance, F3 Food Access, F4 Income Access, F5 Market Access, F6 Availability, F7 Utilization, H1 General clinical services & essential trauma care, H2 Child health, H4.2 Maternal and newborn care, W1 Hygiene Promotion, W2 Water Supply, W4 Vector Control
A35: Nutrition | B35: Non-core | C35: N-013 | D35: N1 Prevention and Management of Acute Malnutrition | E35: Undernutrition for adults | F35: prevalence (%) of adults aged 19.1 to 59.9 years old with BMI less than 17.00 kg/m2 and/or having bilateral pitting oedema | G35: Individual | H35: Percentage | I35: Total number of adults aged 19.1 to 59.9 years old surveyed | J35: Number of adults aged 19.1 to 59.9 years old that meet the criteria for undernutrition | K35: Geographical area, age, sex | L35: No | M35: Baseline, Outcome | N35: Yes | P35: WHO TRS 854 classification: mild thinness (BMI = 17.00-18.49 kg/m2), moderate thinness (BMI = 16.00-16.99 kg/m2), and severe thinness (BMI < 16.00 kg/m2). | Q35: Preparatory and phase IV and beyond | R35: Should be based on a methodologically solid anthropometric nutrition survey finding and include Confidence Intervals | T35: Anthropometric data should be interpreted with a contextual analysis of the associated nutritional risks for the population using underlying causes. In particular, data on the undernutrition rate should be compared by sex in order to identify any specific discrimination adult women or adult men might face in accessing nutrition. In case there is an important difference between the percentage of women and the percentage of men suffering from undernutrition, the programme should address these gaps by undertaking a gender analysis of the specific challenges the disadvantaged group is facing, including an analysis of the socio cultural habits and beliefs that might differently impact their nutritional well being. | U35: Population-based surveys with representative sampling methods (MICS, DHS, SMART) | V35: F1 Food Assistance, F3 Food Access, F4 Income Access, F5 Market Access, F6 Availability, F7 Utilization, H3 Communicable diseases, H4.2 Maternal and newborn care, W1 Hygiene Promotion, W2 Water Supply, W4 Vector Control
A36: Nutrition | B36: Non-core | C36: N-016 | D36: N1 Prevention and Management of Acute Malnutrition | E36: Minimum meal frequency for children 24-59 months | F36: Proportion of children 24-59 months who are eating 3 meals a day or more | G36: Individual | H36: Percentage | I36: Total number of children 24-59 months surveyed | J36: Number of children 24-59 months who are eating 3 meals a day or more | K36: Geographical area, age, sex | L36: No | M36: Baseline | N36: No | Q36: preparatory; Phase I and II; Phase II and IV | R36: Use 6-23 months age group indicator as proxy for 24-59 months, and assume older age group is worse off CAN be an important ALERT indicator in early phases of an emergency | T36: Indicator used for IYCF for 6-23 month age group based on WHO indicator. | U36: surveys; rapid assessments; | V36: F1 Food Assistance, F3 Food Access, F4 Income Access, F5 Market Access, F6 Availability, F7 Utilization, H2 Child health, H4.2 Maternal and newborn care
A37: Nutrition | B37: Non-core | C37: N-019 | D37: N3 Prevention and Control of Micronutrients Deficiencies | E37: level of risk to common micronutrient deficiencies (high, medium, low) | F37: Qualitative assessment of nutritional risk of common micronutrient deficiencies (anaemia, iodine deficiency, vitamin A deficiency (night blindness), scurvy, beri beri, vitamin D deficiency) based on composite indicator analysis on prevalences, diet analysis, water quality and diarrheal disease, case finding | G37: Community | H37: high, medium, low | I37: N/A | J37: N/A | K37: By deficiency; geographical area, sex, potentially vulnerable groups: PLW, children 6-59 months, other potentially vulnerable groups | L37: Yes | M37: Baseline | N37: No | P37: SPHERE 2011, appendix 5 - thresholds (http://www.spherehandbook.org/en/appendix-15/) | Q37: Preparatory; Phase II, III, IV | R37: List prevalences for micronutrient status known for any vitamins and minerals and collect additional information on diet, water quality and disease, to assess the severity of the risk for specific population groups | U37: use survey data ; estimate from numbers of affected population by type of vulnerable groups | V37: F1 Food Assistance, F2 Livelihood Assistance, F3 Food Access, F4 Income Access, F5 Market Access, F6 Availability, F7 Utilization, H1 General clinical services & essential trauma care, H2 Child health, H5 Non communicable diseases and mental health, (R) Early Recovery, W1 Hygiene Promotion, W2 Water Supply, W3 Excreta Disposal
A38: Nutrition | B38: Non-core | C38: N-020 | D38: N3 Prevention and Control of Micronutrients Deficiencies | E38: Vitamin A coverage in children 6--59 months | F38: Proportion of children 6 - 59 months having received vitamin A in previous 6 months | G38: Individual | H38: Percentage | I38: Total number of children 6-59 months surveyed | J38: Number of children 6 - 59 months that received vitamin A in the previous 6 months (mother's recall or card verified) | K38: Geographical area, age (6-11, 12-23 months), sex | L38: Yes | M38: Baseline, Output | N38: Yes | O38: Health Action 2.2.1 | P38: Target: 95%. Upon completion of measles vaccination campaign at least 95 per cent of children aged 6–59 months have received an appropriate dose of Vitamin A | Q38: preparatory; Phase III and IV | T38: The indicator applies for children living in settings where VAD is a public health problem, WHO follows the GAVA recommendation and advocates for two doses in the last year. In case there is an important difference, the programme should address these gaps by undertaking a gender analysis of the specific challenges the disadvantaged group is facing, including an analysis of the socio cultural habits and beliefs that might differently impact on girls' and boys' nutritional well being. Consider the dates of the actual vitamin A supplementation to get an indication of number of children uncovered (0 to 5 months old) and who should be included in the new supplementation programme. | U38: population surveys with representative sampling methods (MICS, DHS, SMART) | V38: F1 Food Assistance, F3 Food Access, F4 Income Access, F5 Market Access, F6 Availability, F7 Utilization, H1 General clinical services & essential trauma care, H2 Child health, H5 Non communicable diseases and mental health
A39: Nutrition | B39: Non-core | C39: N-021 | D39: N3 Prevention and Control of Micronutrients Deficiencies | E39: Iron supplementation coverage rate in children | F39: Proportion of children 6-59 months of age receiving micronutrient supplements that contain adequate iron | G39: Individual | H39: Percentage | I39: Total number of children 6-59 months surveyed | J39: Number of children 6-59 months who received micronutrient supplements with adequate iron in/with one of their meals the previous day | K39: Geographical area, age (6-24, 24-59 months), sex | L39: No | M39: Baseline, Output | N39: Yes | O39: Food Security and Nutrition 4.1.1 | Q39: preparatory; Phase III and IV | U39: population surveys with representative sampling methods (MICS, DHS, SMART) | V39: F1 Food Assistance, F3 Food Access, F4 Income Access, F5 Market Access, F6 Availability, F7 Utilization, H1 General clinical services & essential trauma care, H2 Child health, H5 Non communicable diseases and mental health
A40: Nutrition | B40: Non-core | C40: N-022 | D40: N3 Prevention and Control of Micronutrients Deficiencies | E40: Iron-folic acid supplementation in pregnant women | F40: Proportion of pregnant women having received iron-folic acid contained supplementation daily in previous 6 months/during pregnancy | G40: Individual | H40: Percentage | I40: Total number of pregnant women surveyed | J40: Number of pregnant women who bought or received iron-folic acid contained supplementation daily in the previous 6 months during pregnancy | K40: Geographical area | L40: Yes | M40: Baseline, Output | N40: Yes | O40: Food Security and Nutrition 4.1.1 | Q40: preparatory; Phase III and IV | R40: In some countries iron-folic acid supplements are replaced by multiple micronutrients, therefore depending on the situation the indicator should be changed to "received iron-folic acid supplements "or "received multiple micronutrient supplements" | U40: Population survey with representative sampling methods (eg, MICS, DHA, SMART) | V40: F1 Food Assistance, F3 Food Access, F6 Availability, H1 General clinical services & essential trauma care, H2 Child health, H4.2 Maternal and newborn care
A41: Nutrition | B41: Non-core | C41: N-023 | D41: N3 Prevention and Control of Micronutrients Deficiencies | E41: Iodized salt consumption | F41: Proportion households using adequately iodized salt in previous 6 months | G41: Households | H41: Percentage | I41: Total number of households surveyed | J41: Number of households using adequately iodized salt (20-40 ppm) in previous 6 months | K41: Geographical area | L41: No | M41: Baseline, Output | N41: No | O41: Food Security and Nutrition 4.1.1 | P41: Indicator should be equal to or greater than 90Proportion of(reference?) -Number of households using adequately iodized salt (20-40 ppm) in previous 6 months | Q41: preparatory; Phase III and IV | R41: Adequately iodized salt is salt containing 15 to 40 ppm of iodine at the household level. Reference: Assessment of iodine deficiency disorders and monitoring their elimination : a guide for programme managers. 3rd edition WHO, 2008 | T41: Use of "using" rather than "having regularly consumed in previous 6 months" based on recommended assessment methods, which is measuring iodine level in salt in households at a time of assessment and not collecting retrospective data (as the level of iodine in salt consumed cannot be assessed and many people do not know if salt is / was iodized). Alternative formulation: "Proportion of households using adequately iodized salt" - see reference. Apparently not a food security indicator; | V41: F1 Food Assistance, F6 Availability, H2 Child health, H5 Non communicable diseases and mental health
A42: Nutrition | B42: Non-core | C42: N-024 | D42: N3 Prevention and Control of Micronutrients Deficiencies | E42: Prevalence of vitamin A deficiency | F42: (1)Proportion of children below five years of age with sub-clinical vitamin A deficiency (2) Proportion of women of reproductive age with clinical vitamin A deficiency | G42: Individual | H42: Percentage | I42: Total number of children below five years of age surveyed or Total number of women of reproductive age surveyed | J42: Number of children below five years of age with vitamin A deficiency (serum retinol values <0.70µmol/l) or Proportion of women of reproductive age or 15-49 years of age) with Vitamin A deficiency (serum retinol values<0.70µmol/l) | K42: Geographical area, boys and girls 0-59 months, women of reproductive age | L42: Yes | M42: Baseline | N42: No | O42: Food Security and Nutrition 4.1.1 | P42: Public Health Significance: <2Proportion of normal; 2-9.9Proportion of Low; 10-19.9Proportion of Medium; >20Proportion of High (ref: WHO 1996) | Q42: Preparatory | R42: FOR CHILDREN - Serum or plasma retinol levels measured in capillary or venous samples is an invasive test that is expensive if HPLC is used. Newer methods for dry blood spots with the capillary method are emerging. FOR WOMEN - Information can be ascertained verbally. Since the question is targeted at a specific subset of women, the indicator fails to capture the full range of women of reproductive ages. There is a need to standardize the phrasing of the question. | T42: WHO guideline: who.int/vmnis/retinol.pdf | U42: primary data - National Surveys, Local studies, DHS, MICS; secondary data - VMNIS | V42: F1 Food Assistance, F3 Food Access, F4 Income Access, F5 Market Access, F6 Availability, F7 Utilization, H2 Child health, H4.2 Maternal and newborn care, H5 Non communicable diseases and mental health
A43: Nutrition | B43: Non-core | C43: N-018 | D43: N3 Prevention and Control of Micronutrients Deficiencies | E43: Minimum dietary diversity for children 24-59 months | F43: Proportion of children 24-59 months who receive foods from 4 or more food groups | G43: Individual | H43: Percentage | I43: Total number of children 24-59 months surveyed | J43: Number of children 24-59 months who receive from 4 or more of the following food groups. | K43: Geographical area, age, sex | L43: No | M43: Baseline | N43: No | O43: Food Security and Nutrition 4.1.1 | P43: No standard identified, only WHO source indicator | Q43: preparatory; Phase I and II; Phase II and IV | R43: Use 6-23 months age group indicator as proxy for 24-59 months, and assume older age group is worse off - CAN be an important ALERT indicator in early phases of an emergency (WHO uses a parameter of previous 24 hours). Food groups defined as follows: (1) grains, roots and tubers (2) legumes and nuts (3) dairy products (milk, yogurt, cheese) (4) flesh foods (meat, fish, poultry and liver/organ meats) (5) eggs (6) vitamin-A rich fruits and vegetables (7) other fruits and vegetables | T43: Indicator used for IYCF for 6-23 month age group based on WHO indicator | U43: surveys; rapid assessments; | V43: F1 Food Assistance, F3 Food Access, F4 Income Access, F5 Market Access, F6 Availability, F7 Utilization, H2 Child health, H4.2 Maternal and newborn care
A44: Nutrition | B44: Non-core | C44: N-029 | D44: N2 Infant and Young Child Feeding | E44: Early initiation of breastfeeding | F44: Proportion of children 0-23 months who were put to the breast within one hour of birth. | G44: Individual | H44: Percentage | I44: Total number of women with a live birth in the X years prior to the survey | J44: Number of women with a live birth in the X years prior to the survey who put the newborn infant to the breast within one hour of birth | K44: Geographical area, sex | L44: No | M44: Baseline | N44: No | O44: Food Security and Nutrition 4.2.1 | P44: No standard; < 80Proportion of is generally a priority. Discuss high, medium and low designations as a group | Q44: For Phases III-IV, an adapted indicator should be used where the same methodology is used but the denominator is infants born since onset of the emergency. (Proportion of children born since the onset of the emergency who were put to the breastfed within one hour of birth). In Phase 1 and 11, the denominator used should be infants born since onset of the emergency. In these phases opportunistic sampling will be necessary, e.g. at facilities providing obstetric services/newborn support. | R44: WHO IYCF core indicator. | S44: For preparatory phase, the WHO core indicator should be used as a baseline where the denominator is children born in the last 24 months (Proportion of children born in the last 24 months who were put to the breastfed within one hour of birth). | T44: Note: DHS data are based on the three years or five years prior to survey and MICS data are based on the two years prior to survey | U44: Preparatory, Phase III and IV: representative IYCF survey. Phase I and II: use key informant interviews and opportunistic sampling to give an ALERT indication | V44: H2 Child health, H4.2 Maternal and newborn care, (R) Early Recovery
A45: Nutrition | B45: Non-core | C45: N-036 | D45: N2 Infant and Young Child Feeding | E45: Minimum meal frequency | F45: Proportion of children 6-23 months who received solid, semi-solid or soft foods the minimum number of times or more. | G45: Individual | H45: Percentage | I45: Total number of children 6-23 months surveyed | J45: Number of children 6-23 months who received solid, semi-solid or soft foods for the minimum number of times or more | K45: Geographical area, sex | L45: No | M45: Baseline, Outcome | N45: Yes | O45: Food Security and Nutrition 4.2.2 | P45: No standard; < 80Proportion of is generally a priority. Discuss high, medium and low designations as a group | Q45: preparatory; Phase III and IV | R45: WHO IYCF core indicator | U45: representative IYCF survey | V45: F3 Food Access, F4 Income Access, F5 Market Access, F6 Availability, F7 Utilization, H2 Child health
A46: Nutrition | B46: Non-core | C46: N-038 | D46: N2 Infant and Young Child Feeding | E46: Introduction of solid, semi-solid or soft food | F46: Proportion of children 6-8 months of age who received solid, semi-solid or soft foods during the previous day | G46: Individual | H46: Percentage | I46: Total number of infants 5-8 months surveyed | J46: Number of infants 5-8 months who received solid, semi-solid or soft foods during the previous day | K46: Geographical area, sex | L46: No | M46: Baseline, Outcome | N46: Yes | P46: No standard; < 80Proportion of is generally a priority. Discuss high, medium and low designations as a group | Q46: preparatory; Phase III and IV | R46: WHO IYCF core indicator. Need guidance on sample size | U46: representative IYCF survey | V46: F3 Food Access, F4 Income Access, F5 Market Access, F6 Availability, F7 Utilization, H2 Child health
A47: Nutrition | B47: Non-core | C47: N-039 | D47: N2 Infant and Young Child Feeding | E47: Not breastfed | F47: Proportion of infants 0<12 months and 12<24 months not breastfed | G47: Individual | H47: Percentage | I47: Total number of children 0<12 months and 12<24 months surveyed | J47: Number of infants 0-12 months and 12-24 months not breastfed | K47: Geographical area; 0-<12 months, 12-<24 months, sex | L47: Yes | M47: Baseline, Outcome | N47: Yes | Q47: Calculate this indicator based on standardized data collected. In phases 1 and 11, an indication of the proportion of non-breastfed infants should be estimated based on key informant interviews and opportunistic sampling. | R47: This is not a standard indicator. However it is possible to calculate this indicator using standardized data collected to produce WHO IYCF core indicators. | S47: Preparatory: calculate this indicator based on standardized data collected. In phases 1 and 11, an indication of the proportion of non-breastfed infants should be estimated based on key informant interviews and opportunistic sampling. | T47: Need to raise this with WHO to see how we might develop this as a standard indicator to report in emergency prone contexts. | U47: Preparatory, Phases 111 and IV: Indicator produced from data collected from MICS/DHS. Phase I and II will use key informant interviews and opportunistic sampling to give an ALERT indication. | V47: H2 Child health, H4.2 Maternal and newborn care, W1 Hygiene Promotion, W2 Water Supply

Sheet Classification thresholds
A1: Classification Thresholds for Core Indicators | F1: Severity Scale based on IPC/OCHA phases
D2: Humanitarian Consequence | F2: Phase 1 | G2: Phase 2 | H2: Phase 3 | I2: Phase 4 | J2: Phase 5 | K2: Sources
A3: Category | B3: Alignment with IPC AMN framework | C3: Outcome Indicator Name/label | D3: U5 GAM ≥5% (Scenarios 1 & 2) | E3: U5 GAM <5% (Scenario 3) | F3: Acceptable/ Minimal | G3: Alert/ Stress | H3: Serious/ Severe | I3: Critical/ Extreme | J3: Extremely Critical/ Catastrophic
A4: Primary Outcomes | B4: Acute and chronic malnutrition | C4: Prevalence of Global Acute Malnutrition (GAM) based on weight for height Z-score (WHZ)<-2 and/or bilateral pitting oedema among children 0-59 months (if no data, use 6-59 months) | D4: Physical and Mental Well-being | F4: <5% | G4: 5-9.9% | H4: 10-14.9% | I4: 15-29.9% | J4: ≥30% | K4: Based on IPC AM Malnutrition Version 3 Guidance
C5: Prevalence of Global Acute Malnutrition (GAM) based on Mid-Upper Arm Circumference (MUAC) <125mm and/or bilateral pitting oedema among children 6-59 months | D5: Physical and Mental Well-being | F5: <5% | K5: Preliminary thresholds suggested by IPC Acute Malnutrition Version 3 guidance
G6: 5-9.9%
H7: 10-14.9%
I8: ≥15%
C9: Prevalence of Global Acute Malnutrition (GAM) based on Mid-Upper Arm Circumference (MUAC)<210-230 (depending on the contexts) and/or bilateral pitting oedema among PLW | D9: Physical and Mental Well-being | F9: <12.5% | G9: 12.6%-19.9% | H9: 20-24.9% | I9: 25-34.9% | J9: ≥35% | K9: Preliminary thresholds based on Somalia’s Food Security and Nutrition Analysis Unit (FSNAU)
C10: Prevalence of stunting based on height-for-age Z-score (HAZ)<-2 among children 0-59 months | D10: Living Standards | E10: Physical and Mental Well-being | F10: <10% | G10: 10-19.9% | H10: 20-29.9% | I10: ≥30% | K10: De Onis et al (2018) Prevalence thresholds for wasting, overweight, and stunting in children under 5 years
A11: Contextual Factors* *optional depending on the humanitarian situation | B11: Other causes | C11: Prevalence of overweight based on weight for height Z-score (WHZ)>2 among children 0-59 months | D11: Living Standards | E11: Physical and Mental Well-being | F11: <2.5% | G11: 2.5-4.9% | H11: 5-9.9% | I11: 10-14.9% | J11: ≥15% | K11: De Onis et al (2018) Prevalence thresholds for wasting, overweight, and stunting in children under 5 years
B12: Acute malnutrition | C12: Prevalence of Global Acute Malnutrition (GAM) based on Mid-Upper Arm Circumference (MUAC)<210mm among Older People | D12: Physical and Mental Well-being | F12: <5% | G12: 5-9.9% | H12: 10-14.9% OR 5-9.9%* | I12: ≥15% OR 10-14.9%* | K12: Based on HelpAge’s Nutrition Interventions for Older People in Emergencies
C13: Prevalence of Global Acute Malnutrition (GAM) based on BMI-for-Age Z-Score<-2 among Adolescents | D13: Physical and Mental Well-being | F13: <2.5% | G13: 2.5-4.9% | H13: 5-9.9% | I13: 10-14.9% | J13: ≥15% | K13: Preliminary thresholds suggested by Taskforce and NISWG
B14: Micronutrient deficiencies | C14: Prevalence of anemia Hb <11g/dl in children 6-59 months | D14: Physical and Mental Well-being | F14: <5% | G14: 5-19.9% | H14: 20-39.9% | I14: ≥40% | K14: WHO (2011) Haemoglobin concentrations for the diagnosis of anaemia and assessment of severity
C15: Prevalence of anemia Hb <11g/dl in pregnant women | D15: Physical and Mental Well-being | F15: <5% | G15: 5-19.9% | H15: 20-39.9% | I15: ≥40% | K15: WHO (2011) Haemoglobin concentrations for the diagnosis of anaemia and assessment of severity.
B16: Mortality indicators | C16: Crude Death/Mortality Rate (deaths/ 10,000 persons/ day) | D16: Physical and Mental Well-being | F16: <0.5 | H16: 0.5-0.9 | I16: 1-1.9 | J16: ≥2 | K16: Based on IPC AM Malnutrition Version 3 Guidance
C17: Under-five Death/Mortality Rate (deaths/ 10,000 children U5/ day) | D17: Physical and Mental Well-being | F17: <1 | H17: 1-1.9 | I17: 2-3.9 | J17: ≥4 | K17: Based on IPC AM Malnutrition Version 3 Guidance
A18: Key Contributing Factors | B18: Immediate causes (Food consumption) | C18: Minimum Dietary Diversity in children 6 to 23 months | D18: Living Standards | F18: ≥70% | G18: 40-70% | H18: 20-40% | I18: 10-20% | J18: <10% | K18: Preliminary thresholds suggested by IFE Core Group
C19: Minimum Acceptable Diet in children 6 to 23 months* *Requires Minimum Meal Frequency in children 6-23 months to be derived | D19: Living Standards | F19: ≥70% | G19: 40-70% | H19: 20-40% | I19: 10-20% | J19: <10% | K19: Preliminary thresholds suggested by IFE Core Group
C20: Exclusive breastfeeding for infants 0-5 months | D20: Living Standards | F20: ≥70% | G20: 50-70% | H20: 30 -50% | I20: 11-30% | J20: <11% | K20: Thresholds adapted from UNICEF Breastfeeding score cards
B21: Underlying causes (Caring and feeding practices) | C21: Infants 0-5 months that are not breastfed who have access to Breast Milk Substitutes (BMS) supplies and support in line with the Code and the IFE OG standards and recommendations | D21: Living Standards | F21: ≥60% | G21: 40-60% | H21: 20-40% | I21: 10-20% | J21: <10% | K21: Preliminary thresholds suggested by IFE Core Group
C22: Infants 6-11 months that are not breastfed who have access to Breast Milk Substitutes (BMS) supplies and support in line with the Code and the IFE OG standards and recommendations | D22: Living Standards | F22: ≥60% | G22: 40-60% | H22: 20-40% | I22: 10-20% | J22: <10% | K22: Preliminary thresholds suggested by IFE Core Group
B23: Underlying causes (WASH) | C23: % of HHs having access to an improved water source | D23: Living Standards | F23: Water comes from an improved water source which is located on premises | G23: Water comes from an improved water source, provided collection time is not more than 30 minutes for a roundtrip, including queuing | H23: Water comes from an improved source for which collection time exceeds 30 minutes for a roundtrip, including queuing | I23: Water comes from an unimproved water source | J23: Water comes directly from rivers, lakes, ponds, etc. | K23: Corresponds to the majority percentage of answer choices in WASH specific assessments/ MSNA/ DTM suggested by WASH colleagues for Joint Inter-sectoral Analysis Framework (JIAF) – see Limitations p.3 of the guidance. Please liaise with local Global WASH Cluster colleagues if using this indicator in the contributing factor analysis
C24: % of HHs having access to a sufficient quantity of water for drinking, cooking, bathing, washing or other domestic use | D24: Living standards | F24: Enough water for drinking, cooking, personal hygiene and other domestic purposes OR more than 50 l/d/p | G24: Enough water for drinking AND cooking AND personal hygiene, BUT NOT for other domestic purposes OR 15 or more but less than 50 l/d/p | H24: Enough water for drinking AND EITHER cooking OR personal hygiene OR 9 or more but less than 15 l/d/p | I24: Enough water for drinking BUT NOT for cooking AND personal hygiene OR 3 or more but less than 9 l/d/p | J24: Not enough water for drinking OR Less than 3 l/d/p | K24: Corresponds to the majority percentage of answer choices in WASH specific assessments/ MSNA/ DTM suggested by WASH colleagues for Joint Inter-sectoral Analysis Framework (JIAF) – see Limitations p.3 of the guidance. Please liaise with local Global WASH Cluster colleagues if using this indicator in the contributing factor analysis
C25: % of HHs having access to a functionnal and improved sanitation facility | D25: Living standards | F25: Access to improved sanitation facilities, not shared with other households | G25: Access to improved sanitation facilities, shared with less than 20 people | H25: Access to improved sanitation facilities, shared with more than 20 people | I25: Access to unimproved facilities OR access to improved facilities shared with more than 50 people | J25: Disposal of human faeces in open spaces or with solid waste | K25: Corresponds to the majority percentage of answer choices in WASH specific assessments/ MSNA/ DTM suggested by WASH colleagues for Joint Inter-sectoral Analysis Framework (JIAF) – see Limitations p.3 of the guidance. Please liaise with local Global WASH Cluster colleagues if using this indicator in the contributing factor analysis
C26: % of HHs with access to functioning handwashing facilities, with water and soap available or % of HHs with access to soap | D26: Living standards | F26: Soap is available at home AND handwashing facility is on premises with soap and water available | H26: Soap is available at home BUT no handwashing facility on premises with soap and water | J26: Soap is not available at home | K26: Corresponds to the majority percentage of answer choices in WASH specific assessments/ MSNA/ DTM suggested by WASH colleagues for Joint Inter-sectoral Analysis Framework (JIAF) – see Limitations p.3 of the guidance. Please liaise with local Global WASH Cluster colleagues if using this indicator in the contributing factor analysis
B27: Underlying causes (Immunization) | C27: Coverage of DTC3 (DPT3 / PENTA3) in < 1 year old, by administrative unit (%) | D27: Physical and Mental Well-being | F27: > 90% | G27: 85% - 90% | H27: 75% - 85% | I27: 65% - 75% | J27: < 65% | K27: This data may be available through projections, but if so, the quality of the data should be checked and noted. In some surveys data is collected from children aged 12-23 months. Please be sure to reference the age range that is the focus of the data. Only the first threshold has been tested and has evidence behind it. The others have been arbitrarily selected and should not be considered accurate measures at this stage
C28: Routine measles vaccination coverage (%) | D28: Physical and Mental Well-being | F28: No thresholds proposed | K28: Not from the official GHC list of ‘core’ health indicators. Use of consensus and expert judgement based on country-level experts for the analysis of contributing factors
C29: Routine polio vaccination coverage (%) | D29: Physical and Mental Well-being | F29: No thresholds proposed | K29: Not from the official GHC list of ‘core’ health indicators. Use of consensus and expert judgement based on country-level experts for the analysis of contributing factors
C30: Routine Vitamin A supplementation coverage (%) | D30: Physical and Mental Well-being | F30: No thresholds proposed | K30: Not from the official GHC list of ‘core’ health indicators. Use of consensus and expert judgement based on country-level experts for the analysis of contributing factors
C31: Campaign measles vaccination coverage (%) | D31: Physical and Mental Well-being | F31: No thresholds proposed | K31: Not from the official GHC list of ‘core’ health indicators. Use of consensus and expert judgement based on country-level experts for the analysis of contributing factors
C32: Campaign polio vaccination coverage (%) | D32: Physical and Mental Well-being | F32: No thresholds proposed | K32: Not from the official GHC list of ‘core’ health indicators. Use of consensus and expert judgement based on country-level experts for the analysis of contributing factors
C33: Campaign Vitamin A supplementation coverage (%) | D33: Physical and Mental Well-being | F33: No thresholds proposed | K33: Not from the official GHC list of ‘core’ health indicators. Use of consensus and expert judgement based on country-level experts for the analysis of contributing factors
C34: Measles vaccination coverage from surveys (%) | D34: Physical and Mental Well-being | F34: No thresholds proposed | K34: Not from the official GHC list of ‘core’ health indicators. Use of consensus and expert judgement based on country-level experts for the analysis of contributing factors
C35: Polio vaccination coverage from surveys (%) | D35: Physical and Mental Well-being | F35: No thresholds proposed | K35: Not from the official GHC list of ‘core’ health indicators. Use of consensus and expert judgement based on country-level experts for the analysis of contributing factors
C36: Vitamin A supplementation coverage from surveys (%) | D36: Physical and Mental Well-being | F36: No thresholds proposed | K36: Not from the official GHC list of ‘core’ health indicators. Use of consensus and expert judgement based on country-level experts for the analysis of contributing factors
C37: Coverage of all basic vaccinations from surveys (%) | D37: Physical and Mental Well-being | F37: No thresholds proposed | K37: Not from the official GHC list of ‘core’ health indicators. Use of consensus and expert judgement based on country-level experts for the analysis of contributing factors
C38: Percentage of children aged six months to 15 years who have received measles vaccination | D38: Physical and Mental Well-being | F38: >95% in camps /urban areas >90% in scattered or rural areas | G38: <94-85% urban and camps <89 - 84% in scattered or rural areas | H38: 75% - 85% | I38: 65% - 75% | J38: <65% | K38: This indicator is used to estimate vaccine coverage of the total EPI strategy. To avoid overestimation, measles vaccination coverage is used as proxy since it is usually lower than DPT3 coverage. Both indicators should be calculated on a yearly basis and can provide good indication of health system performance. It is necessary to assess the quality of the available data. Only the first threshold has been tested and has evidence behind it. The others have been arbitrarily selected and should not be considered accurate measures at this stage
B39: Immediate Causes (Health status) | C39: Number of cases or incidence rates for selected diseases relevant to the local context (cholera, measles, acute meningitis, others) | D39: Physical and Mental Well-being | F39: No thresholds proposed | K39: This indicator is primarily a country-level measurement and cannot be easily aggregated for use at higher levels. The list of diseases is context specific. Data collection can be problematic as health facility surveillance may have low sensitivity for conditions that do not commonly go to clinic. Access to health services is another factor. Please liaise with local GHC colleagues if using this indicator in the contributing factor analysis
C40: Case Fatality Ratio (CFR) for most common diseases | D40: Physical and Mental Well-being | F40: No thresholds proposed | K40: Mixture of disease severity and of quality of health care. Most likely will be biased upwards because only more severe cases normally go to clinic. This indicator is primarily a country-level measurement and cannot be easily aggregated for use at higher levels. The list of diseases is context specific. Data collection can be problematic as health facility surveillance may have low sensitivity for conditions that do not commonly go to clinic. Access to health services is another factor. Please liaise with local GHC colleagues if using this indicator in the contributing factor analysis
C41: Proportion of children U5 with diarrhea in the last two weeks | D41: Physical and Mental Well-being | F41: No thresholds proposed | K41: Not from the official GHC list of ‘core’ health indicators. Use of consensus and expert judgement based on country-level experts for the analysis of contributing factors
C42: Prevalence of HIV/AIDS | D42: Physical and Mental Well-being | F42: No thresholds proposed | K42: Not from the official GHC list of ‘core’ health indicators. Use of consensus and expert judgement based on country-level experts for the analysis of contributing factors
C43: Proportion of children U5 with fever in malaria-risk areas | D43: Physical and Mental Well-being | F43: No thresholds proposed | K43: Not from the official GHC list of ‘core’ health indicators. Use of consensus and expert judgement based on country-level experts for the analysis of contributing factors
C44: Proportion of children U5 who had Acute Respiratory Infections (ARI) in the last 2 weeks | D44: Physical and Mental Well-being | F44: No thresholds proposed | K44: Not from the official GHC list of ‘core’ health indicators. Use of consensus and expert judgement based on country-level experts for the analysis of contributing factors
C45: Number of reported cases of cholera or Acute Watery Diarrhea (AWD) | D45: Physical and Mental Well-being | F45: No thresholds proposed | K45: Not from the official GHC list of ‘core’ health indicators. Use of consensus and expert judgement based on country-level experts for the analysis of contributing factors
B46: Underlying causes (Availability of and access to health services) | C46: Percentage of healthcare facilities that deliver essential package of health services (including nutrition) | D46: Living Standards | F46: No thresholds proposed | K46: Not from the official GHC list of ‘core’ health indicators. The ‘essential package of health services’ must be defined to use this indicator. Use the minimum package of services that has been agreed at country level.
C47: Health-seeking behaviour from population-based surveys | D47: Living Standards | F47: No thresholds proposed | K47: Not from the official GHC list of ‘core’ health indicators. Use of consensus and expert judgement based on country-level experts for the analysis of contributing factors
C48: Percentage of population that can access primary healthcare within one hour’s walk from dwellings | D48: Living Standards | F48: ≥ 80% | G48: 75% - 80% | H48: 70% - 75% | I48: 65% - 70% | J48: < 65% | K48: As per JIAF guidance. Only the first threshold has been tested and has evidence behind it. The others have been arbitrarily selected and should not be considered accurate measures at this stage
C49: Number of HF with Basic Emergency Obstetric Care/ 500,000 population, by administrative unit | D49: Living Standards | F49: 4+ | G49: 3--4 | H49: 2--3 | I49: 1--2 | J49: < 1 | K49: As per JIAF guidance. Proxy indicators for the physical availability and geographical accessibility of emergency obstetric services and their distribution across districts in the affected areas. An unbalance between the availability of BEmOC and CEmOC (with too few BEmOC) is often observed. Only the first threshold has been tested and has evidence behind it. The others have been arbitrarily selected and should not be considered accurate measures at this stage
C50: Number of skilled birth attendant personnel (doctors, nurses, certified midwives) per 10,000 people | D50: Living Standards | F50: >= 23 | G50: >= 20 | H50: >= 17 | I50: >= 14 | J50: >= 11 | K50: As per JIAF guidance. Only the first threshold has been tested and has evidence behind it. The others have been arbitrarily selected and should not be considered accurate measures at this stage
B51: Immediate causes (Food consumption) | C51: PRIORITY: Food Security Cluster/Sector Analysis | D51: Living Standards | F51: 1 | G51: 2 | H51: 3 | I51: 4 | J51: 5 | K51: To align with the final analysis in terms of phases provided by the in-country Food security colleagues or IPC Acute Food Security Analysis
C52: Food Consumption Score | D52: Living Standards | F52: Acceptable and stable | G52: Acceptable but deterioration from typical | H52: Borderline | I52: Poor | J52: Poor | K52: As per JIAF guidance. Please liaise with local GFSC colleagues if using this indicator in the contributing factor analysis - see Limitations on Instructions spreadsheet.
C53: Household Hunger Scale | D53: Living Standards | F53: 0 (none) | G53: 1 (slight) | H53: 2 or 3 (moderate) | I53: 4 (severe) | J53: 5 or 6 (severe) | K53: As per JIAF guidance. Please liaise with local GFSC colleagues if using this indicator in the contributing factor analysis - see Limitations on Instructions spreadsheet.
C54: Reduced Coping Strategies Index | D54: Living Standards | F54: 0 to 3 | G54: 4 to 18 | H54: ≥ 19 | I54: ≥ 19 | J54: ≥ 19 | K54: As per JIAF guidance. Please liaise with local GFSC colleagues if using this indicator in the contributing factor analysis - see Limitations on Instructions spreadsheet.
C55: Household Dietary Diversity Score | D55: Living Standards | F55: 5-12 food groups and stable | G55: 5-FG but deterioration ≥1 FG from typical | H55: 3-4 FG | I55: 0-2 FG | J55: 0-2 FG | K55: As per JIAF guidance. Please liaise with local GFSC colleagues if using this indicator in the contributing factor analysis - see Limitations on Instructions spreadsheet.

Sheet Evidence Repository,Reliability
A1: Repository and reliability of Evidence Used | G1: IPC AM Reliability Score Table - see Figure 2 on p. 6
C2: EVIDENCE USED | G2: Time relevant | H2: Time relevant | I2: Not time relevant | J2: Not time relevant
C3: Name of report | D3: Source of report | E3: Data collection period | F3: Date of publication | G3: Soundness of Method | H3: Limited Method | I3: Soundness of Method | J3: Limited Method | K3: Remarks and raw data evidence [Indicate representativeness, quality, etc.; status of the report such as preliminary; if nothing to highlight, leave it blank]
A4: Sector | B4: Outcome Indicator Name/label | C4: [Write the exact name of the report] | D4: [Write the name(s) of agency(ies) that published the report] | E4: [Write the dates during which the data was collected] | F4: [Write the date in which the report was published] | G4: Reliable - R2 | H4: Somewhat Reliable - R1+ | I4: Somewhat Reliable - R1- | J4: X
A5: Nutrition | B5: Prevalence of Global Acute Malnutrition (GAM) based on weight for height Z-score (WHZ)<-2 and/or bilateral pitting oedema among children 0-59 months (if no data, use 6-59 months) | G5: X
B6: Prevalence of Global Acute Malnutrition (GAM) based on Mid-Upper Arm Circumference (MUAC) <125mm and/or bilateral pitting oedema among children 6-59 months | H6: X
B7: Prevalence of Global Acute Malnutrition (GAM) based on Mid-Upper Arm Circumference (MUAC)<210-230 (depending on the contexts) and/or bilateral pitting oedema among PLW
B8: Prevalence of stunting based on height-for-age Z-score (HAZ)<-2 among children 0-59 months
B9: Prevalence of overweight based on weight for height Z-score (WHZ)>2 among children 0-59 months
B10: Prevalence of Global Acute Malnutrition (GAM) based on Mid-Upper Arm Circumference (MUAC)<210mm among Older People
B11: Prevalence of Global Acute Malnutrition (GAM) based on BMI-for-Age Z-Score<-2 among Adolescents
B12: Prevalence of anemia Hb <11g/dl in children 6-59 months
B13: Prevalence of anemia Hb <11g/dl in pregnant women
B14: Crude Death/Mortality Rate (deaths/ 10,000 persons/ day)
B15: Under-five Death/Mortality Rate (deaths/ 10,000 children U5/ day)
A16: IYCF Practices | B16: Minimum Dietary Diversity in children 6 to 23 months
B17: Exclusive breastfeeding for infants 0-5 months
B18: Infants 0-5 months that are not breastfed who have access to Breast Milk Substitutes (BMS) supplies and support in line with the Code and the IFE OG standards and recommendations
B19: Infants 6-11 months that are not breastfed who have access to Breast Milk Substitutes (BMS) supplies and support in line with the Code and the IFE OG standards and recommendations
A20: WASH | B20: % of HHs having access to an improved water source
B21: % of HHs having access to a sufficient quantity of water for drinking, cooking, bathing, washing or other domestic use
B22: % of HHs having access to a functionnal and improved sanitation facility
B23: % of HHs with access to functioning handwashing facilities, with water and soap available or % of HHs with access to soap
A24: Health | B24: Coverage of DTC3 (DPT3 / PENTA3) in < 1 year old, by administrative unit (%)
B25: Routine measles vaccination coverage (%)
B26: Routine polio vaccination coverage (%)
B27: Routine Vitamin A supplementation coverage (%)
B28: Campaign measles vaccination coverage (%)
B29: Campaign polio vaccination coverage (%)
B30: Campaign Vitamin A supplementation coverage (%)
B31: Measles vaccination coverage from surveys (%)
B32: Polio vaccination coverage from surveys (%)
B33: Vitamin A supplementation coverage from surveys (%)
B34: Coverage of all basic vaccinations from surveys (%)
B35: Percentage of children aged six months to 15 years who have received measles vaccination
B36: Number of cases or incidence rates for selected diseases relevant to the local context (cholera, measles, acute meningitis, others)
B37: Case Fatality Ratio (CFR) for most common diseases
B38: Proportion of children U5 with diarrhea in the last two weeks
B39: Prevalence of HIV/AIDS
B40: Proportion of children U5 with fever in malaria-risk areas
B41: Proportion of children U5 who had Acute Respiratory Infections (ARI) in the last 2 weeks
B42: Number of reported cases of cholera or Acute Watery Diarrhea (AWD)
B43: Percentage of healthcare facilities that deliver essential package of health services (including nutrition)
B44: Health-seeking behaviour from population-based surveys
B45: Percentage of population that can access primary healthcare within one hour’s walk from dwellings
B46: Number of HF with Basic Emergency Obstetric Care/ 500,000 population, by administrative unit
B47: Number of skilled birth attendant personnel (doctors, nurses, certified midwives) per 10,000 people
A48: Food Security | B48: PRIORITY: Food Security Cluster/Sector Analysis
B49: Food Consumption Score
B50: Household Hunger Scale
B51: Reduced Coping Strategies Index
B52: Household Dietary Diversity Score

Sheet Analysis Team Composition
A1: ANALYSIS TEAM COMPOSITION MATRIX
E2: (adapted from IPC AMN)
A3: Nutrition Cluster Coordinator: | C3: Stakeholder Organization Representation
A4: Facilitator(s): | C4: Member of the NIS TWG (Yes/No) | D4: (Indicate the name, title, and agency)
D5: National Government | E5: National NGOs/ Civil Society/ Private Sector | F5: Technical Agencies/Academic Institutions | G5: International NGOs | H5: United Nations Agencies
D6: (at all relevant levels)
A7: Area of Expertise (include as relevant for analysis) | B7: Nutrition
B8: Food Security/ Livelihoods
B9: Health
B10: WASH
B11: Gender
B12: Statistics
B13: Other 1
B14: Other 2
B15: Other 3

Sheet Scenario 2 - Nut.Analysis
A1: PHYSICAL AND MENTAL WELL-BEING | D1: SCENARIO 2 with U5 GAM≥5%
B2: Reliability Scores
B3: Based on soundness of method and time relevance (see Figure 2) R2 - Reliable R1 - Somewhat reliable | C3: Based on soundness of method and time relevance (see Figure 2) R2 - Reliable R1 - Somewhat reliable | D3: Based on soundness of method and time relevance (see Figure 2) R2 - Reliable R1 - Somewhat reliable | E3: Based on soundness of method and time relevance (see Figure 2) R2 - Reliable R1 - Somewhat reliable | F3: Based on soundness of method and time relevance (see Figure 2) R2 - Reliable R1 - Somewhat reliable
A5: Admin for "Affected" areas of interest | B5: GAM prevalence % (WHZ) for children 0-59 months | C5: ONLY IF GAM (WHZ) is not available: GAM prevalence % (MUAC) for children 6-59 months | D5: GAM prevalence % for PLW (MUAC<210mm)* | E5: Severity Analysis based on GAM prevalence % | F5: Justification if GAM based on MUAC was used
A6: Use Admin names from the CODs | B6: Insert prevalence data - Automatic classification (see Classification thresholds worksheet) | C6: Insert prevalence data - Automatic classification (see Classification thresholds worksheet) | D6: Insert prevalence data - Automatic classification (see Classification thresholds worksheet) | E6: Automatic Classifier | G6: * adapt with country-level cut-off if different
A7: Badakhshan | B7: 0.12 | C7: 0.15 | D7: 0.45 | E7: =IF(B7<>"", (IF(B7<5%,'Classification thresholds'!$F$2, IF(B7<10%,'Classification thresholds'!$G$2, IF(B7<15%,'Classification thresholds'!$H$2,IF(B7<30%,'Classification thresholds'!$I$2,IF(B7>29%,'Classification thresholds'!$J$2,"")))))), IF(C7<>"",(IF(C7<5%,"Provide justification for value", IF(C7<10%,"Provide justification for value", IF(C7<15%,"Provide justification for value", IF(C7<30%,"Provide justification for value",""))))), IF(D7<>"",(IF(D7<12.5%,'Classification thresholds'!$F$2, IF(D7<20%,'Classification thresholds'!$G$2, IF(D7<25%,'Classification thresholds'!$H$2, IF(D7<35%,'Classification thresholds'!$I$2,IF(D7>34%,'Classification thresholds'!$J$2,"")))))),""))) -> Phase 3
A8: Badghis | B8: 0.17 | D8: 0.15 | E8: =IF(B8<>"", (IF(B8<5%,'Classification thresholds'!$F$2, IF(B8<10%,'Classification thresholds'!$G$2, IF(B8<15%,'Classification thresholds'!$H$2,IF(B8<30%,'Classification thresholds'!$I$2,IF(B8>29%,'Classification thresholds'!$J$2,"")))))), IF(C8<>"",(IF(C8<5%,"Provide justification for value", IF(C8<10%,"Provide justification for value", IF(C8<15%,"Provide justification for value", IF(C8<30%,"Provide justification for value",""))))), IF(D8<>"",(IF(D8<12.5%,'Classification thresholds'!$F$2, IF(D8<20%,'Classification thresholds'!$G$2, IF(D8<25%,'Classification thresholds'!$H$2, IF(D8<35%,'Classification thresholds'!$I$2,IF(D8>34%,'Classification thresholds'!$J$2,"")))))),""))) -> Phase 4
A9: Baghlan | B9: 0.35 | C9: 0.12 | D9: 0.12 | E9: =IF(B9<>"", (IF(B9<5%,'Classification thresholds'!$F$2, IF(B9<10%,'Classification thresholds'!$G$2, IF(B9<15%,'Classification thresholds'!$H$2,IF(B9<30%,'Classification thresholds'!$I$2,IF(B9>29%,'Classification thresholds'!$J$2,"")))))), IF(C9<>"",(IF(C9<5%,"Provide justification for value", IF(C9<10%,"Provide justification for value", IF(C9<15%,"Provide justification for value", IF(C9<30%,"Provide justification for value",""))))), IF(D9<>"",(IF(D9<12.5%,'Classification thresholds'!$F$2, IF(D9<20%,'Classification thresholds'!$G$2, IF(D9<25%,'Classification thresholds'!$H$2, IF(D9<35%,'Classification thresholds'!$I$2,IF(D9>34%,'Classification thresholds'!$J$2,"")))))),""))) -> Phase 5
A10: Balkh | B10: 0.05 | D10: 0.24 | E10: =IF(B10<>"", (IF(B10<5%,'Classification thresholds'!$F$2, IF(B10<10%,'Classification thresholds'!$G$2, IF(B10<15%,'Classification thresholds'!$H$2,IF(B10<30%,'Classification thresholds'!$I$2,IF(B10>29%,'Classification thresholds'!$J$2,"")))))), IF(C10<>"",(IF(C10<5%,"Provide justification for value", IF(C10<10%,"Provide justification for value", IF(C10<15%,"Provide justification for value", IF(C10<30%,"Provide justification for value",""))))), IF(D10<>"",(IF(D10<12.5%,'Classification thresholds'!$F$2, IF(D10<20%,'Classification thresholds'!$G$2, IF(D10<25%,'Classification thresholds'!$H$2, IF(D10<35%,'Classification thresholds'!$I$2,IF(D10>34%,'Classification thresholds'!$J$2,"")))))),""))) -> Phase 2
A11: Bamyan | D11: 0.3 | E11: =IF(B11<>"", (IF(B11<5%,'Classification thresholds'!$F$2, IF(B11<10%,'Classification thresholds'!$G$2, IF(B11<15%,'Classification thresholds'!$H$2,IF(B11<30%,'Classification thresholds'!$I$2,IF(B11>29%,'Classification thresholds'!$J$2,"")))))), IF(C11<>"",(IF(C11<5%,"Provide justification for value", IF(C11<10%,"Provide justification for value", IF(C11<15%,"Provide justification for value", IF(C11<30%,"Provide justification for value",""))))), IF(D11<>"",(IF(D11<12.5%,'Classification thresholds'!$F$2, IF(D11<20%,'Classification thresholds'!$G$2, IF(D11<25%,'Classification thresholds'!$H$2, IF(D11<35%,'Classification thresholds'!$I$2,IF(D11>34%,'Classification thresholds'!$J$2,"")))))),""))) -> Phase 4
A12: Dykundi | B12: 0.05 | E12: =IF(B12<>"", (IF(B12<5%,'Classification thresholds'!$F$2, IF(B12<10%,'Classification thresholds'!$G$2, IF(B12<15%,'Classification thresholds'!$H$2,IF(B12<30%,'Classification thresholds'!$I$2,IF(B12>29%,'Classification thresholds'!$J$2,"")))))), IF(C12<>"",(IF(C12<5%,"Provide justification for value", IF(C12<10%,"Provide justification for value", IF(C12<15%,"Provide justification for value", IF(C12<30%,"Provide justification for value",""))))), IF(D12<>"",(IF(D12<12.5%,'Classification thresholds'!$F$2, IF(D12<20%,'Classification thresholds'!$G$2, IF(D12<25%,'Classification thresholds'!$H$2, IF(D12<35%,'Classification thresholds'!$I$2,IF(D12>34%,'Classification thresholds'!$J$2,"")))))),""))) -> Phase 2
A13: Farah | B13: 0.05 | E13: =IF(B13<>"", (IF(B13<5%,'Classification thresholds'!$F$2, IF(B13<10%,'Classification thresholds'!$G$2, IF(B13<15%,'Classification thresholds'!$H$2,IF(B13<30%,'Classification thresholds'!$I$2,IF(B13>29%,'Classification thresholds'!$J$2,"")))))), IF(C13<>"",(IF(C13<5%,"Provide justification for value", IF(C13<10%,"Provide justification for value", IF(C13<15%,"Provide justification for value", IF(C13<30%,"Provide justification for value",""))))), IF(D13<>"",(IF(D13<12.5%,'Classification thresholds'!$F$2, IF(D13<20%,'Classification thresholds'!$G$2, IF(D13<25%,'Classification thresholds'!$H$2, IF(D13<35%,'Classification thresholds'!$I$2,IF(D13>34%,'Classification thresholds'!$J$2,"")))))),""))) -> Phase 2
A14: Faryab | C14: 0.14 | E14: =IF(B14<>"", (IF(B14<5%,'Classification thresholds'!$F$2, IF(B14<10%,'Classification thresholds'!$G$2, IF(B14<15%,'Classification thresholds'!$H$2,IF(B14<30%,'Classification thresholds'!$I$2,IF(B14>29%,'Classification thresholds'!$J$2,"")))))), IF(C14<>"",(IF(C14<5%,"Provide justification for value", IF(C14<10%,"Provide justification for value", IF(C14<15%,"Provide justification for value", IF(C14<30%,"Provide justification for value",""))))), IF(D14<>"",(IF(D14<12.5%,'Classification thresholds'!$F$2, IF(D14<20%,'Classification thresholds'!$G$2, IF(D14<25%,'Classification thresholds'!$H$2, IF(D14<35%,'Classification thresholds'!$I$2,IF(D14>34%,'Classification thresholds'!$J$2,"")))))),""))) -> Provide justification for value
A15: Ghazni | B15: 0.05 | E15: =IF(B15<>"", (IF(B15<5%,'Classification thresholds'!$F$2, IF(B15<10%,'Classification thresholds'!$G$2, IF(B15<15%,'Classification thresholds'!$H$2,IF(B15<30%,'Classification thresholds'!$I$2,IF(B15>29%,'Classification thresholds'!$J$2,"")))))), IF(C15<>"",(IF(C15<5%,"Provide justification for value", IF(C15<10%,"Provide justification for value", IF(C15<15%,"Provide justification for value", IF(C15<30%,"Provide justification for value",""))))), IF(D15<>"",(IF(D15<12.5%,'Classification thresholds'!$F$2, IF(D15<20%,'Classification thresholds'!$G$2, IF(D15<25%,'Classification thresholds'!$H$2, IF(D15<35%,'Classification thresholds'!$I$2,IF(D15>34%,'Classification thresholds'!$J$2,"")))))),""))) -> Phase 2
A16: Ghor | D16: 0.35 | E16: =IF(B16<>"", (IF(B16<5%,'Classification thresholds'!$F$2, IF(B16<10%,'Classification thresholds'!$G$2, IF(B16<15%,'Classification thresholds'!$H$2,IF(B16<30%,'Classification thresholds'!$I$2,IF(B16>29%,'Classification thresholds'!$J$2,"")))))), IF(C16<>"",(IF(C16<5%,"Provide justification for value", IF(C16<10%,"Provide justification for value", IF(C16<15%,"Provide justification for value", IF(C16<30%,"Provide justification for value",""))))), IF(D16<>"",(IF(D16<12.5%,'Classification thresholds'!$F$2, IF(D16<20%,'Classification thresholds'!$G$2, IF(D16<25%,'Classification thresholds'!$H$2, IF(D16<35%,'Classification thresholds'!$I$2,IF(D16>34%,'Classification thresholds'!$J$2,"")))))),""))) -> Phase 5
A17: Helmand | B17: 0.05 | E17: =IF(B17<>"", (IF(B17<5%,'Classification thresholds'!$F$2, IF(B17<10%,'Classification thresholds'!$G$2, IF(B17<15%,'Classification thresholds'!$H$2,IF(B17<30%,'Classification thresholds'!$I$2,IF(B17>29%,'Classification thresholds'!$J$2,"")))))), IF(C17<>"",(IF(C17<5%,"Provide justification for value", IF(C17<10%,"Provide justification for value", IF(C17<15%,"Provide justification for value", IF(C17<30%,"Provide justification for value",""))))), IF(D17<>"",(IF(D17<12.5%,'Classification thresholds'!$F$2, IF(D17<20%,'Classification thresholds'!$G$2, IF(D17<25%,'Classification thresholds'!$H$2, IF(D17<35%,'Classification thresholds'!$I$2,IF(D17>34%,'Classification thresholds'!$J$2,"")))))),""))) -> Phase 2
A18: Hirat | B18: 0.05 | E18: =IF(B18<>"", (IF(B18<5%,'Classification thresholds'!$F$2, IF(B18<10%,'Classification thresholds'!$G$2, IF(B18<15%,'Classification thresholds'!$H$2,IF(B18<30%,'Classification thresholds'!$I$2,IF(B18>29%,'Classification thresholds'!$J$2,"")))))), IF(C18<>"",(IF(C18<5%,"Provide justification for value", IF(C18<10%,"Provide justification for value", IF(C18<15%,"Provide justification for value", IF(C18<30%,"Provide justification for value",""))))), IF(D18<>"",(IF(D18<12.5%,'Classification thresholds'!$F$2, IF(D18<20%,'Classification thresholds'!$G$2, IF(D18<25%,'Classification thresholds'!$H$2, IF(D18<35%,'Classification thresholds'!$I$2,IF(D18>34%,'Classification thresholds'!$J$2,"")))))),""))) -> Phase 2
A19: Jawzjan | B19: 0.05 | E19: =IF(B19<>"", (IF(B19<5%,'Classification thresholds'!$F$2, IF(B19<10%,'Classification thresholds'!$G$2, IF(B19<15%,'Classification thresholds'!$H$2,IF(B19<30%,'Classification thresholds'!$I$2,IF(B19>29%,'Classification thresholds'!$J$2,"")))))), IF(C19<>"",(IF(C19<5%,"Provide justification for value", IF(C19<10%,"Provide justification for value", IF(C19<15%,"Provide justification for value", IF(C19<30%,"Provide justification for value",""))))), IF(D19<>"",(IF(D19<12.5%,'Classification thresholds'!$F$2, IF(D19<20%,'Classification thresholds'!$G$2, IF(D19<25%,'Classification thresholds'!$H$2, IF(D19<35%,'Classification thresholds'!$I$2,IF(D19>34%,'Classification thresholds'!$J$2,"")))))),""))) -> Phase 2
A20: Kabul | B20: 0.2 | E20: =IF(B20<>"", (IF(B20<5%,'Classification thresholds'!$F$2, IF(B20<10%,'Classification thresholds'!$G$2, IF(B20<15%,'Classification thresholds'!$H$2,IF(B20<30%,'Classification thresholds'!$I$2,IF(B20>29%,'Classification thresholds'!$J$2,"")))))), IF(C20<>"",(IF(C20<5%,"Provide justification for value", IF(C20<10%,"Provide justification for value", IF(C20<15%,"Provide justification for value", IF(C20<30%,"Provide justification for value",""))))), IF(D20<>"",(IF(D20<12.5%,'Classification thresholds'!$F$2, IF(D20<20%,'Classification thresholds'!$G$2, IF(D20<25%,'Classification thresholds'!$H$2, IF(D20<35%,'Classification thresholds'!$I$2,IF(D20>34%,'Classification thresholds'!$J$2,"")))))),""))) -> Phase 4
A21: Kandahar | B21: 0.05 | E21: =IF(B21<>"", (IF(B21<5%,'Classification thresholds'!$F$2, IF(B21<10%,'Classification thresholds'!$G$2, IF(B21<15%,'Classification thresholds'!$H$2,IF(B21<30%,'Classification thresholds'!$I$2,IF(B21>29%,'Classification thresholds'!$J$2,"")))))), IF(C21<>"",(IF(C21<5%,"Provide justification for value", IF(C21<10%,"Provide justification for value", IF(C21<15%,"Provide justification for value", IF(C21<30%,"Provide justification for value",""))))), IF(D21<>"",(IF(D21<12.5%,'Classification thresholds'!$F$2, IF(D21<20%,'Classification thresholds'!$G$2, IF(D21<25%,'Classification thresholds'!$H$2, IF(D21<35%,'Classification thresholds'!$I$2,IF(D21>34%,'Classification thresholds'!$J$2,"")))))),""))) -> Phase 2
A22: Kapisa | B22: 0.05 | E22: =IF(B22<>"", (IF(B22<5%,'Classification thresholds'!$F$2, IF(B22<10%,'Classification thresholds'!$G$2, IF(B22<15%,'Classification thresholds'!$H$2,IF(B22<30%,'Classification thresholds'!$I$2,IF(B22>29%,'Classification thresholds'!$J$2,"")))))), IF(C22<>"",(IF(C22<5%,"Provide justification for value", IF(C22<10%,"Provide justification for value", IF(C22<15%,"Provide justification for value", IF(C22<30%,"Provide justification for value",""))))), IF(D22<>"",(IF(D22<12.5%,'Classification thresholds'!$F$2, IF(D22<20%,'Classification thresholds'!$G$2, IF(D22<25%,'Classification thresholds'!$H$2, IF(D22<35%,'Classification thresholds'!$I$2,IF(D22>34%,'Classification thresholds'!$J$2,"")))))),""))) -> Phase 2
A23: Khost | B23: 0.05 | E23: =IF(B23<>"", (IF(B23<5%,'Classification thresholds'!$F$2, IF(B23<10%,'Classification thresholds'!$G$2, IF(B23<15%,'Classification thresholds'!$H$2,IF(B23<30%,'Classification thresholds'!$I$2,IF(B23>29%,'Classification thresholds'!$J$2,"")))))), IF(C23<>"",(IF(C23<5%,"Provide justification for value", IF(C23<10%,"Provide justification for value", IF(C23<15%,"Provide justification for value", IF(C23<30%,"Provide justification for value",""))))), IF(D23<>"",(IF(D23<12.5%,'Classification thresholds'!$F$2, IF(D23<20%,'Classification thresholds'!$G$2, IF(D23<25%,'Classification thresholds'!$H$2, IF(D23<35%,'Classification thresholds'!$I$2,IF(D23>34%,'Classification thresholds'!$J$2,"")))))),""))) -> Phase 2
A24: Kunar | B24: 0.05 | E24: =IF(B24<>"", (IF(B24<5%,'Classification thresholds'!$F$2, IF(B24<10%,'Classification thresholds'!$G$2, IF(B24<15%,'Classification thresholds'!$H$2,IF(B24<30%,'Classification thresholds'!$I$2,IF(B24>29%,'Classification thresholds'!$J$2,"")))))), IF(C24<>"",(IF(C24<5%,"Provide justification for value", IF(C24<10%,"Provide justification for value", IF(C24<15%,"Provide justification for value", IF(C24<30%,"Provide justification for value",""))))), IF(D24<>"",(IF(D24<12.5%,'Classification thresholds'!$F$2, IF(D24<20%,'Classification thresholds'!$G$2, IF(D24<25%,'Classification thresholds'!$H$2, IF(D24<35%,'Classification thresholds'!$I$2,IF(D24>34%,'Classification thresholds'!$J$2,"")))))),""))) -> Phase 2
A25: Kunduz | B25: 0.05 | E25: =IF(B25<>"", (IF(B25<5%,'Classification thresholds'!$F$2, IF(B25<10%,'Classification thresholds'!$G$2, IF(B25<15%,'Classification thresholds'!$H$2,IF(B25<30%,'Classification thresholds'!$I$2,IF(B25>29%,'Classification thresholds'!$J$2,"")))))), IF(C25<>"",(IF(C25<5%,"Provide justification for value", IF(C25<10%,"Provide justification for value", IF(C25<15%,"Provide justification for value", IF(C25<30%,"Provide justification for value",""))))), IF(D25<>"",(IF(D25<12.5%,'Classification thresholds'!$F$2, IF(D25<20%,'Classification thresholds'!$G$2, IF(D25<25%,'Classification thresholds'!$H$2, IF(D25<35%,'Classification thresholds'!$I$2,IF(D25>34%,'Classification thresholds'!$J$2,"")))))),""))) -> Phase 2
A26: Laghman | B26: 0.05 | E26: =IF(B26<>"", (IF(B26<5%,'Classification thresholds'!$F$2, IF(B26<10%,'Classification thresholds'!$G$2, IF(B26<15%,'Classification thresholds'!$H$2,IF(B26<30%,'Classification thresholds'!$I$2,IF(B26>29%,'Classification thresholds'!$J$2,"")))))), IF(C26<>"",(IF(C26<5%,"Provide justification for value", IF(C26<10%,"Provide justification for value", IF(C26<15%,"Provide justification for value", IF(C26<30%,"Provide justification for value",""))))), IF(D26<>"",(IF(D26<12.5%,'Classification thresholds'!$F$2, IF(D26<20%,'Classification thresholds'!$G$2, IF(D26<25%,'Classification thresholds'!$H$2, IF(D26<35%,'Classification thresholds'!$I$2,IF(D26>34%,'Classification thresholds'!$J$2,"")))))),""))) -> Phase 2
A27: Logar | B27: 0.05 | E27: =IF(B27<>"", (IF(B27<5%,'Classification thresholds'!$F$2, IF(B27<10%,'Classification thresholds'!$G$2, IF(B27<15%,'Classification thresholds'!$H$2,IF(B27<30%,'Classification thresholds'!$I$2,IF(B27>29%,'Classification thresholds'!$J$2,"")))))), IF(C27<>"",(IF(C27<5%,"Provide justification for value", IF(C27<10%,"Provide justification for value", IF(C27<15%,"Provide justification for value", IF(C27<30%,"Provide justification for value",""))))), IF(D27<>"",(IF(D27<12.5%,'Classification thresholds'!$F$2, IF(D27<20%,'Classification thresholds'!$G$2, IF(D27<25%,'Classification thresholds'!$H$2, IF(D27<35%,'Classification thresholds'!$I$2,IF(D27>34%,'Classification thresholds'!$J$2,"")))))),""))) -> Phase 2
A28: Nangarhar | B28: 0.05 | E28: =IF(B28<>"", (IF(B28<5%,'Classification thresholds'!$F$2, IF(B28<10%,'Classification thresholds'!$G$2, IF(B28<15%,'Classification thresholds'!$H$2,IF(B28<30%,'Classification thresholds'!$I$2,IF(B28>29%,'Classification thresholds'!$J$2,"")))))), IF(C28<>"",(IF(C28<5%,"Provide justification for value", IF(C28<10%,"Provide justification for value", IF(C28<15%,"Provide justification for value", IF(C28<30%,"Provide justification for value",""))))), IF(D28<>"",(IF(D28<12.5%,'Classification thresholds'!$F$2, IF(D28<20%,'Classification thresholds'!$G$2, IF(D28<25%,'Classification thresholds'!$H$2, IF(D28<35%,'Classification thresholds'!$I$2,IF(D28>34%,'Classification thresholds'!$J$2,"")))))),""))) -> Phase 2
A29: Nimroz | B29: 0.05 | E29: =IF(B29<>"", (IF(B29<5%,'Classification thresholds'!$F$2, IF(B29<10%,'Classification thresholds'!$G$2, IF(B29<15%,'Classification thresholds'!$H$2,IF(B29<30%,'Classification thresholds'!$I$2,IF(B29>29%,'Classification thresholds'!$J$2,"")))))), IF(C29<>"",(IF(C29<5%,"Provide justification for value", IF(C29<10%,"Provide justification for value", IF(C29<15%,"Provide justification for value", IF(C29<30%,"Provide justification for value",""))))), IF(D29<>"",(IF(D29<12.5%,'Classification thresholds'!$F$2, IF(D29<20%,'Classification thresholds'!$G$2, IF(D29<25%,'Classification thresholds'!$H$2, IF(D29<35%,'Classification thresholds'!$I$2,IF(D29>34%,'Classification thresholds'!$J$2,"")))))),""))) -> Phase 2
A30: Nuristan | B30: 0.05 | E30: =IF(B30<>"", (IF(B30<5%,'Classification thresholds'!$F$2, IF(B30<10%,'Classification thresholds'!$G$2, IF(B30<15%,'Classification thresholds'!$H$2,IF(B30<30%,'Classification thresholds'!$I$2,IF(B30>29%,'Classification thresholds'!$J$2,"")))))), IF(C30<>"",(IF(C30<5%,"Provide justification for value", IF(C30<10%,"Provide justification for value", IF(C30<15%,"Provide justification for value", IF(C30<30%,"Provide justification for value",""))))), IF(D30<>"",(IF(D30<12.5%,'Classification thresholds'!$F$2, IF(D30<20%,'Classification thresholds'!$G$2, IF(D30<25%,'Classification thresholds'!$H$2, IF(D30<35%,'Classification thresholds'!$I$2,IF(D30>34%,'Classification thresholds'!$J$2,"")))))),""))) -> Phase 2
A31: Paktika | B31: 0.05 | E31: =IF(B31<>"", (IF(B31<5%,'Classification thresholds'!$F$2, IF(B31<10%,'Classification thresholds'!$G$2, IF(B31<15%,'Classification thresholds'!$H$2,IF(B31<30%,'Classification thresholds'!$I$2,IF(B31>29%,'Classification thresholds'!$J$2,"")))))), IF(C31<>"",(IF(C31<5%,"Provide justification for value", IF(C31<10%,"Provide justification for value", IF(C31<15%,"Provide justification for value", IF(C31<30%,"Provide justification for value",""))))), IF(D31<>"",(IF(D31<12.5%,'Classification thresholds'!$F$2, IF(D31<20%,'Classification thresholds'!$G$2, IF(D31<25%,'Classification thresholds'!$H$2, IF(D31<35%,'Classification thresholds'!$I$2,IF(D31>34%,'Classification thresholds'!$J$2,"")))))),""))) -> Phase 2
A32: Paktya | B32: 0.05 | E32: =IF(B32<>"", (IF(B32<5%,'Classification thresholds'!$F$2, IF(B32<10%,'Classification thresholds'!$G$2, IF(B32<15%,'Classification thresholds'!$H$2,IF(B32<30%,'Classification thresholds'!$I$2,IF(B32>29%,'Classification thresholds'!$J$2,"")))))), IF(C32<>"",(IF(C32<5%,"Provide justification for value", IF(C32<10%,"Provide justification for value", IF(C32<15%,"Provide justification for value", IF(C32<30%,"Provide justification for value",""))))), IF(D32<>"",(IF(D32<12.5%,'Classification thresholds'!$F$2, IF(D32<20%,'Classification thresholds'!$G$2, IF(D32<25%,'Classification thresholds'!$H$2, IF(D32<35%,'Classification thresholds'!$I$2,IF(D32>34%,'Classification thresholds'!$J$2,"")))))),""))) -> Phase 2
A33: Panjsher | B33: 0.05 | E33: =IF(B33<>"", (IF(B33<5%,'Classification thresholds'!$F$2, IF(B33<10%,'Classification thresholds'!$G$2, IF(B33<15%,'Classification thresholds'!$H$2,IF(B33<30%,'Classification thresholds'!$I$2,IF(B33>29%,'Classification thresholds'!$J$2,"")))))), IF(C33<>"",(IF(C33<5%,"Provide justification for value", IF(C33<10%,"Provide justification for value", IF(C33<15%,"Provide justification for value", IF(C33<30%,"Provide justification for value",""))))), IF(D33<>"",(IF(D33<12.5%,'Classification thresholds'!$F$2, IF(D33<20%,'Classification thresholds'!$G$2, IF(D33<25%,'Classification thresholds'!$H$2, IF(D33<35%,'Classification thresholds'!$I$2,IF(D33>34%,'Classification thresholds'!$J$2,"")))))),""))) -> Phase 2
A34: Parwan | B34: 0.05 | E34: =IF(B34<>"", (IF(B34<5%,'Classification thresholds'!$F$2, IF(B34<10%,'Classification thresholds'!$G$2, IF(B34<15%,'Classification thresholds'!$H$2,IF(B34<30%,'Classification thresholds'!$I$2,IF(B34>29%,'Classification thresholds'!$J$2,"")))))), IF(C34<>"",(IF(C34<5%,"Provide justification for value", IF(C34<10%,"Provide justification for value", IF(C34<15%,"Provide justification for value", IF(C34<30%,"Provide justification for value",""))))), IF(D34<>"",(IF(D34<12.5%,'Classification thresholds'!$F$2, IF(D34<20%,'Classification thresholds'!$G$2, IF(D34<25%,'Classification thresholds'!$H$2, IF(D34<35%,'Classification thresholds'!$I$2,IF(D34>34%,'Classification thresholds'!$J$2,"")))))),""))) -> Phase 2
A35: Samangan | B35: 0.05 | E35: =IF(B35<>"", (IF(B35<5%,'Classification thresholds'!$F$2, IF(B35<10%,'Classification thresholds'!$G$2, IF(B35<15%,'Classification thresholds'!$H$2,IF(B35<30%,'Classification thresholds'!$I$2,IF(B35>29%,'Classification thresholds'!$J$2,"")))))), IF(C35<>"",(IF(C35<5%,"Provide justification for value", IF(C35<10%,"Provide justification for value", IF(C35<15%,"Provide justification for value", IF(C35<30%,"Provide justification for value",""))))), IF(D35<>"",(IF(D35<12.5%,'Classification thresholds'!$F$2, IF(D35<20%,'Classification thresholds'!$G$2, IF(D35<25%,'Classification thresholds'!$H$2, IF(D35<35%,'Classification thresholds'!$I$2,IF(D35>34%,'Classification thresholds'!$J$2,"")))))),""))) -> Phase 2
A36: Sar-e-Pul | B36: 0.05 | E36: =IF(B36<>"", (IF(B36<5%,'Classification thresholds'!$F$2, IF(B36<10%,'Classification thresholds'!$G$2, IF(B36<15%,'Classification thresholds'!$H$2,IF(B36<30%,'Classification thresholds'!$I$2,IF(B36>29%,'Classification thresholds'!$J$2,"")))))), IF(C36<>"",(IF(C36<5%,"Provide justification for value", IF(C36<10%,"Provide justification for value", IF(C36<15%,"Provide justification for value", IF(C36<30%,"Provide justification for value",""))))), IF(D36<>"",(IF(D36<12.5%,'Classification thresholds'!$F$2, IF(D36<20%,'Classification thresholds'!$G$2, IF(D36<25%,'Classification thresholds'!$H$2, IF(D36<35%,'Classification thresholds'!$I$2,IF(D36>34%,'Classification thresholds'!$J$2,"")))))),""))) -> Phase 2
E37: =IF(B37<>"", (IF(B37<5%,'Classification thresholds'!$F$2, IF(B37<10%,'Classification thresholds'!$G$2, IF(B37<15%,'Classification thresholds'!$H$2,IF(B37<30%,'Classification thresholds'!$I$2,IF(B37>29%,'Classification thresholds'!$J$2,"")))))), IF(C37<>"",(IF(C37<5%,"Provide justification for value", IF(C37<10%,"Provide justification for value", IF(C37<15%,"Provide justification for value", IF(C37<30%,"Provide justification for value",""))))), IF(D37<>"",(IF(D37<12.5%,'Classification thresholds'!$F$2, IF(D37<20%,'Classification thresholds'!$G$2, IF(D37<25%,'Classification thresholds'!$H$2, IF(D37<35%,'Classification thresholds'!$I$2,IF(D37>34%,'Classification thresholds'!$J$2,"")))))),""))) -> 
E38: =IF(B38<>"", (IF(B38<5%,'Classification thresholds'!$F$2, IF(B38<10%,'Classification thresholds'!$G$2, IF(B38<15%,'Classification thresholds'!$H$2,IF(B38<30%,'Classification thresholds'!$I$2,IF(B38>29%,'Classification thresholds'!$J$2,"")))))), IF(C38<>"",(IF(C38<5%,"Provide justification for value", IF(C38<10%,"Provide justification for value", IF(C38<15%,"Provide justification for value", IF(C38<30%,"Provide justification for value",""))))), IF(D38<>"",(IF(D38<12.5%,'Classification thresholds'!$F$2, IF(D38<20%,'Classification thresholds'!$G$2, IF(D38<25%,'Classification thresholds'!$H$2, IF(D38<35%,'Classification thresholds'!$I$2,IF(D38>34%,'Classification thresholds'!$J$2,"")))))),""))) -> 
E39: =IF(B39<>"", (IF(B39<5%,'Classification thresholds'!$F$2, IF(B39<10%,'Classification thresholds'!$G$2, IF(B39<15%,'Classification thresholds'!$H$2,IF(B39<30%,'Classification thresholds'!$I$2,IF(B39>29%,'Classification thresholds'!$J$2,"")))))), IF(C39<>"",(IF(C39<5%,"Provide justification for value", IF(C39<10%,"Provide justification for value", IF(C39<15%,"Provide justification for value", IF(C39<30%,"Provide justification for value",""))))), IF(D39<>"",(IF(D39<12.5%,'Classification thresholds'!$F$2, IF(D39<20%,'Classification thresholds'!$G$2, IF(D39<25%,'Classification thresholds'!$H$2, IF(D39<35%,'Classification thresholds'!$I$2,IF(D39>34%,'Classification thresholds'!$J$2,"")))))),""))) -> 
E40: =IF(B40<>"", (IF(B40<5%,'Classification thresholds'!$F$2, IF(B40<10%,'Classification thresholds'!$G$2, IF(B40<15%,'Classification thresholds'!$H$2,IF(B40<30%,'Classification thresholds'!$I$2,IF(B40>29%,'Classification thresholds'!$J$2,"")))))), IF(C40<>"",(IF(C40<5%,"Provide justification for value", IF(C40<10%,"Provide justification for value", IF(C40<15%,"Provide justification for value", IF(C40<30%,"Provide justification for value",""))))), IF(D40<>"",(IF(D40<12.5%,'Classification thresholds'!$F$2, IF(D40<20%,'Classification thresholds'!$G$2, IF(D40<25%,'Classification thresholds'!$H$2, IF(D40<35%,'Classification thresholds'!$I$2,IF(D40>34%,'Classification thresholds'!$J$2,"")))))),""))) -> 
E41: =IF(B41<>"", (IF(B41<5%,'Classification thresholds'!$F$2, IF(B41<10%,'Classification thresholds'!$G$2, IF(B41<15%,'Classification thresholds'!$H$2,IF(B41<30%,'Classification thresholds'!$I$2,IF(B41>29%,'Classification thresholds'!$J$2,"")))))), IF(C41<>"",(IF(C41<5%,"Provide justification for value", IF(C41<10%,"Provide justification for value", IF(C41<15%,"Provide justification for value", IF(C41<30%,"Provide justification for value",""))))), IF(D41<>"",(IF(D41<12.5%,'Classification thresholds'!$F$2, IF(D41<20%,'Classification thresholds'!$G$2, IF(D41<25%,'Classification thresholds'!$H$2, IF(D41<35%,'Classification thresholds'!$I$2,IF(D41>34%,'Classification thresholds'!$J$2,"")))))),""))) -> 
E42: =IF(B42<>"", (IF(B42<5%,'Classification thresholds'!$F$2, IF(B42<10%,'Classification thresholds'!$G$2, IF(B42<15%,'Classification thresholds'!$H$2,IF(B42<30%,'Classification thresholds'!$I$2,IF(B42>29%,'Classification thresholds'!$J$2,"")))))), IF(C42<>"",(IF(C42<5%,"Provide justification for value", IF(C42<10%,"Provide justification for value", IF(C42<15%,"Provide justification for value", IF(C42<30%,"Provide justification for value",""))))), IF(D42<>"",(IF(D42<12.5%,'Classification thresholds'!$F$2, IF(D42<20%,'Classification thresholds'!$G$2, IF(D42<25%,'Classification thresholds'!$H$2, IF(D42<35%,'Classification thresholds'!$I$2,IF(D42>34%,'Classification thresholds'!$J$2,"")))))),""))) -> 
E43: =IF(B43<>"", (IF(B43<5%,'Classification thresholds'!$F$2, IF(B43<10%,'Classification thresholds'!$G$2, IF(B43<15%,'Classification thresholds'!$H$2,IF(B43<30%,'Classification thresholds'!$I$2,IF(B43>29%,'Classification thresholds'!$J$2,"")))))), IF(C43<>"",(IF(C43<5%,"Provide justification for value", IF(C43<10%,"Provide justification for value", IF(C43<15%,"Provide justification for value", IF(C43<30%,"Provide justification for value",""))))), IF(D43<>"",(IF(D43<12.5%,'Classification thresholds'!$F$2, IF(D43<20%,'Classification thresholds'!$G$2, IF(D43<25%,'Classification thresholds'!$H$2, IF(D43<35%,'Classification thresholds'!$I$2,IF(D43>34%,'Classification thresholds'!$J$2,"")))))),""))) -> 
E44: =IF(B44<>"", (IF(B44<5%,'Classification thresholds'!$F$2, IF(B44<10%,'Classification thresholds'!$G$2, IF(B44<15%,'Classification thresholds'!$H$2,IF(B44<30%,'Classification thresholds'!$I$2,IF(B44>29%,'Classification thresholds'!$J$2,"")))))), IF(C44<>"",(IF(C44<5%,"Provide justification for value", IF(C44<10%,"Provide justification for value", IF(C44<15%,"Provide justification for value", IF(C44<30%,"Provide justification for value",""))))), IF(D44<>"",(IF(D44<12.5%,'Classification thresholds'!$F$2, IF(D44<20%,'Classification thresholds'!$G$2, IF(D44<25%,'Classification thresholds'!$H$2, IF(D44<35%,'Classification thresholds'!$I$2,IF(D44>34%,'Classification thresholds'!$J$2,"")))))),""))) -> 

Sheet Scenario 2 Contributing Fact
A1: ANALYSIS OF CONTRIBUTING FACTORS | F1: Phase 1 | G1: Phase 2 | H1: Phase 3 | I1: Phase 4 | J1: Phase 5 | K1: No data
D2: PROPOSED SCORING SYSTEM | F2: Acceptable/ Minimal | G2: Alert/ Stress | H2: Serious/ Severe | I2: Critical/ Extreme | J2: Extremely Critical/ Catastrophic
E3: Similar to IPC Classification | F3: No contributing factor | G3: Minor contributing factor | H3: Major contributing factor | I3: Critical contributing factor
B5: ONLY FOR SCENARIO 2 | M5: Contextual Factors | O5: Food Security | T5: WASH | X5: Health
A6: Admin for "Affected" areas of interest | B6: Stunting prevalence % (HAZ) for children 0-59 months | C6: Prevalence of overweight in children 0-59 months | D6: Prevalence of anemia in children 6-59 months | E6: Prevalence of anemia in pregnant women | F6: GAM prevalence % for Older People (MUAC<210mm) | G6: GAM prevalence % for Adolescents (BMI-for-Age) | H6: Prevalence % of exclusive breastfeeding for children 0-5 months | I6: % of infants 0-5 months that are not breastfed who have access to BMS supplies and support | J6: % of infants 6-11 months that are not breastfed who have access to BMS supplies and support | K6: Minimum Dietary Diversity in children 6-23 months | L6: Minimum Meal Frequency in children 6-23 months | M6: Crude Death Rate (excluding trauma) | N6: U5 Death Rate (excluding trauma) | O6: Food Security Cluster/Sector Analysis | P6: Food Consumption Score | Q6: Household Hunger Scale | R6: Reduced Coping Strategies Index | S6: Household Dietary Diversity Score | T6: % of HHs having access to an improved water source | U6: % of HHs having access to a sufficient quantity of water for drinking, cooking, bathing, washing or other domestic use | V6: % of HHs having access to a functionnal and improved sanitation facility | W6: % of HHs with access to functioning handwashing facilities, with water and soap available or % of HHs with access to soap | X6: Coverage of DTC3 (DPT3 / PENTA3) in < 1 year old, by administrative unit (%) | Y6: Percentage of children aged six months to 15 years who have received measles vaccination | Z6: Routine measles vaccination coverage (%) | AA6: Routine polio vaccination coverage (%) | AB6: Routine Vitamin A supplementation coverage (%) | AC6: Campaign measles vaccination coverage (%) | AD6: Campaign polio vaccination coverage (%) | AE6: Campaign Vitamin A supplementation coverage (%) | AF6: Measles vaccination coverage from surveys (%) | AG6: Polio vaccination coverage from surveys (%) | AH6: Vitamin A supplementation coverage from surveys (%) | AI6: Coverage of all basic vaccinations from surveys (%) | AJ6: Number of cases or incidence rates for selected diseases relevant to the local context (cholera, measles, acute meningitis, others) | AK6: Case Fatality Ratio (CFR) for most common diseases | AL6: Percentage of healthcare facilities that deliver essential package of health services | AM6: Health-seeking behaviour from population-based surveys | AN6: Percentage of population that can access primary healthcare within one hour’s walk from dwellings | AO6: Number of HF with Basic Emergency Obstetric Care/ 500,000 population, by administrative unit | AP6: Number of skilled birth attendant personnel (doctors, nurses, certified midwives) per 10,000 people | AQ6: Proportion of children U5 with diarrhea in the last two weeks | AR6: Prevalence of HIV/AIDS | AS6: Proportion of children U5 with fever in malaria-risk areas | AT6: Proportion of children U5 who had Acute Respiratory Infections (ARI) in the last 2 weeks | AU6: Number of reported cases of cholera or Acute Watery Diarrhea (AWD)
A7: Use Admin names from the CODs | B7: Insert prevalence data - Automatic classification | C7: Insert prevalence data - Automatic classification | D7: Insert prevalence data - Automatic classification | E7: Insert prevalence data - Automatic classification | F7: Insert prevalence data - Automatic classification | G7: Insert prevalence data - Automatic classification | H7: Insert prevalence data - Automatic classification | I7: Insert prevalence data - Automatic classification | J7: Insert prevalence data - Automatic classification | K7: Insert prevalence data - Automatic classification | L7: Insert prevalence data - Automatic classification | M7: Insert rate - Automatic classification | N7: Insert rate - Automatic classification | O7: Manually Insert Phase Number based on Classification Thresholds | P7: Manually Insert Phase Number based on Classification Thresholds | Q7: Manually Insert Phase Number based on Classification Thresholds | R7: Manually Insert Phase Number based on Classification Thresholds | S7: Manually Insert Phase Number based on Classification Thresholds | T7: Manually Insert Phase Number based on Classification Thresholds | U7: Manually Insert Phase Number based on Classification Thresholds | V7: Manually Insert Phase Number based on Classification Thresholds | W7: Manually Insert Phase Number based on Classification Thresholds | X7: Manually Insert Phase Number based on Classification Thresholds | Y7: Manually Insert Phase Number based on Classification Thresholds | Z7: No proposed threshold. Use of consensus and expert judgement to determine phase | AA7: No proposed threshold. Use of consensus and expert judgement to determine phase | AB7: No proposed threshold. Use of consensus and expert judgement to determine phase | AC7: No proposed threshold. Use of consensus and expert judgement to determine phase | AD7: No proposed threshold. Use of consensus and expert judgement to determine phase | AE7: No proposed threshold. Use of consensus and expert judgement to determine phase | AF7: No proposed threshold. Use of consensus and expert judgement to determine phase | AG7: No proposed threshold. Use of consensus and expert judgement to determine phase | AH7: No proposed threshold. Use of consensus and expert judgement to determine phase | AI7: No proposed threshold. Use of consensus and expert judgement to determine phase | AJ7: Manually Insert Phase Number based on Classification Thresholds | AK7: No proposed thresholds. Use of consensus and expert judgement to determine phase | AL7: No proposed thresholds. Use of consensus and expert judgement to determine phase | AM7: No proposed thresholds. Use of consensus and expert judgement to determine phase | AN7: Manually Insert Phase Number based on Classification Thresholds | AO7: Manually Insert Phase Number based on Classification Thresholds | AP7: Manually Insert Phase Number based on Classification Thresholds | AQ7: No proposed thresholds. Use of consensus and expert judgement to determine phase | AR7: No proposed thresholds. Use of consensus and expert judgement to determine phase | AS7: No proposed thresholds. Use of consensus and expert judgement to determine phase | AT7: No proposed thresholds. Use of consensus and expert judgement to determine phase | AU7: No proposed thresholds. Use of consensus and expert judgement to determine phase
A8: Badakhshan | M8: 2 | N8: 2 | O8: 1 | P8: 1 | Q8: 1 | R8: 1 | S8: 1 | T8: 1 | U8: 1 | V8: 1 | W8: 1 | X8: 1 | Y8: 1 | Z8: 1 | AA8: 1 | AB8: 1 | AC8: 1 | AD8: 1 | AE8: 1 | AF8: 1 | AG8: 1 | AH8: 1 | AI8: 1 | AJ8: 1 | AK8: 1 | AL8: 1 | AM8: 1 | AN8: 1 | AO8: 1 | AP8: 1 | AQ8: 1 | AR8: 1 | AS8: 1 | AT8: 1 | AU8: 1
A9: Badghis | M9: 1 | N9: 1 | O9: 2 | P9: 2 | Q9: 2 | R9: 2 | S9: 2 | T9: 2 | U9: 2 | V9: 2 | W9: 2 | X9: 2 | Y9: 2 | Z9: 2 | AA9: 2 | AB9: 2 | AC9: 2 | AD9: 2 | AE9: 2 | AF9: 2 | AG9: 2 | AH9: 2 | AI9: 2 | AJ9: 2 | AK9: 2 | AL9: 2 | AM9: 2 | AN9: 2 | AO9: 2 | AP9: 2 | AQ9: 2 | AR9: 2 | AS9: 2 | AT9: 2 | AU9: 2
A10: Baghlan | M10: 1 | N10: 1 | O10: 3 | P10: 3 | Q10: 3 | R10: 3 | S10: 3 | T10: 3 | U10: 3 | V10: 3 | W10: 3 | X10: 3 | Y10: 3 | Z10: 3 | AA10: 3 | AB10: 3 | AC10: 3 | AD10: 3 | AE10: 3 | AF10: 3 | AG10: 3 | AH10: 3 | AI10: 3 | AJ10: 3 | AK10: 3 | AL10: 3 | AM10: 3 | AN10: 3 | AO10: 3 | AP10: 3 | AQ10: 3 | AR10: 3 | AS10: 3 | AT10: 3 | AU10: 3
A11: Balkh | M11: 1 | N11: 1 | O11: 4 | P11: 4 | Q11: 4 | R11: 4 | S11: 4 | T11: 4 | U11: 4 | V11: 4 | W11: 4 | X11: 4 | Y11: 4 | Z11: 4 | AA11: 4 | AB11: 4 | AC11: 4 | AD11: 4 | AE11: 4 | AF11: 4 | AG11: 4 | AH11: 4 | AI11: 4 | AJ11: 4 | AK11: 4 | AL11: 4 | AM11: 4 | AN11: 4 | AO11: 4 | AP11: 4 | AQ11: 4 | AR11: 4 | AS11: 4 | AT11: 4 | AU11: 4
A12: Bamyan | M12: 2 | N12: 2 | O12: 5 | P12: 5 | Q12: 5 | R12: 5 | S12: 5 | T12: 5 | U12: 5 | V12: 5 | W12: 5 | X12: 5 | Y12: 5 | Z12: 5 | AA12: 5 | AB12: 5 | AC12: 5 | AD12: 5 | AE12: 5 | AF12: 5 | AG12: 5 | AH12: 5 | AI12: 5 | AJ12: 5 | AK12: 5 | AL12: 5 | AM12: 5 | AN12: 5 | AO12: 5 | AP12: 5 | AQ12: 5 | AR12: 5 | AS12: 5 | AT12: 5 | AU12: 5
A13: Dykundi | M13: 2 | N13: 2 | O13: 1 | P13: 1 | Q13: 1 | R13: 1 | S13: 1 | T13: 1 | U13: 1 | V13: 1 | W13: 1 | X13: 1 | Y13: 1 | Z13: 1 | AA13: 1 | AB13: 1 | AC13: 1 | AD13: 1 | AE13: 1 | AF13: 1 | AG13: 1 | AH13: 1 | AI13: 1 | AJ13: 1 | AK13: 1 | AL13: 1 | AM13: 1 | AN13: 1 | AO13: 1 | AP13: 1 | AQ13: 1 | AR13: 1 | AS13: 1 | AT13: 1 | AU13: 1
A14: Farah | M14: 2 | N14: 2 | O14: 2 | P14: 2 | Q14: 2 | R14: 2 | S14: 2 | T14: 2 | U14: 2 | V14: 2 | W14: 2 | X14: 2 | Y14: 2 | Z14: 2 | AA14: 2 | AB14: 2 | AC14: 2 | AD14: 2 | AE14: 2 | AF14: 2 | AG14: 2 | AH14: 2 | AI14: 2 | AJ14: 2 | AK14: 2 | AL14: 2 | AM14: 2 | AN14: 2 | AO14: 2 | AP14: 2 | AQ14: 2 | AR14: 2 | AS14: 2 | AT14: 2 | AU14: 2
A15: Faryab | M15: 2 | N15: 2 | O15: 3 | P15: 3 | Q15: 3 | R15: 3 | S15: 3 | T15: 3 | U15: 3 | V15: 3 | W15: 3 | X15: 3 | Y15: 3 | Z15: 3 | AA15: 3 | AB15: 3 | AC15: 3 | AD15: 3 | AE15: 3 | AF15: 3 | AG15: 3 | AH15: 3 | AI15: 3 | AJ15: 3 | AK15: 3 | AL15: 3 | AM15: 3 | AN15: 3 | AO15: 3 | AP15: 3 | AQ15: 3 | AR15: 3 | AS15: 3 | AT15: 3 | AU15: 3
A16: Ghazni | M16: 2 | N16: 2 | O16: 4 | P16: 4 | Q16: 4 | R16: 4 | S16: 4 | T16: 4 | U16: 4 | V16: 4 | W16: 4 | X16: 4 | Y16: 4 | Z16: 4 | AA16: 4 | AB16: 4 | AC16: 4 | AD16: 4 | AE16: 4 | AF16: 4 | AG16: 4 | AH16: 4 | AI16: 4 | AJ16: 4 | AK16: 4 | AL16: 4 | AM16: 4 | AN16: 4 | AO16: 4 | AP16: 4 | AQ16: 4 | AR16: 4 | AS16: 4 | AT16: 4 | AU16: 4
A17: Ghor | M17: 2 | N17: 2 | O17: 5 | P17: 5 | Q17: 5 | R17: 5 | S17: 5 | T17: 5 | U17: 5 | V17: 5 | W17: 5 | X17: 5 | Y17: 5 | Z17: 5 | AA17: 5 | AB17: 5 | AC17: 5 | AD17: 5 | AE17: 5 | AF17: 5 | AG17: 5 | AH17: 5 | AI17: 5 | AJ17: 5 | AK17: 5 | AL17: 5 | AM17: 5 | AN17: 5 | AO17: 5 | AP17: 5 | AQ17: 5 | AR17: 5 | AS17: 5 | AT17: 5 | AU17: 5
A18: Helmand | M18: 2 | N18: 2 | O18: 1 | P18: 1 | Q18: 1 | R18: 1 | S18: 1 | T18: 1 | U18: 1 | V18: 1 | W18: 1 | X18: 1 | Y18: 1 | Z18: 1 | AA18: 1 | AB18: 1 | AC18: 1 | AD18: 1 | AE18: 1 | AF18: 1 | AG18: 1 | AH18: 1 | AI18: 1 | AJ18: 1 | AK18: 1 | AL18: 1 | AM18: 1 | AN18: 1 | AO18: 1 | AP18: 1 | AQ18: 1 | AR18: 1 | AS18: 1 | AT18: 1 | AU18: 1
A19: Hirat | M19: 1 | N19: 1 | O19: 2 | P19: 2 | Q19: 2 | R19: 2 | S19: 2 | T19: 2 | U19: 2 | V19: 2 | W19: 2 | X19: 2 | Y19: 2 | Z19: 2 | AA19: 2 | AB19: 2 | AC19: 2 | AD19: 2 | AE19: 2 | AF19: 2 | AG19: 2 | AH19: 2 | AI19: 2 | AJ19: 2 | AK19: 2 | AL19: 2 | AM19: 2 | AN19: 2 | AO19: 2 | AP19: 2 | AQ19: 2 | AR19: 2 | AS19: 2 | AT19: 2 | AU19: 2
A20: Jawzjan | M20: 0.5 | N20: 0.5 | O20: 3 | P20: 3 | Q20: 3 | R20: 3 | S20: 3 | T20: 3 | U20: 3 | V20: 3 | W20: 3 | X20: 3 | Y20: 3 | Z20: 3 | AA20: 3 | AB20: 3 | AC20: 3 | AD20: 3 | AE20: 3 | AF20: 3 | AG20: 3 | AH20: 3 | AI20: 3 | AJ20: 3 | AK20: 3 | AL20: 3 | AM20: 3 | AN20: 3 | AO20: 3 | AP20: 3 | AQ20: 3 | AR20: 3 | AS20: 3 | AT20: 3 | AU20: 3
A21: Kabul | M21: 0.4 | N21: 0.5 | O21: 4 | P21: 4 | Q21: 4 | R21: 4 | S21: 4 | T21: 4 | U21: 4 | V21: 4 | W21: 4 | X21: 4 | Y21: 4 | Z21: 4 | AA21: 4 | AB21: 4 | AC21: 4 | AD21: 4 | AE21: 4 | AF21: 4 | AG21: 4 | AH21: 4 | AI21: 4 | AJ21: 4 | AK21: 4 | AL21: 4 | AM21: 4 | AN21: 4 | AO21: 4 | AP21: 4 | AQ21: 4 | AR21: 4 | AS21: 4 | AT21: 4 | AU21: 4
A22: Kandahar | M22: 0.4 | N22: 0.5 | O22: 5 | P22: 5 | Q22: 5 | R22: 5 | S22: 5 | T22: 5 | U22: 5 | V22: 5 | W22: 5 | X22: 5 | Y22: 5 | Z22: 5 | AA22: 5 | AB22: 5 | AC22: 5 | AD22: 5 | AE22: 5 | AF22: 5 | AG22: 5 | AH22: 5 | AI22: 5 | AJ22: 5 | AK22: 5 | AL22: 5 | AM22: 5 | AN22: 5 | AO22: 5 | AP22: 5 | AQ22: 5 | AR22: 5 | AS22: 5 | AT22: 5 | AU22: 5
A23: Kapisa | M23: 0.4 | N23: 0.5 | O23: 1 | P23: 1 | Q23: 1 | R23: 1 | S23: 1 | T23: 1 | U23: 1 | V23: 1 | W23: 1 | X23: 1 | Y23: 1 | Z23: 1 | AA23: 1 | AB23: 1 | AC23: 1 | AD23: 1 | AE23: 1 | AF23: 1 | AG23: 1 | AH23: 1 | AI23: 1 | AJ23: 1 | AK23: 1 | AL23: 1 | AM23: 1 | AN23: 1 | AO23: 1 | AP23: 1 | AQ23: 1 | AR23: 1 | AS23: 1 | AT23: 1 | AU23: 1
A24: Khost | M24: 0.4 | N24: 0.5 | O24: 2 | P24: 2 | Q24: 2 | R24: 2 | S24: 2 | T24: 2 | U24: 2 | V24: 2 | W24: 2 | X24: 2 | Y24: 2 | Z24: 2 | AA24: 2 | AB24: 2 | AC24: 2 | AD24: 2 | AE24: 2 | AF24: 2 | AG24: 2 | AH24: 2 | AI24: 2 | AJ24: 2 | AK24: 2 | AL24: 2 | AM24: 2 | AN24: 2 | AO24: 2 | AP24: 2 | AQ24: 2 | AR24: 2 | AS24: 2 | AT24: 2 | AU24: 2
A25: Kunar | M25: 0.4 | N25: 0.5 | O25: 3 | P25: 3 | Q25: 3 | R25: 3 | S25: 3 | T25: 3 | U25: 3 | V25: 3 | W25: 3 | X25: 3 | Y25: 3 | Z25: 3 | AA25: 3 | AB25: 3 | AC25: 3 | AD25: 3 | AE25: 3 | AF25: 3 | AG25: 3 | AH25: 3 | AI25: 3 | AJ25: 3 | AK25: 3 | AL25: 3 | AM25: 3 | AN25: 3 | AO25: 3 | AP25: 3 | AQ25: 3 | AR25: 3 | AS25: 3 | AT25: 3 | AU25: 3
A26: Kunduz | M26: 0.4 | N26: 0.5 | O26: 4 | P26: 4 | Q26: 4 | R26: 4 | S26: 4 | T26: 4 | U26: 4 | V26: 4 | W26: 4 | X26: 4 | Y26: 4 | Z26: 4 | AA26: 4 | AB26: 4 | AC26: 4 | AD26: 4 | AE26: 4 | AF26: 4 | AG26: 4 | AH26: 4 | AI26: 4 | AJ26: 4 | AK26: 4 | AL26: 4 | AM26: 4 | AN26: 4 | AO26: 4 | AP26: 4 | AQ26: 4 | AR26: 4 | AS26: 4 | AT26: 4 | AU26: 4
A27: Laghman | M27: 0.4 | N27: 0.5 | O27: 5 | P27: 5 | Q27: 5 | R27: 5 | S27: 5 | T27: 5 | U27: 5 | V27: 5 | W27: 5 | X27: 5 | Y27: 5 | Z27: 5 | AA27: 5 | AB27: 5 | AC27: 5 | AD27: 5 | AE27: 5 | AF27: 5 | AG27: 5 | AH27: 5 | AI27: 5 | AJ27: 5 | AK27: 5 | AL27: 5 | AM27: 5 | AN27: 5 | AO27: 5 | AP27: 5 | AQ27: 5 | AR27: 5 | AS27: 5 | AT27: 5 | AU27: 5
A28: Logar | M28: 0.4 | N28: 0.5 | O28: 1 | P28: 1 | Q28: 1 | R28: 1 | S28: 1 | T28: 1 | U28: 1 | V28: 1 | W28: 1 | X28: 1 | Y28: 1 | Z28: 1 | AA28: 1 | AB28: 1 | AC28: 1 | AD28: 1 | AE28: 1 | AF28: 1 | AG28: 1 | AH28: 1 | AI28: 1 | AJ28: 1 | AK28: 1 | AL28: 1 | AM28: 1 | AN28: 1 | AO28: 1 | AP28: 1 | AQ28: 1 | AR28: 1 | AS28: 1 | AT28: 1 | AU28: 1
A29: Nangarhar | M29: 0.4 | N29: 0.5 | O29: 2 | P29: 2 | Q29: 2 | R29: 2 | S29: 2 | T29: 2 | U29: 2 | V29: 2 | W29: 2 | X29: 2 | Y29: 2 | Z29: 2 | AA29: 2 | AB29: 2 | AC29: 2 | AD29: 2 | AE29: 2 | AF29: 2 | AG29: 2 | AH29: 2 | AI29: 2 | AJ29: 2 | AK29: 2 | AL29: 2 | AM29: 2 | AN29: 2 | AO29: 2 | AP29: 2 | AQ29: 2 | AR29: 2 | AS29: 2 | AT29: 2 | AU29: 2
A30: Nimroz | M30: 0.4 | N30: 0.5 | O30: 3 | P30: 3 | Q30: 3 | R30: 3 | S30: 3 | T30: 3 | U30: 3 | V30: 3 | W30: 3 | X30: 3 | Y30: 3 | Z30: 3 | AA30: 3 | AB30: 3 | AC30: 3 | AD30: 3 | AE30: 3 | AF30: 3 | AG30: 3 | AH30: 3 | AI30: 3 | AJ30: 3 | AK30: 3 | AL30: 3 | AM30: 3 | AN30: 3 | AO30: 3 | AP30: 3 | AQ30: 3 | AR30: 3 | AS30: 3 | AT30: 3 | AU30: 3
A31: Nuristan | M31: 0.4 | N31: 0.5 | O31: 4 | P31: 4 | Q31: 4 | R31: 4 | S31: 4 | T31: 4 | U31: 4 | V31: 4 | W31: 4 | X31: 4 | Y31: 4 | Z31: 4 | AA31: 4 | AB31: 4 | AC31: 4 | AD31: 4 | AE31: 4 | AF31: 4 | AG31: 4 | AH31: 4 | AI31: 4 | AJ31: 4 | AK31: 4 | AL31: 4 | AM31: 4 | AN31: 4 | AO31: 4 | AP31: 4 | AQ31: 4 | AR31: 4 | AS31: 4 | AT31: 4 | AU31: 4
A32: Paktika | M32: 0.4 | N32: 0.5 | O32: 5 | P32: 5 | Q32: 5 | R32: 5 | S32: 5 | T32: 5 | U32: 5 | V32: 5 | W32: 5 | X32: 5 | Y32: 5 | Z32: 5 | AA32: 5 | AB32: 5 | AC32: 5 | AD32: 5 | AE32: 5 | AF32: 5 | AG32: 5 | AH32: 5 | AI32: 5 | AJ32: 5 | AK32: 5 | AL32: 5 | AM32: 5 | AN32: 5 | AO32: 5 | AP32: 5 | AQ32: 5 | AR32: 5 | AS32: 5 | AT32: 5 | AU32: 5
A33: Paktya | M33: 0.4 | N33: 0.5 | O33: 1 | P33: 1 | Q33: 1 | R33: 1 | S33: 1 | T33: 1 | U33: 1 | V33: 1 | W33: 1 | X33: 1 | Y33: 1 | Z33: 1 | AA33: 1 | AB33: 1 | AC33: 1 | AD33: 1 | AE33: 1 | AF33: 1 | AG33: 1 | AH33: 1 | AI33: 1 | AJ33: 1 | AK33: 1 | AL33: 1 | AM33: 1 | AN33: 1 | AO33: 1 | AP33: 1 | AQ33: 1 | AR33: 1 | AS33: 1 | AT33: 1 | AU33: 1
A34: Panjsher | M34: 0.4 | N34: 0.5 | O34: 2 | P34: 2 | Q34: 2 | R34: 2 | S34: 2 | T34: 2 | U34: 2 | V34: 2 | W34: 2 | X34: 2 | Y34: 2 | Z34: 2 | AA34: 2 | AB34: 2 | AC34: 2 | AD34: 2 | AE34: 2 | AF34: 2 | AG34: 2 | AH34: 2 | AI34: 2 | AJ34: 2 | AK34: 2 | AL34: 2 | AM34: 2 | AN34: 2 | AO34: 2 | AP34: 2 | AQ34: 2 | AR34: 2 | AS34: 2 | AT34: 2 | AU34: 2
A35: Parwan | M35: 0.4 | N35: 0.5 | O35: 3 | P35: 3 | Q35: 3 | R35: 3 | S35: 3 | T35: 3 | U35: 3 | V35: 3 | W35: 3 | X35: 3 | Y35: 3 | Z35: 3 | AA35: 3 | AB35: 3 | AC35: 3 | AD35: 3 | AE35: 3 | AF35: 3 | AG35: 3 | AH35: 3 | AI35: 3 | AJ35: 3 | AK35: 3 | AL35: 3 | AM35: 3 | AN35: 3 | AO35: 3 | AP35: 3 | AQ35: 3 | AR35: 3 | AS35: 3 | AT35: 3 | AU35: 3
A36: Samangan | M36: 0.4 | N36: 0.5 | O36: 4 | P36: 4 | Q36: 4 | R36: 4 | S36: 4 | T36: 4 | U36: 4 | V36: 4 | W36: 4 | X36: 4 | Y36: 4 | Z36: 4 | AA36: 4 | AB36: 4 | AC36: 4 | AD36: 4 | AE36: 4 | AF36: 4 | AG36: 4 | AH36: 4 | AI36: 4 | AJ36: 4 | AK36: 4 | AL36: 4 | AM36: 4 | AN36: 4 | AO36: 4 | AP36: 4 | AQ36: 4 | AR36: 4 | AS36: 4 | AT36: 4 | AU36: 4
A37: Sar-e-Pul | M37: 0.4 | N37: 0.5 | O37: 5 | P37: 5 | Q37: 5 | R37: 5 | S37: 5 | T37: 5 | U37: 5 | V37: 5 | W37: 5 | X37: 5 | Y37: 5 | Z37: 5 | AA37: 5 | AB37: 5 | AC37: 5 | AD37: 5 | AE37: 5 | AF37: 5 | AG37: 5 | AH37: 5 | AI37: 5 | AJ37: 5 | AK37: 5 | AL37: 5 | AM37: 5 | AN37: 5 | AO37: 5 | AP37: 5 | AQ37: 5 | AR37: 5 | AS37: 5 | AT37: 5 | AU37: 5
AS49: Routine/campaign measles vaccination coverage (%)
AS50: Routine/campaign polio vaccination coverage (%)
AS51: Routine/campaign Vitamin A supplementation coverage (%)
AS52: Measles vaccination coverage from surveys (%)
AS53: Polio vaccination coverage from surveys (%)
AS54: Vitamin A supplementation coverage from surveys (%)
AS55: Coverage of all basic vaccinations from surveys (%)
AS56: Number of cases for selected diseases relevant to the local context (e.g. cholera, measles, acute meningitis, COVID-19)
AS57: Number of inpatient beds per 10,000 people
AS58: Percentage of healthcare facilitaties that deliver essential package of health services (including nutrition)
AS59: Number of skilled birth attendant personnel (doctors, nurses, certified midwives) per 10,000 people
AS60: Health-seeking behaviour from population-based surveys
AS61: Dysentery
AS62: Prevalence of HIV/AIDS
AS63: Malaria/Fever
AS64: Acute Respiratory Infection (ARI)
AS65: Cholera or Acute Watery Diarrhea (AWD)
AS66: PRIORITY: Food Security Cluster/Sector Analysis
AS67: Food Consumption Score
AS68: Household Hunger Scale
AS69: Reduced Coping Strategies Index
AS70: Household Dietary Diversity Score

Sheet Scenario 3 - Nut. Analysis
C1: SCENARIO 3 - NUTRITION SITUATION ANALYSIS | Q1: Phase 1 | R1: Phase 2 | S1: Phase 3 | T1: Phase 4 | U1: Phase 5
A2: Admin for "Affected" areas of interest | B2: Prevalence % of exclusive breastfeeding for children 0-5 months | C2: Minimum Dietary Diversity in children 6-23 months (if available, use Minimum Acceptable Diet in children 6-23 months) | D2: Stunting prevalence % (HAZ) for children 0-59 months | E2: Prevalence of overweight in children 0-59 months | F2: Prevalence of anemia in children 6-59 months | G2: Prevalence of anemia in pregnant women | H2: % of infants 0-5 months that are not breastfed who have access to BMS supplies and support | I2: % of infants 6-11 months that are not breastfed who have access to BMS supplies and support | J2: GAM prevalence % for Older People (MUAC<210mm) | K2: GAM prevalence % for Adolescents (BMI-for-Age) | L2: (Optional) See relevant indicators in the guidance | M2: SCORE | N2: Severity Classification for "Physical" per geographical area | P2: PRELIMINARY SCORING SYSTEM* | Q2: Acceptable/ Minimal | R2: Alert/ Stress | S2: Serious/ Severe | T2: Critical/ Extreme | U2: Extremely Critical/ Catastrophic
A3: Use Admin names from the CODs | B3: Insert prevalence data - Automatic classification (see Classification thresholds worksheet) | C3: Insert prevalence data - Automatic classification (see Classification thresholds worksheet) | D3: Insert prevalence data - Automatic classification (see Classification thresholds worksheet) | E3: Insert prevalence data - Automatic classification (see Classification thresholds worksheet) | F3: Insert prevalence data - Automatic classification (see Classification thresholds worksheet) | G3: Insert prevalence data - Automatic classification (see Classification thresholds worksheet) | H3: Insert prevalence data - Automatic classification (see Classification thresholds worksheet) | I3: Insert prevalence data - Automatic classification (see Classification thresholds worksheet) | J3: Insert prevalence data - Automatic classification assuming no aggravating factors (see Classification thresholds worksheet) | K3: Insert prevalence data - Automatic classification (see Classification thresholds worksheet) | L3: Manually Insert Phase Number based on Classification Thresholds | N3: Auto formatted | P3: 100 | Q3: 1 | R3: 5 | S3: 14 | T3: 30 | U3: 50
A4: Badakhshan | L4: 3 | M4: 0.95 | N4: =IF(M4<5, "Phase 1", IF(M4<14, "Phase 2", IF(M4<30, "Phase 3", IF(M4<50, "Phase 4", "Phase 5")))) -> Phase 1 | P4: Prevalence % of exclusive breastfeeding for children 0-5 months | Q4: =$Q$3*$V$4/5 -> 0.11 | R4: =$R$3*$V$4/5 -> 0.55 | S4: =$S$3*$V$4/5 -> 1.54 | T4: =$T$3*$V$4/5 -> 3.3 | U4: =$U$3*$V$4/3 -> 9.166666667 | V4: 0.55
A5: Badghis | M5: 0.95 | N5: =IF(M5<5, "Phase 1", IF(M5<14, "Phase 2", IF(M5<30, "Phase 3", IF(M5<50, "Phase 4", "Phase 5")))) -> Phase 1 | P5: Minimum Dietary Diversity in children 6-23 months (if available, use Minimum Acceptable Diet in children 6-23 months) | Q5: =$Q$3*$V$4/5 -> 0.11 | R5: =$R$3*$V$4/5 -> 0.55 | S5: =$S$3*$V$4/5 -> 1.54 | T5: =$T$3*$V$4/5 -> 3.3 | U5: =$U$3*$V$4/3 -> 9.166666667
A6: Baghlan | M6: 0.95 | N6: =IF(M6<5, "Phase 1", IF(M6<14, "Phase 2", IF(M6<30, "Phase 3", IF(M6<50, "Phase 4", "Phase 5")))) -> Phase 1 | P6: Stunting prevalence % (HAZ) for children 0-59 months | Q6: =$Q$3*$V$4/5 -> 0.11 | R6: =$R$3*$V$4/5 -> 0.55 | S6: =$S$3*$V$4/5 -> 1.54 | T6: =$T$3*$V$4/5 -> 3.3
A7: Balkh | M7: 0.95 | N7: Phase 1 | P7: Prevalence of overweight in children 0-59 months | Q7: =$Q$3*$V$4/5 -> 0.11 | R7: =$R$3*$V$4/5 -> 0.55 | S7: =$S$3*$V$4/5 -> 1.54 | T7: =$T$3*$V$4/5 -> 3.3 | U7: =$U$3*$V$4/3 -> 9.166666667
A8: Bamyan | M8: 0.95 | N8: Phase 1 | P8: Prevalence of anemia in children 6-59 months | Q8: =$Q$3*$V$4/5 -> 0.11 | R8: =$R$3*$V$4/5 -> 0.55 | S8: =$S$3*$V$4/5 -> 1.54 | T8: =$T$3*$V$4/5 -> 3.3
A9: Dykundi | M9: 0.95 | N9: Phase 1 | P9: Prevalence of anemia in pregnant women | Q9: =$Q$3*$V$9/3 -> 0.1 | R9: =$R$3*$V$9/3 -> 0.5 | S9: =$S$3*$V$9/3 -> 1.4 | T9: =$T$3*$V$9/3 -> 3 | V9: 0.3
A10: Farah | M10: 0.95 | N10: Phase 1 | P10: % of infants 0-5 months that are not breastfed who have access to BMS supplies and support | Q10: =$Q$3*$V$9/3 -> 0.1 | R10: =$R$3*$V$9/3 -> 0.5 | S10: =$S$3*$V$9/3 -> 1.4 | T10: =$T$3*$V$9/3 -> 3 | U10: =$U$3*$V$9/2 -> 7.5
A11: Faryab | M11: 0.95 | N11: Phase 1 | P11: % of infants 6-11 months that are not breastfed who have access to BMS supplies and support | Q11: =$Q$3*$V$9/3 -> 0.1 | R11: =$R$3*$V$9/3 -> 0.5 | S11: =$S$3*$V$9/3 -> 1.4 | T11: =$T$3*$V$9/3 -> 3 | U11: =$U$3*$V$9/2 -> 7.5
A12: Ghazni | M12: 0.95 | N12: Phase 1 | P12: GAM prevalence % for Older People (MUAC<210mm) | Q12: =$Q$3*$V$12/3 -> 0.05 | R12: =$R$3*$V$12/3 -> 0.25 | S12: =$S$3*$V$12/3 -> 0.7 | T12: =T3*V12/3 -> 1.5 | V12: 0.15
A13: Ghor | M13: 0.95 | N13: Phase 1 | P13: GAM prevalence % for Adolescents (BMI-for-Age) | Q13: =$Q$3*$V$12/3 -> 0.05 | R13: =$R$3*$V$12/3 -> 0.25 | S13: =$S$3*$V$12/3 -> 0.7 | T13: =$T$3*$V$12/3 -> 1.5 | U13: =$U$3*$V$12/2 -> 3.75
A14: Helmand | M14: 0.95 | N14: Phase 1 | P14: For country inputs (if relevant, column L) | Q14: 0.05 | R14: 0.25 | S14: 0.7 | T14: =$T$3*$V$12/3 -> 1.5 | U14: =$U$3*$V$12/2 -> 3.75
A15: Hirat | M15: 0.95 | N15: Phase 1
A16: Jawzjan | M16: 0.95 | N16: Phase 1 | Q16: Phase 1 | R16: Phase 2 | S16: Phase 3 | T16: Phase 4 | U16: Phase 5
A17: Kabul | M17: 0.95 | N17: Phase 1 | P17: TABLE OF INTERPRETATION | Q17: Acceptable/ Minimal | R17: Alert/ Stress | S17: Serious/ Severe | T17: Critical/ Extreme | U17: Extremely Critical/ Catastrophic
A18: Kandahar | M18: 0.95 | N18: Phase 1 | P18: PRELIMINARY CUT-OFFS BASED ON SCORE | Q18: ≤4 | R18: 5-13 | S18: 14-29 | T18: 30-49 | U18: ≥50
A19: Kapisa | M19: 0.95 | N19: Phase 1
A20: Khost | M20: 0.95 | N20: Phase 1 | P20: Configuration
A21: Kunar | M21: 0.95 | N21: Phase 1 | P21: Last Row Number | Q21: 33
A22: Kunduz | M22: 0.95 | N22: Phase 1
A23: Laghman | M23: 0.95 | N23: Phase 1
A24: Logar | M24: 0.95 | N24: Phase 1
A25: Nangarhar | M25: 0.95 | N25: Phase 1 | P25: *The rationale is based on a three-tiered scoring system proposed by the GNC Taskforce where the indicators in purple represent 55% of the total amount of points per phase, those in blue 30% and those in green only 15%. For example, if the Stunting prevalence in U5 is in Phase 3, this will receive 1.54 points versus the prevalence of GAM in Older People only receiving 0.7 points. For any missing data, the calculator will automatically assume a Phase 1 for that indicator. This breakdown is not based on hard evidence, rather the assumed vulnerability and reliability of these 10 indicators for this scenario – see Limitations on Instructions worksheet. An extra 11th indiciator is added for country inputs if deemed necessary and relevant- see guidance for further details on which indicators may be included.
A26: Nimroz | M26: 0.95 | N26: Phase 1
A27: Nuristan | M27: 0.95 | N27: Phase 1
A28: Paktika | M28: 0.95 | N28: Phase 1
A29: Paktya | M29: 0.95 | N29: Phase 1
A30: Panjsher | M30: 0.95 | N30: Phase 1
A31: Parwan | M31: 0.95 | N31: Phase 1
A32: Samangan | M32: 0.95 | N32: Phase 1
A33: Sar-e-Pul | M33: 0.95 | N33: Phase 1

Sheet Scenario 3 Contributing Fact
A1: ANALYSIS OF CONTRIBUTING FACTORS | F1: Phase 1 | G1: Phase 2 | H1: Phase 3 | I1: Phase 4 | J1: Phase 5 | K1: No data
D2: PROPOSED SCORING SYSTEM | F2: Acceptable/ Minimal | G2: Alert/ Stress | H2: Serious/ Severe | I2: Critical/ Extreme | J2: Extremely Critical/ Catastrophic
D3: Similar to IPC Classification | F3: No contributing factor | G3: Minor contributing factor | H3: Major contributing factor | I3: Critical contributing factor
B5: Contextual Factors | D5: Food Security | I5: WASH | M5: Health
A6: Admin for "Affected" areas of interest | B6: Crude Death Rate (excluding trauma when available) | C6: U5 Death Rate (excluding trauma when available) | D6: Food Security Cluster/Sector Analysis | E6: Food Consumption Score | F6: Household Hunger Scale | G6: Reduced Coping Strategies Index | H6: Household Dietary Diversity Score | I6: % of HHs having access to an improved water source | J6: % of HHs having access to a sufficient quantity of water for drinking, cooking, bathing, washing or other domestic use | K6: % of HHs having access to a functionnal and improved sanitation facility | L6: % of HHs with access to functioning handwashing facilities, with water and soap available or % of HHs with access to soap | M6: Coverage of DTC3 (DPT3 / PENTA3) in < 1 year old, by administrative unit (%) | N6: Percentage of children aged six months to 15 years who have received measles vaccination | O6: Routine measles vaccination coverage (%) | P6: Routine polio vaccination coverage (%) | Q6: Routine Vitamin A supplementation coverage (%) | R6: Campaign measles vaccination coverage (%) | S6: Campaign polio vaccination coverage (%) | T6: Campaign Vitamin A supplementation coverage (%) | U6: Measles vaccination coverage from surveys (%) | V6: Polio vaccination coverage from surveys (%) | W6: Vitamin A supplementation coverage from surveys (%) | X6: Coverage of all basic vaccinations from surveys (%) | Y6: Number of cases or incidence rates for selected diseases relevant to the local context (cholera, measles, acute meningitis, others) | Z6: Case Fatality Ratio (CFR) for most common diseases | AA6: Percentage of healthcare facilities that deliver essential package of health services | AB6: Health-seeking behaviour from population-based surveys | AC6: Percentage of population that can access primary healthcare within one hour’s walk from dwellings | AD6: Number of HF with Basic Emergency Obstetric Care/ 500,000 population, by administrative unit | AE6: Number of skilled birth attendant personnel (doctors, nurses, certified midwives) per 10,000 people | AF6: Proportion of children U5 with diarrhea in the last two weeks | AG6: Prevalence of HIV/AIDS | AH6: Proportion of children U5 with fever in malaria-risk areas | AI6: Proportion of children U5 who had Acute Respiratory Infections (ARI) in the last 2 weeks | AJ6: Number of reported cases of cholera or Acute Watery Diarrhea (AWD)
A7: Use Admin names from the CODs | B7: Insert rate - Automatic classification | C7: Insert rate - Automatic classification | D7: Manually Insert Phase Number based on Classification Thresholds | E7: Manually Insert Phase Number based on Classification Thresholds | F7: Manually Insert Phase Number based on Classification Thresholds | G7: Manually Insert Phase Number based on Classification Thresholds | H7: Manually Insert Phase Number based on Classification Thresholds | I7: Manually Insert Phase Number based on Classification Thresholds | J7: Manually Insert Phase Number based on Classification Thresholds | K7: Manually Insert Phase Number based on Classification Thresholds | L7: Manually Insert Phase Number based on Classification Thresholds | M7: Manually Insert Phase Number based on Classification Thresholds | N7: Manually Insert Phase Number based on Classification Thresholds | O7: No proposed threshold. Use of consensus and expert judgement to determine phase | P7: No proposed threshold. Use of consensus and expert judgement to determine phase | Q7: No proposed threshold. Use of consensus and expert judgement to determine phase | R7: No proposed threshold. Use of consensus and expert judgement to determine phase | S7: No proposed threshold. Use of consensus and expert judgement to determine phase | T7: No proposed threshold. Use of consensus and expert judgement to determine phase | U7: No proposed threshold. Use of consensus and expert judgement to determine phase | V7: No proposed threshold. Use of consensus and expert judgement to determine phase | W7: No proposed threshold. Use of consensus and expert judgement to determine phase | X7: No proposed threshold. Use of consensus and expert judgement to determine phase | Y7: Manually Insert Phase Number based on Classification Thresholds | Z7: No proposed thresholds. Use of consensus and expert judgement to determine phase | AA7: No proposed thresholds. Use of consensus and expert judgement to determine phase | AB7: No proposed thresholds. Use of consensus and expert judgement to determine phase | AC7: Manually Insert Phase Number based on Classification Thresholds | AD7: Manually Insert Phase Number based on Classification Thresholds | AE7: Manually Insert Phase Number based on Classification Thresholds | AF7: No proposed thresholds. Use of consensus and expert judgement to determine phase | AG7: No proposed thresholds. Use of consensus and expert judgement to determine phase | AH7: No proposed thresholds. Use of consensus and expert judgement to determine phase | AI7: No proposed thresholds. Use of consensus and expert judgement to determine phase | AJ7: No proposed thresholds. Use of consensus and expert judgement to determine phase
A8: Badakhshan | B8: 2 | C8: 2 | D8: 1 | E8: 1 | F8: 1 | G8: 1 | H8: 1 | I8: 1 | J8: 1 | K8: 1 | L8: 1 | M8: 1 | N8: 1 | O8: 1 | P8: 1 | Q8: 1 | R8: 1 | S8: 1 | T8: 1 | U8: 1 | V8: 1 | W8: 1 | X8: 1 | Y8: 1 | Z8: 1 | AA8: 1 | AB8: 1 | AC8: 1 | AD8: 1 | AE8: 1 | AF8: 1 | AG8: 1 | AH8: 1 | AI8: 1 | AJ8: 1
A9: Badghis | B9: 1 | C9: 1 | D9: 2 | E9: 2 | F9: 2 | G9: 2 | H9: 2 | I9: 2 | J9: 2 | K9: 2 | L9: 2 | M9: 2 | N9: 2 | O9: 2 | P9: 2 | Q9: 2 | R9: 2 | S9: 2 | T9: 2 | U9: 2 | V9: 2 | W9: 2 | X9: 2 | Y9: 2 | Z9: 2 | AA9: 2 | AB9: 2 | AC9: 2 | AD9: 2 | AE9: 2 | AF9: 2 | AG9: 2 | AH9: 2 | AI9: 2 | AJ9: 2
A10: Baghlan | B10: 1 | C10: 1 | D10: 3 | E10: 3 | F10: 3 | G10: 3 | H10: 3 | I10: 3 | J10: 3 | K10: 3 | L10: 3 | M10: 3 | N10: 3 | O10: 3 | P10: 3 | Q10: 3 | R10: 3 | S10: 3 | T10: 3 | U10: 3 | V10: 3 | W10: 3 | X10: 3 | Y10: 3 | Z10: 3 | AA10: 3 | AB10: 3 | AC10: 3 | AD10: 3 | AE10: 3 | AF10: 3 | AG10: 3 | AH10: 3 | AI10: 3 | AJ10: 3
A11: Balkh | B11: 1 | C11: 1 | D11: 4 | E11: 4 | F11: 4 | G11: 4 | H11: 4 | I11: 4 | J11: 4 | K11: 4 | L11: 4 | M11: 4 | N11: 4 | O11: 4 | P11: 4 | Q11: 4 | R11: 4 | S11: 4 | T11: 4 | U11: 4 | V11: 4 | W11: 4 | X11: 4 | Y11: 4 | Z11: 4 | AA11: 4 | AB11: 4 | AC11: 4 | AD11: 4 | AE11: 4 | AF11: 4 | AG11: 4 | AH11: 4 | AI11: 4 | AJ11: 4
A12: Bamyan | B12: 2 | C12: 2 | D12: 5 | E12: 5 | F12: 5 | G12: 5 | H12: 5 | I12: 5 | J12: 5 | K12: 5 | L12: 5 | M12: 5 | N12: 5 | O12: 5 | P12: 5 | Q12: 5 | R12: 5 | S12: 5 | T12: 5 | U12: 5 | V12: 5 | W12: 5 | X12: 5 | Y12: 5 | Z12: 5 | AA12: 5 | AB12: 5 | AC12: 5 | AD12: 5 | AE12: 5 | AF12: 5 | AG12: 5 | AH12: 5 | AI12: 5 | AJ12: 5
A13: Dykundi | B13: 2 | C13: 2 | D13: 1 | E13: 1 | F13: 1 | G13: 1 | H13: 1 | I13: 1 | J13: 1 | K13: 1 | L13: 1 | M13: 1 | N13: 1 | O13: 1 | P13: 1 | Q13: 1 | R13: 1 | S13: 1 | T13: 1 | U13: 1 | V13: 1 | W13: 1 | X13: 1 | Y13: 1 | Z13: 1 | AA13: 1 | AB13: 1 | AC13: 1 | AD13: 1 | AE13: 1 | AF13: 1 | AG13: 1 | AH13: 1 | AI13: 1 | AJ13: 1
A14: Farah | B14: 2 | C14: 2 | D14: 2 | E14: 2 | F14: 2 | G14: 2 | H14: 2 | I14: 2 | J14: 2 | K14: 2 | L14: 2 | M14: 2 | N14: 2 | O14: 2 | P14: 2 | Q14: 2 | R14: 2 | S14: 2 | T14: 2 | U14: 2 | V14: 2 | W14: 2 | X14: 2 | Y14: 2 | Z14: 2 | AA14: 2 | AB14: 2 | AC14: 2 | AD14: 2 | AE14: 2 | AF14: 2 | AG14: 2 | AH14: 2 | AI14: 2 | AJ14: 2
A15: Faryab | B15: 2 | C15: 2 | D15: 3 | E15: 3 | F15: 3 | G15: 3 | H15: 3 | I15: 3 | J15: 3 | K15: 3 | L15: 3 | M15: 3 | N15: 3 | O15: 3 | P15: 3 | Q15: 3 | R15: 3 | S15: 3 | T15: 3 | U15: 3 | V15: 3 | W15: 3 | X15: 3 | Y15: 3 | Z15: 3 | AA15: 3 | AB15: 3 | AC15: 3 | AD15: 3 | AE15: 3 | AF15: 3 | AG15: 3 | AH15: 3 | AI15: 3 | AJ15: 3
A16: Ghazni | B16: 2 | C16: 2 | D16: 4 | E16: 4 | F16: 4 | G16: 4 | H16: 4 | I16: 4 | J16: 4 | K16: 4 | L16: 4 | M16: 4 | N16: 4 | O16: 4 | P16: 4 | Q16: 4 | R16: 4 | S16: 4 | T16: 4 | U16: 4 | V16: 4 | W16: 4 | X16: 4 | Y16: 4 | Z16: 4 | AA16: 4 | AB16: 4 | AC16: 4 | AD16: 4 | AE16: 4 | AF16: 4 | AG16: 4 | AH16: 4 | AI16: 4 | AJ16: 4
A17: Ghor | B17: 2 | C17: 2 | D17: 5 | E17: 5 | F17: 5 | G17: 5 | H17: 5 | I17: 5 | J17: 5 | K17: 5 | L17: 5 | M17: 5 | N17: 5 | O17: 5 | P17: 5 | Q17: 5 | R17: 5 | S17: 5 | T17: 5 | U17: 5 | V17: 5 | W17: 5 | X17: 5 | Y17: 5 | Z17: 5 | AA17: 5 | AB17: 5 | AC17: 5 | AD17: 5 | AE17: 5 | AF17: 5 | AG17: 5 | AH17: 5 | AI17: 5 | AJ17: 5
A18: Helmand | B18: 2 | C18: 2 | D18: 1 | E18: 1 | F18: 1 | G18: 1 | H18: 1 | I18: 1 | J18: 1 | K18: 1 | L18: 1 | M18: 1 | N18: 1 | O18: 1 | P18: 1 | Q18: 1 | R18: 1 | S18: 1 | T18: 1 | U18: 1 | V18: 1 | W18: 1 | X18: 1 | Y18: 1 | Z18: 1 | AA18: 1 | AB18: 1 | AC18: 1 | AD18: 1 | AE18: 1 | AF18: 1 | AG18: 1 | AH18: 1 | AI18: 1 | AJ18: 1
A19: Hirat | B19: 1 | C19: 1 | D19: 2 | E19: 2 | F19: 2 | G19: 2 | H19: 2 | I19: 2 | J19: 2 | K19: 2 | L19: 2 | M19: 2 | N19: 2 | O19: 2 | P19: 2 | Q19: 2 | R19: 2 | S19: 2 | T19: 2 | U19: 2 | V19: 2 | W19: 2 | X19: 2 | Y19: 2 | Z19: 2 | AA19: 2 | AB19: 2 | AC19: 2 | AD19: 2 | AE19: 2 | AF19: 2 | AG19: 2 | AH19: 2 | AI19: 2 | AJ19: 2
A20: Jawzjan | B20: 0.5 | C20: 0.5 | D20: 3 | E20: 3 | F20: 3 | G20: 3 | H20: 3 | I20: 3 | J20: 3 | K20: 3 | L20: 3 | M20: 3 | N20: 3 | O20: 3 | P20: 3 | Q20: 3 | R20: 3 | S20: 3 | T20: 3 | U20: 3 | V20: 3 | W20: 3 | X20: 3 | Y20: 3 | Z20: 3 | AA20: 3 | AB20: 3 | AC20: 3 | AD20: 3 | AE20: 3 | AF20: 3 | AG20: 3 | AH20: 3 | AI20: 3 | AJ20: 3
A21: Kabul | B21: 0.4 | C21: 0.5 | D21: 4 | E21: 4 | F21: 4 | G21: 4 | H21: 4 | I21: 4 | J21: 4 | K21: 4 | L21: 4 | M21: 4 | N21: 4 | O21: 4 | P21: 4 | Q21: 4 | R21: 4 | S21: 4 | T21: 4 | U21: 4 | V21: 4 | W21: 4 | X21: 4 | Y21: 4 | Z21: 4 | AA21: 4 | AB21: 4 | AC21: 4 | AD21: 4 | AE21: 4 | AF21: 4 | AG21: 4 | AH21: 4 | AI21: 4 | AJ21: 4
A22: Kandahar | B22: 0.4 | C22: 0.5 | D22: 5 | E22: 5 | F22: 5 | G22: 5 | H22: 5 | I22: 5 | J22: 5 | K22: 5 | L22: 5 | M22: 5 | N22: 5 | O22: 5 | P22: 5 | Q22: 5 | R22: 5 | S22: 5 | T22: 5 | U22: 5 | V22: 5 | W22: 5 | X22: 5 | Y22: 5 | Z22: 5 | AA22: 5 | AB22: 5 | AC22: 5 | AD22: 5 | AE22: 5 | AF22: 5 | AG22: 5 | AH22: 5 | AI22: 5 | AJ22: 5
A23: Kapisa | B23: 0.4 | C23: 0.5 | D23: 1 | E23: 1 | F23: 1 | G23: 1 | H23: 1 | I23: 1 | J23: 1 | K23: 1 | L23: 1 | M23: 1 | N23: 1 | O23: 1 | P23: 1 | Q23: 1 | R23: 1 | S23: 1 | T23: 1 | U23: 1 | V23: 1 | W23: 1 | X23: 1 | Y23: 1 | Z23: 1 | AA23: 1 | AB23: 1 | AC23: 1 | AD23: 1 | AE23: 1 | AF23: 1 | AG23: 1 | AH23: 1 | AI23: 1 | AJ23: 1
A24: Khost | B24: 0.4 | C24: 0.5 | D24: 2 | E24: 2 | F24: 2 | G24: 2 | H24: 2 | I24: 2 | J24: 2 | K24: 2 | L24: 2 | M24: 2 | N24: 2 | O24: 2 | P24: 2 | Q24: 2 | R24: 2 | S24: 2 | T24: 2 | U24: 2 | V24: 2 | W24: 2 | X24: 2 | Y24: 2 | Z24: 2 | AA24: 2 | AB24: 2 | AC24: 2 | AD24: 2 | AE24: 2 | AF24: 2 | AG24: 2 | AH24: 2 | AI24: 2 | AJ24: 2
A25: Kunar | B25: 0.4 | C25: 0.5 | D25: 3 | E25: 3 | F25: 3 | G25: 3 | H25: 3 | I25: 3 | J25: 3 | K25: 3 | L25: 3 | M25: 3 | N25: 3 | O25: 3 | P25: 3 | Q25: 3 | R25: 3 | S25: 3 | T25: 3 | U25: 3 | V25: 3 | W25: 3 | X25: 3 | Y25: 3 | Z25: 3 | AA25: 3 | AB25: 3 | AC25: 3 | AD25: 3 | AE25: 3 | AF25: 3 | AG25: 3 | AH25: 3 | AI25: 3 | AJ25: 3
A26: Kunduz | B26: 0.4 | C26: 0.5 | D26: 4 | E26: 4 | F26: 4 | G26: 4 | H26: 4 | I26: 4 | J26: 4 | K26: 4 | L26: 4 | M26: 4 | N26: 4 | O26: 4 | P26: 4 | Q26: 4 | R26: 4 | S26: 4 | T26: 4 | U26: 4 | V26: 4 | W26: 4 | X26: 4 | Y26: 4 | Z26: 4 | AA26: 4 | AB26: 4 | AC26: 4 | AD26: 4 | AE26: 4 | AF26: 4 | AG26: 4 | AH26: 4 | AI26: 4 | AJ26: 4
A27: Laghman | B27: 0.4 | C27: 0.5 | D27: 5 | E27: 5 | F27: 5 | G27: 5 | H27: 5 | I27: 5 | J27: 5 | K27: 5 | L27: 5 | M27: 5 | N27: 5 | O27: 5 | P27: 5 | Q27: 5 | R27: 5 | S27: 5 | T27: 5 | U27: 5 | V27: 5 | W27: 5 | X27: 5 | Y27: 5 | Z27: 5 | AA27: 5 | AB27: 5 | AC27: 5 | AD27: 5 | AE27: 5 | AF27: 5 | AG27: 5 | AH27: 5 | AI27: 5 | AJ27: 5
A28: Logar | B28: 0.4 | C28: 0.5 | D28: 1 | E28: 1 | F28: 1 | G28: 1 | H28: 1 | I28: 1 | J28: 1 | K28: 1 | L28: 1 | M28: 1 | N28: 1 | O28: 1 | P28: 1 | Q28: 1 | R28: 1 | S28: 1 | T28: 1 | U28: 1 | V28: 1 | W28: 1 | X28: 1 | Y28: 1 | Z28: 1 | AA28: 1 | AB28: 1 | AC28: 1 | AD28: 1 | AE28: 1 | AF28: 1 | AG28: 1 | AH28: 1 | AI28: 1 | AJ28: 1
A29: Nangarhar | B29: 0.4 | C29: 0.5 | D29: 2 | E29: 2 | F29: 2 | G29: 2 | H29: 2 | I29: 2 | J29: 2 | K29: 2 | L29: 2 | M29: 2 | N29: 2 | O29: 2 | P29: 2 | Q29: 2 | R29: 2 | S29: 2 | T29: 2 | U29: 2 | V29: 2 | W29: 2 | X29: 2 | Y29: 2 | Z29: 2 | AA29: 2 | AB29: 2 | AC29: 2 | AD29: 2 | AE29: 2 | AF29: 2 | AG29: 2 | AH29: 2 | AI29: 2 | AJ29: 2
A30: Nimroz | B30: 0.4 | C30: 0.5 | D30: 3 | E30: 3 | F30: 3 | G30: 3 | H30: 3 | I30: 3 | J30: 3 | K30: 3 | L30: 3 | M30: 3 | N30: 3 | O30: 3 | P30: 3 | Q30: 3 | R30: 3 | S30: 3 | T30: 3 | U30: 3 | V30: 3 | W30: 3 | X30: 3 | Y30: 3 | Z30: 3 | AA30: 3 | AB30: 3 | AC30: 3 | AD30: 3 | AE30: 3 | AF30: 3 | AG30: 3 | AH30: 3 | AI30: 3 | AJ30: 3
A31: Nuristan | B31: 0.4 | C31: 0.5 | D31: 4 | E31: 4 | F31: 4 | G31: 4 | H31: 4 | I31: 4 | J31: 4 | K31: 4 | L31: 4 | M31: 4 | N31: 4 | O31: 4 | P31: 4 | Q31: 4 | R31: 4 | S31: 4 | T31: 4 | U31: 4 | V31: 4 | W31: 4 | X31: 4 | Y31: 4 | Z31: 4 | AA31: 4 | AB31: 4 | AC31: 4 | AD31: 4 | AE31: 4 | AF31: 4 | AG31: 4 | AH31: 4 | AI31: 4 | AJ31: 4
A32: Paktika | B32: 0.4 | C32: 0.5 | D32: 5 | E32: 5 | F32: 5 | G32: 5 | H32: 5 | I32: 5 | J32: 5 | K32: 5 | L32: 5 | M32: 5 | N32: 5 | O32: 5 | P32: 5 | Q32: 5 | R32: 5 | S32: 5 | T32: 5 | U32: 5 | V32: 5 | W32: 5 | X32: 5 | Y32: 5 | Z32: 5 | AA32: 5 | AB32: 5 | AC32: 5 | AD32: 5 | AE32: 5 | AF32: 5 | AG32: 5 | AH32: 5 | AI32: 5 | AJ32: 5
A33: Paktya | B33: 0.4 | C33: 0.5 | D33: 1 | E33: 1 | F33: 1 | G33: 1 | H33: 1 | I33: 1 | J33: 1 | K33: 1 | L33: 1 | M33: 1 | N33: 1 | O33: 1 | P33: 1 | Q33: 1 | R33: 1 | S33: 1 | T33: 1 | U33: 1 | V33: 1 | W33: 1 | X33: 1 | Y33: 1 | Z33: 1 | AA33: 1 | AB33: 1 | AC33: 1 | AD33: 1 | AE33: 1 | AF33: 1 | AG33: 1 | AH33: 1 | AI33: 1 | AJ33: 1
A34: Panjsher | B34: 0.4 | C34: 0.5 | D34: 2 | E34: 2 | F34: 2 | G34: 2 | H34: 2 | I34: 2 | J34: 2 | K34: 2 | L34: 2 | M34: 2 | N34: 2 | O34: 2 | P34: 2 | Q34: 2 | R34: 2 | S34: 2 | T34: 2 | U34: 2 | V34: 2 | W34: 2 | X34: 2 | Y34: 2 | Z34: 2 | AA34: 2 | AB34: 2 | AC34: 2 | AD34: 2 | AE34: 2 | AF34: 2 | AG34: 2 | AH34: 2 | AI34: 2 | AJ34: 2
A35: Parwan | B35: 0.4 | C35: 0.5 | D35: 3 | E35: 3 | F35: 3 | G35: 3 | H35: 3 | I35: 3 | J35: 3 | K35: 3 | L35: 3 | M35: 3 | N35: 3 | O35: 3 | P35: 3 | Q35: 3 | R35: 3 | S35: 3 | T35: 3 | U35: 3 | V35: 3 | W35: 3 | X35: 3 | Y35: 3 | Z35: 3 | AA35: 3 | AB35: 3 | AC35: 3 | AD35: 3 | AE35: 3 | AF35: 3 | AG35: 3 | AH35: 3 | AI35: 3 | AJ35: 3
A36: Samangan | B36: 0.4 | C36: 0.5 | D36: 4 | E36: 4 | F36: 4 | G36: 4 | H36: 4 | I36: 4 | J36: 4 | K36: 4 | L36: 4 | M36: 4 | N36: 4 | O36: 4 | P36: 4 | Q36: 4 | R36: 4 | S36: 4 | T36: 4 | U36: 4 | V36: 4 | W36: 4 | X36: 4 | Y36: 4 | Z36: 4 | AA36: 4 | AB36: 4 | AC36: 4 | AD36: 4 | AE36: 4 | AF36: 4 | AG36: 4 | AH36: 4 | AI36: 4 | AJ36: 4
A37: Sar-e-Pul | B37: 0.4 | C37: 0.5 | D37: 5 | E37: 5 | F37: 5 | G37: 5 | H37: 5 | I37: 5 | J37: 5 | K37: 5 | L37: 5 | M37: 5 | N37: 5 | O37: 5 | P37: 5 | Q37: 5 | R37: 5 | S37: 5 | T37: 5 | U37: 5 | V37: 5 | W37: 5 | X37: 5 | Y37: 5 | Z37: 5 | AA37: 5 | AB37: 5 | AC37: 5 | AD37: 5 | AE37: 5 | AF37: 5 | AG37: 5 | AH37: 5 | AI37: 5 | AJ37: 5
AH49: Routine/campaign measles vaccination coverage (%)
AH50: Routine/campaign polio vaccination coverage (%)
AH51: Routine/campaign Vitamin A supplementation coverage (%)
AH52: Measles vaccination coverage from surveys (%)
AH53: Polio vaccination coverage from surveys (%)
AH54: Vitamin A supplementation coverage from surveys (%)
AH55: Coverage of all basic vaccinations from surveys (%)
AH56: Number of cases for selected diseases relevant to the local context (e.g. cholera, measles, acute meningitis, COVID-19)
AH57: Number of inpatient beds per 10,000 people
AH58: Percentage of healthcare facilitaties that deliver essential package of health services (including nutrition)
AH59: Number of skilled birth attendant personnel (doctors, nurses, certified midwives) per 10,000 people
AH60: Health-seeking behaviour from population-based surveys
AH61: Dysentery
AH62: Prevalence of HIV/AIDS
AH63: Malaria/Fever
AH64: Acute Respiratory Infection (ARI)
AH65: Cholera or Acute Watery Diarrhea (AWD)
AH66: PRIORITY: Food Security Cluster/Sector Analysis
AH67: Food Consumption Score
AH68: Household Hunger Scale
AH69: Reduced Coping Strategies Index
AH70: Household Dietary Diversity Score

Sheet Population Figures
A2: Population Figures | D2: UNDER FIVE (U5) CHILDREN | P2: PREGNANT (AND LACTATING) WOMEN (PLW/PW) | R2: OLDER PEOPLE | U2: ADOLESCENTS | X2: Acute Malnutrition Estimations to insert | AI2: Additional estimations to insert
B3: Admin 2 for "Affected" areas of interest | C3: Population Figures | D3: Children 0-59 months as percentage of total population, % | E3: Girls 0-59 months as percentage of total population, % | F3: Boys 0-59 months as percentage of total population, % | G3: Children 0-5 months as percentage of total population, % | H3: Girls 0-5 months as percentage of total population, % | I3: Boys 0-5 months as percentage of total population, % | J3: Children 6-11 months as percentage of total population, % | K3: Girls 6-11 months as percentage of total population, % | L3: Boys 6-11 months as percentage of total population, % | M3: Children 6-23 months as percentage of total population, % | N3: Girls 6-23 months as percentage of total population, % | O3: Boys 6-23 months as percentage of total population, % | P3: Pregnant and lactating women as percentage of total population, % | Q3: Pregnant women as percentage of total population, % | R3: Older People as percentage of total population, % | S3: Older Men as percentage of total population, % | T3: Older Women as percentage of total population, % | U3: Adolescents as percentage of total population, % | V3: Adolescent Girls as percentage of total population, % | W3: Adolescent Boys as percentage of total population, % | X3: U5 Prevalence of cGAM | Y3: U5 Prevalence of GAM based on WHZ | Z3: U5 Prevalence of GAM based on MUAC | AA3: PLW Prevalence of GAM based on MUAC | AB3: U5 Prevalence of cSAM | AC3: U5 Prevalence of SAM based on WHZ | AD3: U5 Prevalence of SAM based on MUAC | AE3: PLW Prevalence of SAM based on MUAC | AG3: UNDER FIVE (U5) CHILDREN
B4: Use lower level of administrative areas (generall Admin 2) which reliable evidence is available | C4: Provided by OCHA and/or government at country-level | D4: Provided by OCHA and/or government at country-level | E4: If available, provided by OCHA and/or government at country-level | F4: If available, provided by OCHA and/or government at country-level | G4: Provided by OCHA and/or government at country-level | H4: If available, provided by OCHA and/or government at country-level | I4: If available, provided by OCHA and/or government at country-level | J4: Provided by OCHA and/or government at country-level | K4: If available, provided by OCHA and/or government at country-level | L4: If available, provided by OCHA and/or government at country-level | M4: Provided by OCHA and/or government at country-level | N4: If available, provided by OCHA and/or government at country-level | O4: If available, provided by OCHA and/or government at country-level | P4: Provided by OCHA and/or government at country-level | Q4: Provided by OCHA and/or government at country-level | R4: Provided by OCHA and/or government at country-level | S4: If available, provided by OCHA and/or government at country-level | T4: If available, provided by OCHA and/or government at country-level | U4: Provided by OCHA and/or government at country-level | V4: If available, provided by OCHA and/or government at country-level | W4: If available, provided by OCHA and/or government at country-level | X4: If available, insert prevalence data | Y4: If available, insert prevalence data | Z4: If available, insert prevalence data | AA4: If available, insert prevalence data | AB4: Insert prevalence data for only ONE of these estimations | AE4: If available, insert prevalence data | AG4: Incident correction factor for SAM | AH4: To discuss with Cluster partners and agree on the incident correction factor based on available guidance and evidence - check upcoming Wasting Estimation Guidance. Contact GNC-CT for further support if needed. 1.6 can be used as a starting example.
B5: Badakhshan | C5: 2958374.34 | D5: 0.16 | G5: 0.018 | J5: 0.018 | M5: 0.054 | P5: 0.07 | Q5: 0.04 | R5: 0.1 | U5: 0.15 | AG5: Incident correction factor for MAM | AH5: To discuss with Cluster partners and agree on the incident correction factor based on available guidance and evidence - check upcoming Wasting Estimation Guidance. Contact GNC-CT for further support if needed. 1.6 can be used as a starting example.
B6: Badghis | C6: 1542806.1 | D6: 0.15 | G6: 0.018 | J6: 0.018 | M6: 0.054 | P6: 0.07 | Q6: 0.04 | R6: 0.1 | U6: 0.15 | AG6: Expected proportion of SAM cases for Inpatient treatment | AH6: This is mean coverage that is expected to be achieved by the program over the time period. To agree on expected coverage clusters usually take into account current capacity of the partners and their capacity to scale up. If mean coverage for the previous year is known, base your estimates on this number accounting for potential scale up/down. 10% can be used as a starting example.
B7: Baghlan | C7: 2836525.14 | D7: 0.16 | G7: 0.018 | J7: 0.018 | M7: 0.054 | P7: 0.07 | Q7: 0.04 | R7: 0.1 | U7: 0.15 | AG7: Expected number of SAM cases for Outpatient-CMAM | AH7: This is mean coverage that is expected to be achieved by the program over the time period. To agree on expected coverage clusters usually take into account current capacity of the partners and their capacity to scale up. If mean coverage for the previous year is known, base your estimates on this number accounting for potential scale up/down. 90% can be used as a starting example.
B8: Balkh | C8: 4142095.56 | D8: 0.16 | G8: 0.018 | J8: 0.018 | M8: 0.054 | P8: 0.07 | Q8: 0.04 | R8: 0.1 | U8: 0.15 | AG8: Expected number of MAM cases for programming | AH8: This is mean coverage that is expected to be achieved by the program over the time period. To agree on expected coverage clusters usually take into account current capacity of the partners and their capacity to scale up. If mean coverage for the previous year is known, base your estimates on this number accounting for potential scale up/down. 70% can be used as a starting example.
B9: Bamyan | C9: 1391176.98 | D9: 0.16 | G9: 0.018 | J9: 0.018 | M9: 0.054 | P9: 0.07 | Q9: 0.04 | R9: 0.1 | U9: 0.15 | AG9: Expected number of cases for BFSP | AH9: This is mean coverage that is expected to be achieved by the program over the time period. To agree on expected coverage clusters usually take into account current capacity of the partners and their capacity to scale up. If mean coverage for the previous year is known, base your estimates on this number accounting for potential scale up/down. 70% can be used as a starting example.
B10: Dykundi | C10: 1432624.68 | D10: 0.16 | G10: 0.018 | J10: 0.018 | M10: 0.054 | P10: 0.07 | Q10: 0.04 | R10: 0.1 | U10: 0.15 | AG10: Estimated proportion of disabled children under-five | AH10: For disability-disaggregated data, rough estimates should be available at country-level by the Protection Cluster; otherwise one can assume 10% for the children population can be applied to the final PiN for children under-five to obtain disability-disaggregated results.
B11: Farah | C11: 1578877.38 | D11: 0.16 | G11: 0.018 | J11: 0.018 | M11: 0.054 | P11: 0.07 | Q11: 0.04 | R11: 0.1 | U11: 0.15
B12: Faryab | C12: 3106925.1 | D12: 0.16 | G12: 0.018 | J12: 0.018 | M12: 0.054 | P12: 0.07 | Q12: 0.04 | R12: 0.1 | U12: 0.15 | AI12: Additional estimations to insert
B13: Ghazni | C13: 3823090.56 | D13: 0.16 | G13: 0.018 | J13: 0.018 | M13: 0.054 | P13: 0.07 | Q13: 0.04 | R13: 0.1 | U13: 0.15 | AG13: PREGNANT AND LACTATING WOMEN (PLW)
B14: Ghor | C14: 2147058.18 | D14: 0.16 | G14: 0.018 | J14: 0.018 | M14: 0.054 | P14: 0.07 | Q14: 0.04 | R14: 0.1 | U14: 0.15 | AG14: Expected proportion of MAM cases in PLW for TSFP | AH14: This calculation is usually done for a year, however on some occasions (new emergency, shorter term response plan, etc.) it can be done for different duration. 75% can be used as a starting example.
B15: Helmand | C15: 2877125.22 | D15: 0.16 | G15: 0.018 | J15: 0.018 | M15: 0.054 | P15: 0.07 | Q15: 0.04 | R15: 0.1 | U15: 0.15 | AG15: Expected number of MAM cases in PLW for BFSP | AH15: This is mean coverage that is expected to be achieved by the program over the time period. To agree on expected coverage clusters usually take into account current capacity of the partners and their capacity to scale up. If mean coverage for the previous year is known, base your estimates on this number accounting for potential scale up/down. 100% can be used as a starting example.
B16: Hirat | C16: 5900680.62 | D16: 0.16 | G16: 0.018 | J16: 0.018 | M16: 0.054 | P16: 0.07 | Q16: 0.04 | R16: 0.1 | U16: 0.15 | AG16: Estimated proportion of disabled PLW | AH16: For disability-disaggregated data, rough estimates should be available at country-level by the Protection Cluster; otherwise one can assume 15% for the adult population can be applied to the final PiN for PLW to obtain disability-disaggregated results.
B17: Jawzjan | C17: 1682694 | D17: 0.16 | G17: 0.018 | J17: 0.018 | M17: 0.054 | P17: 0.07 | Q17: 0.04 | R17: 0.1 | U17: 0.15
B18: Kabul | C18: 13842577.08 | D18: 0.16 | G18: 0.018 | J18: 0.018 | M18: 0.054 | P18: 0.07 | Q18: 0.04 | R18: 0.1 | U18: 0.15
B19: Kandahar | C19: 3833525.16 | D19: 0.16 | G19: 0.018 | J19: 0.018 | M19: 0.054 | P19: 0.07 | Q19: 0.04 | R19: 0.1 | U19: 0.15
B20: Kapisa | C20: 1371629.7 | D20: 0.16 | G20: 0.018 | J20: 0.018 | M20: 0.054 | P20: 0.07 | Q20: 0.04 | R20: 0.1 | U20: 0.15
B21: Khost | C21: 1787269.5 | D21: 0.16 | G21: 0.018 | J21: 0.018 | M21: 0.054 | P21: 0.07 | Q21: 0.04 | R21: 0.1 | U21: 0.15
B22: Kunar | C22: 1401877.8 | D22: 0.16 | G22: 0.018 | J22: 0.018 | M22: 0.054 | P22: 0.07 | Q22: 0.04 | R22: 0.1 | U22: 0.15
B23: Kunduz | C23: 3150187.38 | D23: 0.16 | G23: 0.018 | J23: 0.018 | M23: 0.054 | P23: 0.07 | Q23: 0.04 | R23: 0.1 | U23: 0.15
B24: Laghman | C24: 1385941.32 | D24: 0.16 | G24: 0.018 | J24: 0.018 | M24: 0.054 | P24: 0.07 | Q24: 0.04 | R24: 0.1 | U24: 0.15
B25: Logar | C25: 1219517.1 | D25: 0.16 | G25: 0.018 | J25: 0.018 | M25: 0.054 | P25: 0.07 | Q25: 0.04 | R25: 0.1 | U25: 0.15
B26: Nangarhar | C26: 4729070.88 | D26: 0.16 | G26: 0.018 | J26: 0.018 | M26: 0.054 | P26: 0.07 | Q26: 0.04 | R26: 0.1 | U26: 0.15
B27: Nimroz | C27: 513660.78 | D27: 0.16 | G27: 0.018 | J27: 0.018 | M27: 0.054 | P27: 0.07 | Q27: 0.04 | R27: 0.1 | U27: 0.15
B28: Nuristan | C28: 460196.46 | D28: 0.16 | G28: 0.018 | J28: 0.018 | M28: 0.054 | P28: 0.07 | Q28: 0.04 | R28: 0.1 | U28: 0.15
B29: Paktika | C29: 1352161.98 | D29: 0.16 | G29: 0.018 | J29: 0.018 | M29: 0.054 | P29: 0.07 | Q29: 0.04 | R29: 0.1 | U29: 0.15
B30: Paktya | C30: 1717272 | D30: 0.16 | G30: 0.018 | J30: 0.018 | M30: 0.054 | P30: 0.07 | Q30: 0.04 | R30: 0.1 | U30: 0.15
B31: Panjsher | C31: 477363.06 | D31: 0.16 | G31: 0.018 | J31: 0.018 | M31: 0.054 | P31: 0.07 | Q31: 0.04 | R31: 0.1 | U31: 0.15
B32: Parwan | C32: 2067932.7 | D32: 0.16 | G32: 0.018 | J32: 0.018 | M32: 0.054 | P32: 0.07 | Q32: 0.04 | R32: 0.1 | U32: 0.15
B33: Samangan | C33: 1207130.22 | D33: 0.16 | G33: 0.018 | J33: 0.018 | M33: 0.054 | P33: 0.07 | Q33: 0.04 | R33: 0.1 | U33: 0.15
B34: Sar-e-Pul | C34: 1741271.58 | D34: 0.16 | G34: 0.018 | J34: 0.018 | M34: 0.054 | P34: 0.07 | Q34: 0.04 | R34: 0.1 | U34: 0.15
B43: TOTAL POPULATION | C43: =SUM(C5:C42) -> 77678638.56

Sheet PiN Physical and Mental WB
A1: Physical and Mental Well-being Pillar
C2: Acute and chronic undernutrition, overnutrition - Automatic Calculations | AF2: BASED ON DATA FROM SCENARIO 2 CONTRIBUTING FACTORS OR SCENARIO 3 NUTRITION ANALYSIS
A3: Admin 2 for "Affected" areas of interest | B3: Population figures | C3: Number of GAM children 0-59 mo in need based on cGAM | D3: Number of GAM children 0-59 mo in need based on WHZ | E3: Number of GAM children 6-59 mo in need based on MUAC | F3: Number of GAM girls 0-59 mo in need | G3: Number of GAM boys 0-59 mo in need | H3: Number of children 0-59 mo to be screened | I3: Number of SAM children 0-59 mo in need based on cSAM | J3: Number of SAM children 0-59 mo in need based on WHZ | K3: Number of SAM children 6-59 mo in need based on MUAC | L3: Number of SAM girls 0-59 mo in need | M3: Number of SAM boys 0-59 mo in need | N3: Number of SAM children 0-59 mo in need of Inpatient Treatment | O3: Number of SAM girls 0-59 mo in need of Inpatient treatment | P3: Number of SAM boys 0-59 mo in need of Inpatient treatment | Q3: Number of SAM children 6-59 mo in need of Outpatient Treatment | R3: Number of SAM girls 6-59 mo in need of Outpatient treatment | S3: Number of SAM boys 6-59 mo in need of Outpatient treatment | T3: Number of MAM children 6-59 mo in need based on cMAM | U3: Number of MAM children 6-59 mo in need based on WHZ | V3: Number of MAM children 6-59 mo in need based on MUAC | W3: Number of MAM girls 6-59 mo in need | X3: Number of MAM boys 6-59 mo in need | Y3: Number of children 6-23 mo in need of BFSP | Z3: Number of girls 6-23 mo in need of BFSP | AA3: Number of boys 6-23 mo in need of BFSP | AB3: Number of GAM PLW based on low MUAC in need | AC3: Number of PLW to be screened | AD3: Number of MAM PLW in need of TFSP | AE3: Number of MAM PLW in need of BFSP | AF3: Number of GAM Older People in need | AG3: Number of GAM Older Women in need | AH3: Number of GAM Older Men in need | AI3: Number of Older People to be screened | AJ3: Number of GAM Adolescents in need | AK3: Number of GAM Adolescent Girls in need | AL3: Number of GAM Adolescent Boys in need
A4: Automatically taken from Population Figures sheet | B4: Automatically taken from Population Figures sheet | C4: Automatic calculation - only ONE of these three columns should be filled based on available evidence | F4: Automatic calculation when data is available | G4: Automatic calculation when data is available | H4: Automatic calculation | I4: Automatic calculation - only ONE of these three columns should be filled based on available evidence | L4: Automatic calculation when data is available | M4: Automatic calculation when data is available | N4: Automatic calculation | O4: Automatic calculation when data is available | P4: Automatic calculation when data is available | Q4: Automatic calculation | R4: Automatic calculation when data is available | S4: Automatic calculation when data is available | T4: Automatic calculation - only ONE of these three columns should be filled based on available evidence | W4: Automatic calculation when data is available | X4: Automatic calculation when data is available | Y4: Automatic calculation | Z4: Automatic calculation when data is available | AA4: Automatic calculation when data is available | AB4: Automatic calculation when data is available | AC4: Automatic calculation | AD4: Automatic calculation when data is available | AE4: Automatic calculation when data is available | AF4: Automatic calculation from Scenario 2 Contributing Factors or Scenario 3 Nut Analysis | AG4: Automatic calculation when data is available | AH4: Automatic calculation when data is available | AI4: Automatic calculation | AJ4: Automatic calculation | AK4: Automatic calculation when data is available | AL4: Automatic calculation when data is available
A5: ='Population Figures'!B5 -> Badakhshan | B5: ='Population Figures'!C5 -> 2958374.34 | C5: =B5*('Population Figures'!D5)*'Population Figures'!X5 -> 0 | D5: =E5 -> 71000.98416 | E5: =B5*('Population Figures'!D5)*'Scenario 2 - Nut.Analysis'!C7 -> 71000.98416 | F5: =IF('Population Figures'!E5<>"",IF(C5<>"",B5*('Population Figures'!E5)*#REF!, IF(D5<>"", B5*('Population Figures'!E5)*'Scenario 2 - Nut.Analysis'!B7, IF(E5<>"", B5*('Population Figures'!E5)*'Scenario 2 - Nut.Analysis'!C7, "N/A"))), "N/A") -> N/A | G5: =IF('Population Figures'!F5<>"",IF(C5<>"",B5*('Population Figures'!F5)*#REF!, IF(D5<>"", B5*('Population Figures'!F5)*'Scenario 2 - Nut.Analysis'!B7, IF(E5<>"", B5*('Population Figures'!F5)*'Scenario 2 - Nut.Analysis'!C7, "N/A"))), "N/A") -> N/A | H5: =B5*('Population Figures'!D5) -> 473339.8944 | I5: ='Population Figures'!AB5*(B5*'Population Figures'!D5)*'Population Figures'!$AI$4 -> 0 | J5: ='Population Figures'!AC5*(B5*'Population Figures'!D5)*'Population Figures'!$AI$4 -> 0 | K5: ='Population Figures'!AD5*(B5*'Population Figures'!D5)*'Population Figures'!$AI$4 -> 0 | L5: =IF('Population Figures'!E5<>"",IF(I5<>0,'Population Figures'!AB5*(B5*'Population Figures'!E5)*'Population Figures'!$AI$4, IF(J5<>0, 'Population Figures'!AC5*(B5*'Population Figures'!E5)*'Population Figures'!$AI$4, IF(K5<>0, 'Population Figures'!AD5*(B5*'Population Figures'!E5)*'Population Figures'!$AI$4, "N/A"))), "N/A") -> N/A | M5: =IF('Population Figures'!F5<>"",IF(I5<>0,'Population Figures'!AB5*(B5*'Population Figures'!F5)*'Population Figures'!$AI$4, IF(J5<>0, 'Population Figures'!AC5*(B5*'Population Figures'!F5)*'Population Figures'!$AI$4, IF(K5<>0, 'Population Figures'!AD5*(B5*'Population Figures'!F5)*'Population Figures'!$AI$4, "N/A"))), "N/A") -> N/A | N5: =IF(I5<>0,I5*'Population Figures'!$AI$6,IF(J5<>0,J5*'Population Figures'!$AI$6,IF(K5<>0,K5*'Population Figures'!$AI$6,"Key Values"))) -> Key Values | O5: =IF(L5<>"N/A",L5*'Population Figures'!$AI$6,"N/A") -> N/A | P5: =IF(M5<>"N/A",M5*'Population Figures'!$AI$6,"N/A") -> N/A | Q5: =IF(I5<>0,'Population Figures'!AB5*( B5*ABS('Population Figures'!D5-'Population Figures'!G5))*'Population Figures'!$AI$4*'Population Figures'!$AI$7, IF(J5<>0,'Population Figures'!AC5*( B5*ABS('Population Figures'!D5-'Population Figures'!G5))*'Population Figures'!$AI$4*'Population Figures'!$AI$7, IF(K5<>0,'Population Figures'!AD5*( B5*ABS('Population Figures'!D5-'Population Figures'!G5))*'Population Figures'!$AI$4*'Population Figures'!$AI$7, "Key Values"))) -> Key Values | R5: =IF('Population Figures'!E5<>"", IF(I5<>0,'Population Figures'!AB5*(B5*ABS('Population Figures'!E5-'Population Figures'!H5))*'Population Figures'!$AI$4, IF(J5<>0, 'Population Figures'!AC5*(B5*ABS('Population Figures'!E5-'Population Figures'!H5))*'Population Figures'!$AI$4, IF(K5<>0, 'Population Figures'!AD5*(B5*ABS('Population Figures'!E5-'Population Figures'!H5))*'Population Figures'!$AI$4, "N/A"))), "N/A") -> N/A | S5: =IF('Population Figures'!E5<>"", IF(I5<>0,'Population Figures'!AB5*(B5*ABS('Population Figures'!F5-'Population Figures'!I5))*'Population Figures'!$AI$4, IF(J5<>0, 'Population Figures'!AC5*(B5*ABS('Population Figures'!F5-'Population Figures'!I5))*'Population Figures'!$AI$4, IF(K5<>0, 'Population Figures'!AD5*(B5*ABS('Population Figures'!F5-'Population Figures'!I5))*'Population Figures'!$AI$4, "N/A"))), "N/A") -> N/A | T5: =('Population Figures'!X5-'Population Figures'!AB5)*(B5*ABS('Population Figures'!D5-'Population Figures'!G5)*'Population Figures'!$AI$5) -> 0 | U5: =ABS('Population Figures'!Y5-'Population Figures'!AC5)*(B5*ABS('Population Figures'!D5-'Population Figures'!G5))*'Population Figures'!$AI$5 -> 0 | V5: =ABS('Population Figures'!Z5-'Population Figures'!AD5)*(B5*ABS('Population Figures'!D5-'Population Figures'!G5)*'Population Figures'!$AI$5) -> 0 | W5: =IF('Population Figures'!E5<>"",IF(T5<>0,('Population Figures'!X5-'Population Figures'!AB5)*(ABS('Population Figures'!E5-'Population Figures'!H5)*B5)*'Population Figures'!$AI$5, IF(U5<>0, ('Population Figures'!Y5-'Population Figures'!AC5)*(ABS('Population Figures'!E5-'Population Figures'!H5)*B5)*'Population Figures'!$AI$5, IF(V5<>0, ('Population Figures'!Z5-'Population Figures'!AD5)*(B5*ABS('Population Figures'!E5-'Population Figures'!H5))*'Population Figures'!$AI$4, "N/A"))), "N/A") -> N/A | X5: =IF('Population Figures'!F5<>"",IF(T5<>0,('Population Figures'!X5-'Population Figures'!AB5)*(ABS('Population Figures'!F5-'Population Figures'!I5)*B5)*'Population Figures'!$AI$5, IF(U5<>0, ('Population Figures'!Y5-'Population Figures'!AC5)*(ABS('Population Figures'!F5-'Population Figures'!I5)*B5)*'Population Figures'!$AI$5, IF(V5<>0, ('Population Figures'!Z5-'Population Figures'!AD5)*(B5*ABS('Population Figures'!F5-'Population Figures'!I5))*'Population Figures'!$AI$4, "N/A"))), "N/A") -> N/A | Y5: ='Population Figures'!M5*'Population Figures'!C5*'Population Figures'!$AI$9 -> 0 | Z5: =IF('Population Figures'!N5<>"",'Population Figures'!N5*'Population Figures'!C5*'Population Figures'!$AI$9,"N/A") -> N/A | AA5: =IF('Population Figures'!O5<>"",'Population Figures'!O5*'Population Figures'!C5*'Population Figures'!$AI$9,"N/A") -> N/A | AB5: =B5*'Population Figures'!P5*'Population Figures'!AA5 -> 0 | AC5: =B5*'Population Figures'!P5 -> 207086.2038 | AD5: =B5*'Population Figures'!P5*ABS('Population Figures'!AA5-'Population Figures'!AE5)*'Population Figures'!$AI$14 -> 0 | AE5: =B5*'Population Figures'!P5*ABS('Scenario 2 - Nut.Analysis'!D7-'Population Figures'!AE5)*'Population Figures'!$AI$15 -> 0 | AF5: =IF('Scenario 2 Contributing Fact'!F8<>"", B5*'Population Figures'!R5*'Scenario 2 Contributing Fact'!F8,B5*'Population Figures'!R5*'Scenario 3 - Nut. Analysis'!J4) -> 0 | AG5: =IF('Population Figures'!T5<>"",B5*'Population Figures'!T5*AF5,"N/A") -> N/A | AH5: =IF('Population Figures'!S5<>"",B5*'Population Figures'!S5*AF5,"N/A") -> N/A | AI5: =B5*'Population Figures'!R5 -> 295837.434 | AJ5: =IF('Scenario 2 Contributing Fact'!G8<>"", B5*'Population Figures'!U5*'Scenario 2 Contributing Fact'!G8,B5*'Population Figures'!U5*'Scenario 3 - Nut. Analysis'!K4) -> 0 | AK5: =IF('Population Figures'!V5<>"",B5*'Population Figures'!V5*AJ5,"N/A") -> N/A | AL5: =IF('Population Figures'!W5<>"",B5*'Population Figures'!W5*AJ5,"N/A") -> N/A
A6: ='Population Figures'!B6 -> Badghis | B6: ='Population Figures'!C6 -> 1542806.1 | C6: =B6*('Population Figures'!D6)*'Population Figures'!X6 -> 0 | D6: =B6*('Population Figures'!D6)*'Scenario 2 - Nut.Analysis'!B8 -> 39341.55555 | E6: =B6*('Population Figures'!D6)*'Scenario 2 - Nut.Analysis'!C8 -> 0 | F6: =IF('Population Figures'!E6<>"",IF(C6<>"",B6*('Population Figures'!E6)*#REF!, IF(D6<>"", B6*('Population Figures'!E6)*'Scenario 2 - Nut.Analysis'!B8, IF(E6<>"", B6*('Population Figures'!E6)*'Scenario 2 - Nut.Analysis'!C8, "N/A"))), "N/A") -> N/A | G6: =IF('Population Figures'!F6<>"",IF(C6<>"",B6*('Population Figures'!F6)*#REF!, IF(D6<>"", B6*('Population Figures'!F6)*'Scenario 2 - Nut.Analysis'!B8, IF(E6<>"", B6*('Population Figures'!F6)*'Scenario 2 - Nut.Analysis'!C8, "N/A"))), "N/A") -> N/A | H6: =B6*('Population Figures'!D6) -> 231420.915 | I6: ='Population Figures'!AB6*(B6*'Population Figures'!D6)*'Population Figures'!$AI$4 -> 0 | J6: ='Population Figures'!AC6*(B6*'Population Figures'!D6)*'Population Figures'!$AI$4 -> 0 | K6: ='Population Figures'!AD6*(B6*'Population Figures'!D6)*'Population Figures'!$AI$4 -> 0 | L6: =IF('Population Figures'!E6<>"",IF(I6<>0,'Population Figures'!AB6*(B6*'Population Figures'!E6)*'Population Figures'!$AI$4, IF(J6<>0, 'Population Figures'!AC6*(B6*'Population Figures'!E6)*'Population Figures'!$AI$4, IF(K6<>0, 'Population Figures'!AD6*(B6*'Population Figures'!E6)*'Population Figures'!$AI$4, "N/A"))), "N/A") -> N/A | M6: =IF('Population Figures'!F6<>"",IF(I6<>0,'Population Figures'!AB6*(B6*'Population Figures'!F6)*'Population Figures'!$AI$4, IF(J6<>0, 'Population Figures'!AC6*(B6*'Population Figures'!F6)*'Population Figures'!$AI$4, IF(K6<>0, 'Population Figures'!AD6*(B6*'Population Figures'!F6)*'Population Figures'!$AI$4, "N/A"))), "N/A") -> N/A | N6: =IF(I6<>0,I6*'Population Figures'!$AI$6,IF(J6<>0,J6*'Population Figures'!$AI$6,IF(K6<>0,K6*'Population Figures'!$AI$6,"Key Values"))) -> Key Values | O6: =IF(L6<>"N/A",L6*'Population Figures'!$AI$6,"N/A") -> N/A | P6: =IF(M6<>"N/A",M6*'Population Figures'!$AI$6,"N/A") -> N/A | Q6: =IF(I6<>0,'Population Figures'!AB6*( B6*ABS('Population Figures'!D6-'Population Figures'!G6))*'Population Figures'!$AI$4*'Population Figures'!$AI$7, IF(J6<>0,'Population Figures'!AC6*( B6*ABS('Population Figures'!D6-'Population Figures'!G6))*'Population Figures'!$AI$4*'Population Figures'!$AI$7, IF(K6<>0,'Population Figures'!AD6*( B6*ABS('Population Figures'!D6-'Population Figures'!G6))*'Population Figures'!$AI$4*'Population Figures'!$AI$7, "Key Values"))) -> Key Values | R6: =IF('Population Figures'!E6<>"", IF(I6<>0,'Population Figures'!AB6*(B6*ABS('Population Figures'!E6-'Population Figures'!H6))*'Population Figures'!$AI$4, IF(J6<>0, 'Population Figures'!AC6*(B6*ABS('Population Figures'!E6-'Population Figures'!H6))*'Population Figures'!$AI$4, IF(K6<>0, 'Population Figures'!AD6*(B6*ABS('Population Figures'!E6-'Population Figures'!H6))*'Population Figures'!$AI$4, "N/A"))), "N/A") -> N/A | S6: =IF('Population Figures'!E6<>"", IF(I6<>0,'Population Figures'!AB6*(B6*ABS('Population Figures'!F6-'Population Figures'!I6))*'Population Figures'!$AI$4, IF(J6<>0, 'Population Figures'!AC6*(B6*ABS('Population Figures'!F6-'Population Figures'!I6))*'Population Figures'!$AI$4, IF(K6<>0, 'Population Figures'!AD6*(B6*ABS('Population Figures'!F6-'Population Figures'!I6))*'Population Figures'!$AI$4, "N/A"))), "N/A") -> N/A | T6: =('Population Figures'!X6-'Population Figures'!AB6)*(B6*ABS('Population Figures'!D6-'Population Figures'!G6)*'Population Figures'!$AI$5) -> 0 | U6: =ABS('Population Figures'!Y6-'Population Figures'!AC6)*(B6*ABS('Population Figures'!D6-'Population Figures'!G6))*'Population Figures'!$AI$5 -> 0 | V6: =ABS('Population Figures'!Z6-'Population Figures'!AD6)*(B6*ABS('Population Figures'!D6-'Population Figures'!G6)*'Population Figures'!$AI$5) -> 0 | W6: =IF('Population Figures'!E6<>"",IF(T6<>0,('Population Figures'!X6-'Population Figures'!AB6)*(ABS('Population Figures'!E6-'Population Figures'!H6)*B6)*'Population Figures'!$AI$5, IF(U6<>0, ('Population Figures'!Y6-'Population Figures'!AC6)*(ABS('Population Figures'!E6-'Population Figures'!H6)*B6)*'Population Figures'!$AI$5, IF(V6<>0, ('Population Figures'!Z6-'Population Figures'!AD6)*(B6*ABS('Population Figures'!E6-'Population Figures'!H6))*'Population Figures'!$AI$4, "N/A"))), "N/A") -> N/A | X6: =IF('Population Figures'!F6<>"",IF(T6<>0,('Population Figures'!X6-'Population Figures'!AB6)*(ABS('Population Figures'!F6-'Population Figures'!I6)*B6)*'Population Figures'!$AI$5, IF(U6<>0, ('Population Figures'!Y6-'Population Figures'!AC6)*(ABS('Population Figures'!F6-'Population Figures'!I6)*B6)*'Population Figures'!$AI$5, IF(V6<>0, ('Population Figures'!Z6-'Population Figures'!AD6)*(B6*ABS('Population Figures'!F6-'Population Figures'!I6))*'Population Figures'!$AI$4, "N/A"))), "N/A") -> N/A | Y6: ='Population Figures'!M6*'Population Figures'!C6*'Population Figures'!$AI$9 -> 0 | Z6: =IF('Population Figures'!N6<>"",'Population Figures'!N6*'Population Figures'!C6*'Population Figures'!$AI$9,"N/A") -> N/A | AA6: =IF('Population Figures'!O6<>"",'Population Figures'!O6*'Population Figures'!C6*'Population Figures'!$AI$9,"N/A") -> N/A | AB6: =B6*'Population Figures'!P6*'Population Figures'!AA6 -> 0 | AC6: =B6*'Population Figures'!P6 -> 107996.427 | AD6: =B6*'Population Figures'!P6*ABS('Population Figures'!AA6-'Population Figures'!AE6)*'Population Figures'!$AI$14 -> 0 | AE6: =B6*'Population Figures'!P6*ABS('Scenario 2 - Nut.Analysis'!D8-'Population Figures'!AE6)*'Population Figures'!$AI$15 -> 0 | AF6: =IF('Scenario 2 Contributing Fact'!F9<>"", B6*'Population Figures'!R6*'Scenario 2 Contributing Fact'!F9,B6*'Population Figures'!R6*'Scenario 3 - Nut. Analysis'!J5) -> 0 | AG6: =IF('Population Figures'!T6<>"",B6*'Population Figures'!T6*AF6,"N/A") -> N/A | AH6: =IF('Population Figures'!S6<>"",B6*'Population Figures'!S6*AF6,"N/A") -> N/A | AI6: =B6*'Population Figures'!R6 -> 154280.61 | AJ6: =IF('Scenario 2 Contributing Fact'!G9<>"", B6*'Population Figures'!U6*'Scenario 2 Contributing Fact'!G9,B6*'Population Figures'!U6*'Scenario 3 - Nut. Analysis'!K5) -> 0 | AK6: =IF('Population Figures'!V6<>"",B6*'Population Figures'!V6*AJ6,"N/A") -> N/A | AL6: =IF('Population Figures'!W6<>"",B6*'Population Figures'!W6*AJ6,"N/A") -> N/A
A7: ='Population Figures'!B7 -> Baghlan | B7: ='Population Figures'!C7 -> 2836525.14 | C7: =B7*('Population Figures'!D7)*'Population Figures'!X7 -> 0 | D7: =B7*('Population Figures'!D7)*'Scenario 2 - Nut.Analysis'!B9 -> 158845.4078 | E7: =B7*('Population Figures'!D7)*'Scenario 2 - Nut.Analysis'!C9 -> 54461.28269 | F7: =IF('Population Figures'!E7<>"",IF(C7<>"",B7*('Population Figures'!E7)*#REF!, IF(D7<>"", B7*('Population Figures'!E7)*'Scenario 2 - Nut.Analysis'!B9, IF(E7<>"", B7*('Population Figures'!E7)*'Scenario 2 - Nut.Analysis'!C9, "N/A"))), "N/A") -> N/A | G7: =IF('Population Figures'!F7<>"",IF(C7<>"",B7*('Population Figures'!F7)*#REF!, IF(D7<>"", B7*('Population Figures'!F7)*'Scenario 2 - Nut.Analysis'!B9, IF(E7<>"", B7*('Population Figures'!F7)*'Scenario 2 - Nut.Analysis'!C9, "N/A"))), "N/A") -> N/A | H7: =B7*('Population Figures'!D7) -> 453844.0224 | I7: ='Population Figures'!AB7*(B7*'Population Figures'!D7)*'Population Figures'!$AI$4 -> 0 | J7: ='Population Figures'!AC7*(B7*'Population Figures'!D7)*'Population Figures'!$AI$4 -> 0 | K7: ='Population Figures'!AD7*(B7*'Population Figures'!D7)*'Population Figures'!$AI$4 -> 0 | L7: =IF('Population Figures'!E7<>"",IF(I7<>0,'Population Figures'!AB7*(B7*'Population Figures'!E7)*'Population Figures'!$AI$4, IF(J7<>0, 'Population Figures'!AC7*(B7*'Population Figures'!E7)*'Population Figures'!$AI$4, IF(K7<>0, 'Population Figures'!AD7*(B7*'Population Figures'!E7)*'Population Figures'!$AI$4, "N/A"))), "N/A") -> N/A | M7: =IF('Population Figures'!F7<>"",IF(I7<>0,'Population Figures'!AB7*(B7*'Population Figures'!F7)*'Population Figures'!$AI$4, IF(J7<>0, 'Population Figures'!AC7*(B7*'Population Figures'!F7)*'Population Figures'!$AI$4, IF(K7<>0, 'Population Figures'!AD7*(B7*'Population Figures'!F7)*'Population Figures'!$AI$4, "N/A"))), "N/A") -> N/A | N7: =IF(I7<>0,I7*'Population Figures'!$AI$6,IF(J7<>0,J7*'Population Figures'!$AI$6,IF(K7<>0,K7*'Population Figures'!$AI$6,"Key Values"))) -> Key Values | O7: =IF(L7<>"N/A",L7*'Population Figures'!$AI$6,"N/A") -> N/A | P7: =IF(M7<>"N/A",M7*'Population Figures'!$AI$6,"N/A") -> N/A | Q7: =IF(I7<>0,'Population Figures'!AB7*( B7*ABS('Population Figures'!D7-'Population Figures'!G7))*'Population Figures'!$AI$4*'Population Figures'!$AI$7, IF(J7<>0,'Population Figures'!AC7*( B7*ABS('Population Figures'!D7-'Population Figures'!G7))*'Population Figures'!$AI$4*'Population Figures'!$AI$7, IF(K7<>0,'Population Figures'!AD7*( B7*ABS('Population Figures'!D7-'Population Figures'!G7))*'Population Figures'!$AI$4*'Population Figures'!$AI$7, "Key Values"))) -> Key Values | R7: =IF('Population Figures'!E7<>"", IF(I7<>0,'Population Figures'!AB7*(B7*ABS('Population Figures'!E7-'Population Figures'!H7))*'Population Figures'!$AI$4, IF(J7<>0, 'Population Figures'!AC7*(B7*ABS('Population Figures'!E7-'Population Figures'!H7))*'Population Figures'!$AI$4, IF(K7<>0, 'Population Figures'!AD7*(B7*ABS('Population Figures'!E7-'Population Figures'!H7))*'Population Figures'!$AI$4, "N/A"))), "N/A") -> N/A | S7: =IF('Population Figures'!E7<>"", IF(I7<>0,'Population Figures'!AB7*(B7*ABS('Population Figures'!F7-'Population Figures'!I7))*'Population Figures'!$AI$4, IF(J7<>0, 'Population Figures'!AC7*(B7*ABS('Population Figures'!F7-'Population Figures'!I7))*'Population Figures'!$AI$4, IF(K7<>0, 'Population Figures'!AD7*(B7*ABS('Population Figures'!F7-'Population Figures'!I7))*'Population Figures'!$AI$4, "N/A"))), "N/A") -> N/A | T7: =('Population Figures'!X7-'Population Figures'!AB7)*(B7*ABS('Population Figures'!D7-'Population Figures'!G7)*'Population Figures'!$AI$5) -> 0 | U7: =ABS('Population Figures'!Y7-'Population Figures'!AC7)*(B7*ABS('Population Figures'!D7-'Population Figures'!G7))*'Population Figures'!$AI$5 -> 0 | V7: =ABS('Population Figures'!Z7-'Population Figures'!AD7)*(B7*ABS('Population Figures'!D7-'Population Figures'!G7)*'Population Figures'!$AI$5) -> 0 | W7: =IF('Population Figures'!E7<>"",IF(T7<>0,('Population Figures'!X7-'Population Figures'!AB7)*(ABS('Population Figures'!E7-'Population Figures'!H7)*B7)*'Population Figures'!$AI$5, IF(U7<>0, ('Population Figures'!Y7-'Population Figures'!AC7)*(ABS('Population Figures'!E7-'Population Figures'!H7)*B7)*'Population Figures'!$AI$5, IF(V7<>0, ('Population Figures'!Z7-'Population Figures'!AD7)*(B7*ABS('Population Figures'!E7-'Population Figures'!H7))*'Population Figures'!$AI$4, "N/A"))), "N/A") -> N/A | X7: =IF('Population Figures'!F7<>"",IF(T7<>0,('Population Figures'!X7-'Population Figures'!AB7)*(ABS('Population Figures'!F7-'Population Figures'!I7)*B7)*'Population Figures'!$AI$5, IF(U7<>0, ('Population Figures'!Y7-'Population Figures'!AC7)*(ABS('Population Figures'!F7-'Population Figures'!I7)*B7)*'Population Figures'!$AI$5, IF(V7<>0, ('Population Figures'!Z7-'Population Figures'!AD7)*(B7*ABS('Population Figures'!F7-'Population Figures'!I7))*'Population Figures'!$AI$4, "N/A"))), "N/A") -> N/A | Y7: ='Population Figures'!M7*'Population Figures'!C7*'Population Figures'!$AI$9 -> 0 | Z7: =IF('Population Figures'!N7<>"",'Population Figures'!N7*'Population Figures'!C7*'Population Figures'!$AI$9,"N/A") -> N/A | AA7: =IF('Population Figures'!O7<>"",'Population Figures'!O7*'Population Figures'!C7*'Population Figures'!$AI$9,"N/A") -> N/A | AB7: =B7*'Population Figures'!P7*'Population Figures'!AA7 -> 0 | AC7: =B7*'Population Figures'!P7 -> 198556.7598 | AD7: =B7*'Population Figures'!P7*ABS('Population Figures'!AA7-'Population Figures'!AE7)*'Population Figures'!$AI$14 -> 0 | AE7: =B7*'Population Figures'!P7*ABS('Population Figures'!AA5-'Population Figures'!AE7)*'Population Figures'!$AI$15 -> 0 | AF7: =IF('Scenario 2 Contributing Fact'!F10<>"", B7*'Population Figures'!R7*'Scenario 2 Contributing Fact'!F10,B7*'Population Figures'!R7*'Scenario 3 - Nut. Analysis'!J6) -> 0 | AG7: =IF('Population Figures'!T7<>"",B7*'Population Figures'!T7*AF7,"N/A") -> N/A | AH7: =IF('Population Figures'!S7<>"",B7*'Population Figures'!S7*AF7,"N/A") -> N/A | AI7: =B7*'Population Figures'!R7 -> 283652.514 | AJ7: =IF('Scenario 2 Contributing Fact'!G10<>"", B7*'Population Figures'!U7*'Scenario 2 Contributing Fact'!G10,B7*'Population Figures'!U7*'Scenario 3 - Nut. Analysis'!K6) -> 0 | AK7: =IF('Population Figures'!V7<>"",B7*'Population Figures'!V7*AJ7,"N/A") -> N/A | AL7: =IF('Population Figures'!W7<>"",B7*'Population Figures'!W7*AJ7,"N/A") -> N/A
A8: ='Population Figures'!B8 -> Balkh | B8: ='Population Figures'!C8 -> 4142095.56 | C8: =B8*('Population Figures'!D8)*'Population Figures'!X8 -> 0 | D8: =B8*('Population Figures'!D8)*'Scenario 2 - Nut.Analysis'!B10 -> 33136.76448 | E8: =B8*('Population Figures'!D8)*'Scenario 2 - Nut.Analysis'!C10 -> 0 | F8: =IF('Population Figures'!E8<>"",IF(C8<>"",B8*('Population Figures'!E8)*#REF!, IF(D8<>"", B8*('Population Figures'!E8)*'Scenario 2 - Nut.Analysis'!B10, IF(E8<>"", B8*('Population Figures'!E8)*'Scenario 2 - Nut.Analysis'!C10, "N/A"))), "N/A") -> N/A | G8: =IF('Population Figures'!F8<>"",IF(C8<>"",B8*('Population Figures'!F8)*#REF!, IF(D8<>"", B8*('Population Figures'!F8)*'Scenario 2 - Nut.Analysis'!B10, IF(E8<>"", B8*('Population Figures'!F8)*'Scenario 2 - Nut.Analysis'!C10, "N/A"))), "N/A") -> N/A | H8: =B8*('Population Figures'!D8) -> 662735.2896 | I8: ='Population Figures'!AB8*(B8*'Population Figures'!D8)*'Population Figures'!$AI$4 -> 0 | J8: ='Population Figures'!AC8*(B8*'Population Figures'!D8)*'Population Figures'!$AI$4 -> 0 | K8: ='Population Figures'!AD8*(B8*'Population Figures'!D8)*'Population Figures'!$AI$4 -> 0 | L8: =IF('Population Figures'!E8<>"",IF(I8<>0,'Population Figures'!AB8*(B8*'Population Figures'!E8)*'Population Figures'!$AI$4, IF(J8<>0, 'Population Figures'!AC8*(B8*'Population Figures'!E8)*'Population Figures'!$AI$4, IF(K8<>0, 'Population Figures'!AD8*(B8*'Population Figures'!E8)*'Population Figures'!$AI$4, "N/A"))), "N/A") -> N/A | M8: =IF('Population Figures'!F8<>"",IF(I8<>0,'Population Figures'!AB8*(B8*'Population Figures'!F8)*'Population Figures'!$AI$4, IF(J8<>0, 'Population Figures'!AC8*(B8*'Population Figures'!F8)*'Population Figures'!$AI$4, IF(K8<>0, 'Population Figures'!AD8*(B8*'Population Figures'!F8)*'Population Figures'!$AI$4, "N/A"))), "N/A") -> N/A | N8: =IF(I8<>0,I8*'Population Figures'!$AI$6,IF(J8<>0,J8*'Population Figures'!$AI$6,IF(K8<>0,K8*'Population Figures'!$AI$6,"Key Values"))) -> Key Values | O8: =IF(L8<>"N/A",L8*'Population Figures'!$AI$6,"N/A") -> N/A | P8: =IF(M8<>"N/A",M8*'Population Figures'!$AI$6,"N/A") -> N/A | Q8: =IF(I8<>0,'Population Figures'!AB8*( B8*ABS('Population Figures'!D8-'Population Figures'!G8))*'Population Figures'!$AI$4*'Population Figures'!$AI$7, IF(J8<>0,'Population Figures'!AC8*( B8*ABS('Population Figures'!D8-'Population Figures'!G8))*'Population Figures'!$AI$4*'Population Figures'!$AI$7, IF(K8<>0,'Population Figures'!AD8*( B8*ABS('Population Figures'!D8-'Population Figures'!G8))*'Population Figures'!$AI$4*'Population Figures'!$AI$7, "Key Values"))) -> Key Values | R8: =IF('Population Figures'!E8<>"", IF(I8<>0,'Population Figures'!AB8*(B8*ABS('Population Figures'!E8-'Population Figures'!H8))*'Population Figures'!$AI$4, IF(J8<>0, 'Population Figures'!AC8*(B8*ABS('Population Figures'!E8-'Population Figures'!H8))*'Population Figures'!$AI$4, IF(K8<>0, 'Population Figures'!AD8*(B8*ABS('Population Figures'!E8-'Population Figures'!H8))*'Population Figures'!$AI$4, "N/A"))), "N/A") -> N/A | S8: =IF('Population Figures'!E8<>"", IF(I8<>0,'Population Figures'!AB8*(B8*ABS('Population Figures'!F8-'Population Figures'!I8))*'Population Figures'!$AI$4, IF(J8<>0, 'Population Figures'!AC8*(B8*ABS('Population Figures'!F8-'Population Figures'!I8))*'Population Figures'!$AI$4, IF(K8<>0, 'Population Figures'!AD8*(B8*ABS('Population Figures'!F8-'Population Figures'!I8))*'Population Figures'!$AI$4, "N/A"))), "N/A") -> N/A | T8: =('Population Figures'!X8-'Population Figures'!AB8)*(B8*ABS('Population Figures'!D8-'Population Figures'!G8)*'Population Figures'!$AI$5) -> 0 | U8: =ABS('Population Figures'!Y8-'Population Figures'!AC8)*(B8*ABS('Population Figures'!D8-'Population Figures'!G8))*'Population Figures'!$AI$5 -> 0 | V8: =ABS('Population Figures'!Z8-'Population Figures'!AD8)*(B8*ABS('Population Figures'!D8-'Population Figures'!G8)*'Population Figures'!$AI$5) -> 0 | W8: =IF('Population Figures'!E8<>"",IF(T8<>0,('Population Figures'!X8-'Population Figures'!AB8)*(ABS('Population Figures'!E8-'Population Figures'!H8)*B8)*'Population Figures'!$AI$5, IF(U8<>0, ('Population Figures'!Y8-'Population Figures'!AC8)*(ABS('Population Figures'!E8-'Population Figures'!H8)*B8)*'Population Figures'!$AI$5, IF(V8<>0, ('Population Figures'!Z8-'Population Figures'!AD8)*(B8*ABS('Population Figures'!E8-'Population Figures'!H8))*'Population Figures'!$AI$4, "N/A"))), "N/A") -> N/A | X8: =IF('Population Figures'!F8<>"",IF(T8<>0,('Population Figures'!X8-'Population Figures'!AB8)*(ABS('Population Figures'!F8-'Population Figures'!I8)*B8)*'Population Figures'!$AI$5, IF(U8<>0, ('Population Figures'!Y8-'Population Figures'!AC8)*(ABS('Population Figures'!F8-'Population Figures'!I8)*B8)*'Population Figures'!$AI$5, IF(V8<>0, ('Population Figures'!Z8-'Population Figures'!AD8)*(B8*ABS('Population Figures'!F8-'Population Figures'!I8))*'Population Figures'!$AI$4, "N/A"))), "N/A") -> N/A | Y8: ='Population Figures'!M8*'Population Figures'!C8*'Population Figures'!$AI$9 -> 0 | Z8: =IF('Population Figures'!N8<>"",'Population Figures'!N8*'Population Figures'!C8*'Population Figures'!$AI$9,"N/A") -> N/A | AA8: =IF('Population Figures'!O8<>"",'Population Figures'!O8*'Population Figures'!C8*'Population Figures'!$AI$9,"N/A") -> N/A | AB8: =B8*'Population Figures'!P8*'Population Figures'!AA8 -> 0 | AC8: =B8*'Population Figures'!P8 -> 289946.6892 | AD8: =B8*'Population Figures'!P8*ABS('Population Figures'!AA8-'Population Figures'!AE8)*'Population Figures'!$AI$14 -> 0 | AE8: =B8*'Population Figures'!P8*ABS('Population Figures'!AA6-'Population Figures'!AE8)*'Population Figures'!$AI$15 -> 0 | AF8: =IF('Scenario 2 Contributing Fact'!F11<>"", B8*'Population Figures'!R8*'Scenario 2 Contributing Fact'!F11,B8*'Population Figures'!R8*'Scenario 3 - Nut. Analysis'!J7) -> 0 | AG8: =IF('Population Figures'!T8<>"",B8*'Population Figures'!T8*AF8,"N/A") -> N/A | AH8: =IF('Population Figures'!S8<>"",B8*'Population Figures'!S8*AF8,"N/A") -> N/A | AI8: =B8*'Population Figures'!R8 -> 414209.556 | AJ8: =IF('Scenario 2 Contributing Fact'!G11<>"", B8*'Population Figures'!U8*'Scenario 2 Contributing Fact'!G11,B8*'Population Figures'!U8*'Scenario 3 - Nut. Analysis'!K7) -> 0 | AK8: =IF('Population Figures'!V8<>"",B8*'Population Figures'!V8*AJ8,"N/A") -> N/A | AL8: =IF('Population Figures'!W8<>"",B8*'Population Figures'!W8*AJ8,"N/A") -> N/A
A9: ='Population Figures'!B9 -> Bamyan | B9: ='Population Figures'!C9 -> 1391176.98 | C9: =B9*('Population Figures'!D9)*'Population Figures'!X9 -> 0 | D9: =B9*('Population Figures'!D9)*'Scenario 2 - Nut.Analysis'!B11 -> 0 | E9: =B9*('Population Figures'!D9)*'Scenario 2 - Nut.Analysis'!C11 -> 0 | F9: =IF('Population Figures'!E9<>"",IF(C9<>"",B9*('Population Figures'!E9)*#REF!, IF(D9<>"", B9*('Population Figures'!E9)*'Scenario 2 - Nut.Analysis'!B11, IF(E9<>"", B9*('Population Figures'!E9)*'Scenario 2 - Nut.Analysis'!C11, "N/A"))), "N/A") -> N/A | G9: =IF('Population Figures'!F9<>"",IF(C9<>"",B9*('Population Figures'!F9)*#REF!, IF(D9<>"", B9*('Population Figures'!F9)*'Scenario 2 - Nut.Analysis'!B11, IF(E9<>"", B9*('Population Figures'!F9)*'Scenario 2 - Nut.Analysis'!C11, "N/A"))), "N/A") -> N/A | H9: =B9*('Population Figures'!D9) -> 222588.3168 | I9: ='Population Figures'!AB9*(B9*'Population Figures'!D9)*'Population Figures'!$AI$4 -> 0 | J9: ='Population Figures'!AC9*(B9*'Population Figures'!D9)*'Population Figures'!$AI$4 -> 0 | K9: ='Population Figures'!AD9*(B9*'Population Figures'!D9)*'Population Figures'!$AI$4 -> 0 | L9: =IF('Population Figures'!E9<>"",IF(I9<>0,'Population Figures'!AB9*(B9*'Population Figures'!E9)*'Population Figures'!$AI$4, IF(J9<>0, 'Population Figures'!AC9*(B9*'Population Figures'!E9)*'Population Figures'!$AI$4, IF(K9<>0, 'Population Figures'!AD9*(B9*'Population Figures'!E9)*'Population Figures'!$AI$4, "N/A"))), "N/A") -> N/A | M9: =IF('Population Figures'!F9<>"",IF(I9<>0,'Population Figures'!AB9*(B9*'Population Figures'!F9)*'Population Figures'!$AI$4, IF(J9<>0, 'Population Figures'!AC9*(B9*'Population Figures'!F9)*'Population Figures'!$AI$4, IF(K9<>0, 'Population Figures'!AD9*(B9*'Population Figures'!F9)*'Population Figures'!$AI$4, "N/A"))), "N/A") -> N/A | N9: =IF(I9<>0,I9*'Population Figures'!$AI$6,IF(J9<>0,J9*'Population Figures'!$AI$6,IF(K9<>0,K9*'Population Figures'!$AI$6,"Key Values"))) -> Key Values | O9: =IF(L9<>"N/A",L9*'Population Figures'!$AI$6,"N/A") -> N/A | P9: =IF(M9<>"N/A",M9*'Population Figures'!$AI$6,"N/A") -> N/A | Q9: =IF(I9<>0,'Population Figures'!AB9*( B9*ABS('Population Figures'!D9-'Population Figures'!G9))*'Population Figures'!$AI$4*'Population Figures'!$AI$7, IF(J9<>0,'Population Figures'!AC9*( B9*ABS('Population Figures'!D9-'Population Figures'!G9))*'Population Figures'!$AI$4*'Population Figures'!$AI$7, IF(K9<>0,'Population Figures'!AD9*( B9*ABS('Population Figures'!D9-'Population Figures'!G9))*'Population Figures'!$AI$4*'Population Figures'!$AI$7, "Key Values"))) -> Key Values | R9: =IF('Population Figures'!E9<>"", IF(I9<>0,'Population Figures'!AB9*(B9*ABS('Population Figures'!E9-'Population Figures'!H9))*'Population Figures'!$AI$4, IF(J9<>0, 'Population Figures'!AC9*(B9*ABS('Population Figures'!E9-'Population Figures'!H9))*'Population Figures'!$AI$4, IF(K9<>0, 'Population Figures'!AD9*(B9*ABS('Population Figures'!E9-'Population Figures'!H9))*'Population Figures'!$AI$4, "N/A"))), "N/A") -> N/A | S9: =IF('Population Figures'!E9<>"", IF(I9<>0,'Population Figures'!AB9*(B9*ABS('Population Figures'!F9-'Population Figures'!I9))*'Population Figures'!$AI$4, IF(J9<>0, 'Population Figures'!AC9*(B9*ABS('Population Figures'!F9-'Population Figures'!I9))*'Population Figures'!$AI$4, IF(K9<>0, 'Population Figures'!AD9*(B9*ABS('Population Figures'!F9-'Population Figures'!I9))*'Population Figures'!$AI$4, "N/A"))), "N/A") -> N/A | T9: =('Population Figures'!X9-'Population Figures'!AB9)*(B9*ABS('Population Figures'!D9-'Population Figures'!G9)*'Population Figures'!$AI$5) -> 0 | U9: =ABS('Population Figures'!Y9-'Population Figures'!AC9)*(B9*ABS('Population Figures'!D9-'Population Figures'!G9))*'Population Figures'!$AI$5 -> 0 | V9: =ABS('Population Figures'!Z9-'Population Figures'!AD9)*(B9*ABS('Population Figures'!D9-'Population Figures'!G9)*'Population Figures'!$AI$5) -> 0 | W9: =IF('Population Figures'!E9<>"",IF(T9<>0,('Population Figures'!X9-'Population Figures'!AB9)*(ABS('Population Figures'!E9-'Population Figures'!H9)*B9)*'Population Figures'!$AI$5, IF(U9<>0, ('Population Figures'!Y9-'Population Figures'!AC9)*(ABS('Population Figures'!E9-'Population Figures'!H9)*B9)*'Population Figures'!$AI$5, IF(V9<>0, ('Population Figures'!Z9-'Population Figures'!AD9)*(B9*ABS('Population Figures'!E9-'Population Figures'!H9))*'Population Figures'!$AI$4, "N/A"))), "N/A") -> N/A | X9: =IF('Population Figures'!F9<>"",IF(T9<>0,('Population Figures'!X9-'Population Figures'!AB9)*(ABS('Population Figures'!F9-'Population Figures'!I9)*B9)*'Population Figures'!$AI$5, IF(U9<>0, ('Population Figures'!Y9-'Population Figures'!AC9)*(ABS('Population Figures'!F9-'Population Figures'!I9)*B9)*'Population Figures'!$AI$5, IF(V9<>0, ('Population Figures'!Z9-'Population Figures'!AD9)*(B9*ABS('Population Figures'!F9-'Population Figures'!I9))*'Population Figures'!$AI$4, "N/A"))), "N/A") -> N/A | Y9: ='Population Figures'!M9*'Population Figures'!C9*'Population Figures'!$AI$9 -> 0 | Z9: =IF('Population Figures'!N9<>"",'Population Figures'!N9*'Population Figures'!C9*'Population Figures'!$AI$9,"N/A") -> N/A | AA9: =IF('Population Figures'!O9<>"",'Population Figures'!O9*'Population Figures'!C9*'Population Figures'!$AI$9,"N/A") -> N/A | AB9: =B9*'Population Figures'!P9*'Population Figures'!AA9 -> 0 | AC9: =B9*'Population Figures'!P9 -> 97382.3886 | AD9: =B9*'Population Figures'!P9*ABS('Population Figures'!AA9-'Population Figures'!AE9)*'Population Figures'!$AI$14 -> 0 | AE9: =B9*'Population Figures'!P9*ABS('Population Figures'!AA7-'Population Figures'!AE9)*'Population Figures'!$AI$15 -> 0 | AF9: =IF('Scenario 2 Contributing Fact'!F12<>"", B9*'Population Figures'!R9*'Scenario 2 Contributing Fact'!F12,B9*'Population Figures'!R9*'Scenario 3 - Nut. Analysis'!J8) -> 0 | AG9: =IF('Population Figures'!T9<>"",B9*'Population Figures'!T9*AF9,"N/A") -> N/A | AH9: =IF('Population Figures'!S9<>"",B9*'Population Figures'!S9*AF9,"N/A") -> N/A | AI9: =B9*'Population Figures'!R9 -> 139117.698 | AJ9: =IF('Scenario 2 Contributing Fact'!G12<>"", B9*'Population Figures'!U9*'Scenario 2 Contributing Fact'!G12,B9*'Population Figures'!U9*'Scenario 3 - Nut. Analysis'!K8) -> 0 | AK9: =IF('Population Figures'!V9<>"",B9*'Population Figures'!V9*AJ9,"N/A") -> N/A | AL9: =IF('Population Figures'!W9<>"",B9*'Population Figures'!W9*AJ9,"N/A") -> N/A
A10: ='Population Figures'!B10 -> Dykundi | B10: ='Population Figures'!C10 -> 1432624.68 | C10: =B10*('Population Figures'!D10)*'Population Figures'!X10 -> 0 | D10: =B10*('Population Figures'!D10)*'Scenario 2 - Nut.Analysis'!B12 -> 11460.99744 | E10: =B10*('Population Figures'!D10)*'Scenario 2 - Nut.Analysis'!C12 -> 0 | F10: =IF('Population Figures'!E10<>"",IF(C10<>"",B10*('Population Figures'!E10)*#REF!, IF(D10<>"", B10*('Population Figures'!E10)*'Scenario 2 - Nut.Analysis'!B12, IF(E10<>"", B10*('Population Figures'!E10)*'Scenario 2 - Nut.Analysis'!C12, "N/A"))), "N/A") -> N/A | G10: =IF('Population Figures'!F10<>"",IF(C10<>"",B10*('Population Figures'!F10)*#REF!, IF(D10<>"", B10*('Population Figures'!F10)*'Scenario 2 - Nut.Analysis'!B12, IF(E10<>"", B10*('Population Figures'!F10)*'Scenario 2 - Nut.Analysis'!C12, "N/A"))), "N/A") -> N/A | H10: =B10*('Population Figures'!D10) -> 229219.9488 | I10: ='Population Figures'!AB10*(B10*'Population Figures'!D10)*'Population Figures'!$AI$4 -> 0 | J10: ='Population Figures'!AC10*(B10*'Population Figures'!D10)*'Population Figures'!$AI$4 -> 0 | K10: ='Population Figures'!AD10*(B10*'Population Figures'!D10)*'Population Figures'!$AI$4 -> 0 | L10: =IF('Population Figures'!E10<>"",IF(I10<>0,'Population Figures'!AB10*(B10*'Population Figures'!E10)*'Population Figures'!$AI$4, IF(J10<>0, 'Population Figures'!AC10*(B10*'Population Figures'!E10)*'Population Figures'!$AI$4, IF(K10<>0, 'Population Figures'!AD10*(B10*'Population Figures'!E10)*'Population Figures'!$AI$4, "N/A"))), "N/A") -> N/A | M10: =IF('Population Figures'!F10<>"",IF(I10<>0,'Population Figures'!AB10*(B10*'Population Figures'!F10)*'Population Figures'!$AI$4, IF(J10<>0, 'Population Figures'!AC10*(B10*'Population Figures'!F10)*'Population Figures'!$AI$4, IF(K10<>0, 'Population Figures'!AD10*(B10*'Population Figures'!F10)*'Population Figures'!$AI$4, "N/A"))), "N/A") -> N/A | N10: =IF(I10<>0,I10*'Population Figures'!$AI$6,IF(J10<>0,J10*'Population Figures'!$AI$6,IF(K10<>0,K10*'Population Figures'!$AI$6,"Key Values"))) -> Key Values | O10: =IF(L10<>"N/A",L10*'Population Figures'!$AI$6,"N/A") -> N/A | P10: =IF(M10<>"N/A",M10*'Population Figures'!$AI$6,"N/A") -> N/A | Q10: =IF(I10<>0,'Population Figures'!AB10*( B10*ABS('Population Figures'!D10-'Population Figures'!G10))*'Population Figures'!$AI$4*'Population Figures'!$AI$7, IF(J10<>0,'Population Figures'!AC10*( B10*ABS('Population Figures'!D10-'Population Figures'!G10))*'Population Figures'!$AI$4*'Population Figures'!$AI$7, IF(K10<>0,'Population Figures'!AD10*( B10*ABS('Population Figures'!D10-'Population Figures'!G10))*'Population Figures'!$AI$4*'Population Figures'!$AI$7, "Key Values"))) -> Key Values | R10: =IF('Population Figures'!E10<>"", IF(I10<>0,'Population Figures'!AB10*(B10*ABS('Population Figures'!E10-'Population Figures'!H10))*'Population Figures'!$AI$4, IF(J10<>0, 'Population Figures'!AC10*(B10*ABS('Population Figures'!E10-'Population Figures'!H10))*'Population Figures'!$AI$4, IF(K10<>0, 'Population Figures'!AD10*(B10*ABS('Population Figures'!E10-'Population Figures'!H10))*'Population Figures'!$AI$4, "N/A"))), "N/A") -> N/A | S10: =IF('Population Figures'!E10<>"", IF(I10<>0,'Population Figures'!AB10*(B10*ABS('Population Figures'!F10-'Population Figures'!I10))*'Population Figures'!$AI$4, IF(J10<>0, 'Population Figures'!AC10*(B10*ABS('Population Figures'!F10-'Population Figures'!I10))*'Population Figures'!$AI$4, IF(K10<>0, 'Population Figures'!AD10*(B10*ABS('Population Figures'!F10-'Population Figures'!I10))*'Population Figures'!$AI$4, "N/A"))), "N/A") -> N/A | T10: =('Population Figures'!X10-'Population Figures'!AB10)*(B10*ABS('Population Figures'!D10-'Population Figures'!G10)*'Population Figures'!$AI$5) -> 0 | U10: =ABS('Population Figures'!Y10-'Population Figures'!AC10)*(B10*ABS('Population Figures'!D10-'Population Figures'!G10))*'Population Figures'!$AI$5 -> 0 | V10: =ABS('Population Figures'!Z10-'Population Figures'!AD10)*(B10*ABS('Population Figures'!D10-'Population Figures'!G10)*'Population Figures'!$AI$5) -> 0 | W10: =IF('Population Figures'!E10<>"",IF(T10<>0,('Population Figures'!X10-'Population Figures'!AB10)*(ABS('Population Figures'!E10-'Population Figures'!H10)*B10)*'Population Figures'!$AI$5, IF(U10<>0, ('Population Figures'!Y10-'Population Figures'!AC10)*(ABS('Population Figures'!E10-'Population Figures'!H10)*B10)*'Population Figures'!$AI$5, IF(V10<>0, ('Population Figures'!Z10-'Population Figures'!AD10)*(B10*ABS('Population Figures'!E10-'Population Figures'!H10))*'Population Figures'!$AI$4, "N/A"))), "N/A") -> N/A | X10: =IF('Population Figures'!F10<>"",IF(T10<>0,('Population Figures'!X10-'Population Figures'!AB10)*(ABS('Population Figures'!F10-'Population Figures'!I10)*B10)*'Population Figures'!$AI$5, IF(U10<>0, ('Population Figures'!Y10-'Population Figures'!AC10)*(ABS('Population Figures'!F10-'Population Figures'!I10)*B10)*'Population Figures'!$AI$5, IF(V10<>0, ('Population Figures'!Z10-'Population Figures'!AD10)*(B10*ABS('Population Figures'!F10-'Population Figures'!I10))*'Population Figures'!$AI$4, "N/A"))), "N/A") -> N/A | Y10: ='Population Figures'!M10*'Population Figures'!C10*'Population Figures'!$AI$9 -> 0 | Z10: =IF('Population Figures'!N10<>"",'Population Figures'!N10*'Population Figures'!C10*'Population Figures'!$AI$9,"N/A") -> N/A | AA10: =IF('Population Figures'!O10<>"",'Population Figures'!O10*'Population Figures'!C10*'Population Figures'!$AI$9,"N/A") -> N/A | AB10: =B10*'Population Figures'!P10*'Population Figures'!AA10 -> 0 | AC10: =B10*'Population Figures'!P10 -> 100283.7276 | AD10: =B10*'Population Figures'!P10*ABS('Population Figures'!AA10-'Population Figures'!AE10)*'Population Figures'!$AI$14 -> 0 | AE10: =B10*'Population Figures'!P10*ABS('Population Figures'!AA8-'Population Figures'!AE10)*'Population Figures'!$AI$15 -> 0 | AF10: =IF('Scenario 2 Contributing Fact'!F13<>"", B10*'Population Figures'!R10*'Scenario 2 Contributing Fact'!F13,B10*'Population Figures'!R10*'Scenario 3 - Nut. Analysis'!J9) -> 0 | AG10: =IF('Population Figures'!T10<>"",B10*'Population Figures'!T10*AF10,"N/A") -> N/A | AH10: =IF('Population Figures'!S10<>"",B10*'Population Figures'!S10*AF10,"N/A") -> N/A | AI10: =B10*'Population Figures'!R10 -> 143262.468 | AJ10: =IF('Scenario 2 Contributing Fact'!G13<>"", B10*'Population Figures'!U10*'Scenario 2 Contributing Fact'!G13,B10*'Population Figures'!U10*'Scenario 3 - Nut. Analysis'!K9) -> 0 | AK10: =IF('Population Figures'!V10<>"",B10*'Population Figures'!V10*AJ10,"N/A") -> N/A | AL10: =IF('Population Figures'!W10<>"",B10*'Population Figures'!W10*AJ10,"N/A") -> N/A
A11: ='Population Figures'!B11 -> Farah | B11: ='Population Figures'!C11 -> 1578877.38 | C11: =B11*('Population Figures'!D11)*'Population Figures'!X11 -> 0 | D11: =B11*('Population Figures'!D11)*'Scenario 2 - Nut.Analysis'!B13 -> 12631.01904 | E11: =B11*('Population Figures'!D11)*'Scenario 2 - Nut.Analysis'!C13 -> 0 | F11: =IF('Population Figures'!E11<>"",IF(C11<>"",B11*('Population Figures'!E11)*#REF!, IF(D11<>"", B11*('Population Figures'!E11)*'Scenario 2 - Nut.Analysis'!B13, IF(E11<>"", B11*('Population Figures'!E11)*'Scenario 2 - Nut.Analysis'!C13, "N/A"))), "N/A") -> N/A | G11: =IF('Population Figures'!F11<>"",IF(C11<>"",B11*('Population Figures'!F11)*#REF!, IF(D11<>"", B11*('Population Figures'!F11)*'Scenario 2 - Nut.Analysis'!B13, IF(E11<>"", B11*('Population Figures'!F11)*'Scenario 2 - Nut.Analysis'!C13, "N/A"))), "N/A") -> N/A | H11: =B11*('Population Figures'!D11) -> 252620.3808 | I11: ='Population Figures'!AB11*(B11*'Population Figures'!D11)*'Population Figures'!$AI$4 -> 0 | J11: ='Population Figures'!AC11*(B11*'Population Figures'!D11)*'Population Figures'!$AI$4 -> 0 | K11: ='Population Figures'!AD11*(B11*'Population Figures'!D11)*'Population Figures'!$AI$4 -> 0 | L11: =IF('Population Figures'!E11<>"",IF(I11<>0,'Population Figures'!AB11*(B11*'Population Figures'!E11)*'Population Figures'!$AI$4, IF(J11<>0, 'Population Figures'!AC11*(B11*'Population Figures'!E11)*'Population Figures'!$AI$4, IF(K11<>0, 'Population Figures'!AD11*(B11*'Population Figures'!E11)*'Population Figures'!$AI$4, "N/A"))), "N/A") -> N/A | M11: =IF('Population Figures'!F11<>"",IF(I11<>0,'Population Figures'!AB11*(B11*'Population Figures'!F11)*'Population Figures'!$AI$4, IF(J11<>0, 'Population Figures'!AC11*(B11*'Population Figures'!F11)*'Population Figures'!$AI$4, IF(K11<>0, 'Population Figures'!AD11*(B11*'Population Figures'!F11)*'Population Figures'!$AI$4, "N/A"))), "N/A") -> N/A | N11: =IF(I11<>0,I11*'Population Figures'!$AI$6,IF(J11<>0,J11*'Population Figures'!$AI$6,IF(K11<>0,K11*'Population Figures'!$AI$6,"Key Values"))) -> Key Values | O11: =IF(L11<>"N/A",L11*'Population Figures'!$AI$6,"N/A") -> N/A | P11: =IF(M11<>"N/A",M11*'Population Figures'!$AI$6,"N/A") -> N/A | Q11: =IF(I11<>0,'Population Figures'!AB11*( B11*ABS('Population Figures'!D11-'Population Figures'!G11))*'Population Figures'!$AI$4*'Population Figures'!$AI$7, IF(J11<>0,'Population Figures'!AC11*( B11*ABS('Population Figures'!D11-'Population Figures'!G11))*'Population Figures'!$AI$4*'Population Figures'!$AI$7, IF(K11<>0,'Population Figures'!AD11*( B11*ABS('Population Figures'!D11-'Population Figures'!G11))*'Population Figures'!$AI$4*'Population Figures'!$AI$7, "Key Values"))) -> Key Values | R11: =IF('Population Figures'!E11<>"", IF(I11<>0,'Population Figures'!AB11*(B11*ABS('Population Figures'!E11-'Population Figures'!H11))*'Population Figures'!$AI$4, IF(J11<>0, 'Population Figures'!AC11*(B11*ABS('Population Figures'!E11-'Population Figures'!H11))*'Population Figures'!$AI$4, IF(K11<>0, 'Population Figures'!AD11*(B11*ABS('Population Figures'!E11-'Population Figures'!H11))*'Population Figures'!$AI$4, "N/A"))), "N/A") -> N/A | S11: =IF('Population Figures'!E11<>"", IF(I11<>0,'Population Figures'!AB11*(B11*ABS('Population Figures'!F11-'Population Figures'!I11))*'Population Figures'!$AI$4, IF(J11<>0, 'Population Figures'!AC11*(B11*ABS('Population Figures'!F11-'Population Figures'!I11))*'Population Figures'!$AI$4, IF(K11<>0, 'Population Figures'!AD11*(B11*ABS('Population Figures'!F11-'Population Figures'!I11))*'Population Figures'!$AI$4, "N/A"))), "N/A") -> N/A | T11: =('Population Figures'!X11-'Population Figures'!AB11)*(B11*ABS('Population Figures'!D11-'Population Figures'!G11)*'Population Figures'!$AI$5) -> 0 | U11: =ABS('Population Figures'!Y11-'Population Figures'!AC11)*(B11*ABS('Population Figures'!D11-'Population Figures'!G11))*'Population Figures'!$AI$5 -> 0 | V11: =ABS('Population Figures'!Z11-'Population Figures'!AD11)*(B11*ABS('Population Figures'!D11-'Population Figures'!G11)*'Population Figures'!$AI$5) -> 0 | W11: =IF('Population Figures'!E11<>"",IF(T11<>0,('Population Figures'!X11-'Population Figures'!AB11)*(ABS('Population Figures'!E11-'Population Figures'!H11)*B11)*'Population Figures'!$AI$5, IF(U11<>0, ('Population Figures'!Y11-'Population Figures'!AC11)*(ABS('Population Figures'!E11-'Population Figures'!H11)*B11)*'Population Figures'!$AI$5, IF(V11<>0, ('Population Figures'!Z11-'Population Figures'!AD11)*(B11*ABS('Population Figures'!E11-'Population Figures'!H11))*'Population Figures'!$AI$4, "N/A"))), "N/A") -> N/A | X11: =IF('Population Figures'!F11<>"",IF(T11<>0,('Population Figures'!X11-'Population Figures'!AB11)*(ABS('Population Figures'!F11-'Population Figures'!I11)*B11)*'Population Figures'!$AI$5, IF(U11<>0, ('Population Figures'!Y11-'Population Figures'!AC11)*(ABS('Population Figures'!F11-'Population Figures'!I11)*B11)*'Population Figures'!$AI$5, IF(V11<>0, ('Population Figures'!Z11-'Population Figures'!AD11)*(B11*ABS('Population Figures'!F11-'Population Figures'!I11))*'Population Figures'!$AI$4, "N/A"))), "N/A") -> N/A | Y11: ='Population Figures'!M11*'Population Figures'!C11*'Population Figures'!$AI$9 -> 0 | Z11: =IF('Population Figures'!N11<>"",'Population Figures'!N11*'Population Figures'!C11*'Population Figures'!$AI$9,"N/A") -> N/A | AA11: =IF('Population Figures'!O11<>"",'Population Figures'!O11*'Population Figures'!C11*'Population Figures'!$AI$9,"N/A") -> N/A | AB11: =B11*'Population Figures'!P11*'Population Figures'!AA9 -> 0 | AC11: =B11*'Population Figures'!P11 -> 110521.4166 | AD11: =B11*'Population Figures'!P11*ABS('Population Figures'!AA11-'Population Figures'!AE11)*'Population Figures'!$AI$14 -> 0 | AE11: =B11*'Population Figures'!P11*ABS('Population Figures'!AA9-'Population Figures'!AE11)*'Population Figures'!$AI$15 -> 0 | AF11: =IF('Scenario 2 Contributing Fact'!F14<>"", B11*'Population Figures'!R11*'Scenario 2 Contributing Fact'!F14,B11*'Population Figures'!R11*'Scenario 3 - Nut. Analysis'!J10) -> 0 | AG11: =IF('Population Figures'!T11<>"",B11*'Population Figures'!T11*AF11,"N/A") -> N/A | AH11: =IF('Population Figures'!S11<>"",B11*'Population Figures'!S11*AF11,"N/A") -> N/A | AI11: =B11*'Population Figures'!R11 -> 157887.738 | AJ11: =IF('Scenario 2 Contributing Fact'!G14<>"", B11*'Population Figures'!U11*'Scenario 2 Contributing Fact'!G14,B11*'Population Figures'!U11*'Scenario 3 - Nut. Analysis'!K10) -> 0 | AK11: =IF('Population Figures'!V11<>"",B11*'Population Figures'!V11*AJ11,"N/A") -> N/A | AL11: =IF('Population Figures'!W11<>"",B11*'Population Figures'!W11*AJ11,"N/A") -> N/A
A12: ='Population Figures'!B12 -> Faryab | B12: ='Population Figures'!C12 -> 3106925.1 | C12: =B12*('Population Figures'!D12)*'Population Figures'!X12 -> 0 | D12: =B12*('Population Figures'!D12)*'Scenario 2 - Nut.Analysis'!B14 -> 0 | E12: =B12*('Population Figures'!D12)*'Scenario 2 - Nut.Analysis'!C14 -> 69595.12224 | F12: =IF('Population Figures'!E12<>"",IF(C12<>"",B12*('Population Figures'!E12)*#REF!, IF(D12<>"", B12*('Population Figures'!E12)*'Scenario 2 - Nut.Analysis'!B14, IF(E12<>"", B12*('Population Figures'!E12)*'Scenario 2 - Nut.Analysis'!C14, "N/A"))), "N/A") -> N/A | G12: =IF('Population Figures'!F12<>"",IF(C12<>"",B12*('Population Figures'!F12)*#REF!, IF(D12<>"", B12*('Population Figures'!F12)*'Scenario 2 - Nut.Analysis'!B14, IF(E12<>"", B12*('Population Figures'!F12)*'Scenario 2 - Nut.Analysis'!C14, "N/A"))), "N/A") -> N/A | H12: =B12*('Population Figures'!D12) -> 497108.016 | I12: ='Population Figures'!AB12*(B12*'Population Figures'!D12)*'Population Figures'!$AI$4 -> 0 | J12: ='Population Figures'!AC12*(B12*'Population Figures'!D12)*'Population Figures'!$AI$4 -> 0 | K12: ='Population Figures'!AD12*(B12*'Population Figures'!D12)*'Population Figures'!$AI$4 -> 0 | L12: =IF('Population Figures'!E12<>"",IF(I12<>0,'Population Figures'!AB12*(B12*'Population Figures'!E12)*'Population Figures'!$AI$4, IF(J12<>0, 'Population Figures'!AC12*(B12*'Population Figures'!E12)*'Population Figures'!$AI$4, IF(K12<>0, 'Population Figures'!AD12*(B12*'Population Figures'!E12)*'Population Figures'!$AI$4, "N/A"))), "N/A") -> N/A | M12: =IF('Population Figures'!F12<>"",IF(I12<>0,'Population Figures'!AB12*(B12*'Population Figures'!F12)*'Population Figures'!$AI$4, IF(J12<>0, 'Population Figures'!AC12*(B12*'Population Figures'!F12)*'Population Figures'!$AI$4, IF(K12<>0, 'Population Figures'!AD12*(B12*'Population Figures'!F12)*'Population Figures'!$AI$4, "N/A"))), "N/A") -> N/A | N12: =IF(I12<>0,I12*'Population Figures'!$AI$6,IF(J12<>0,J12*'Population Figures'!$AI$6,IF(K12<>0,K12*'Population Figures'!$AI$6,"Key Values"))) -> Key Values | O12: =IF(L12<>"N/A",L12*'Population Figures'!$AI$6,"N/A") -> N/A | P12: =IF(M12<>"N/A",M12*'Population Figures'!$AI$6,"N/A") -> N/A | Q12: =IF(I12<>0,'Population Figures'!AB12*( B12*ABS('Population Figures'!D12-'Population Figures'!G12))*'Population Figures'!$AI$4*'Population Figures'!$AI$7, IF(J12<>0,'Population Figures'!AC12*( B12*ABS('Population Figures'!D12-'Population Figures'!G12))*'Population Figures'!$AI$4*'Population Figures'!$AI$7, IF(K12<>0,'Population Figures'!AD12*( B12*ABS('Population Figures'!D12-'Population Figures'!G12))*'Population Figures'!$AI$4*'Population Figures'!$AI$7, "Key Values"))) -> Key Values | R12: =IF('Population Figures'!E12<>"", IF(I12<>0,'Population Figures'!AB12*(B12*ABS('Population Figures'!E12-'Population Figures'!H12))*'Population Figures'!$AI$4, IF(J12<>0, 'Population Figures'!AC12*(B12*ABS('Population Figures'!E12-'Population Figures'!H12))*'Population Figures'!$AI$4, IF(K12<>0, 'Population Figures'!AD12*(B12*ABS('Population Figures'!E12-'Population Figures'!H12))*'Population Figures'!$AI$4, "N/A"))), "N/A") -> N/A | S12: =IF('Population Figures'!E12<>"", IF(I12<>0,'Population Figures'!AB12*(B12*ABS('Population Figures'!F12-'Population Figures'!I12))*'Population Figures'!$AI$4, IF(J12<>0, 'Population Figures'!AC12*(B12*ABS('Population Figures'!F12-'Population Figures'!I12))*'Population Figures'!$AI$4, IF(K12<>0, 'Population Figures'!AD12*(B12*ABS('Population Figures'!F12-'Population Figures'!I12))*'Population Figures'!$AI$4, "N/A"))), "N/A") -> N/A | T12: =('Population Figures'!X12-'Population Figures'!AB12)*(B12*ABS('Population Figures'!D12-'Population Figures'!G12)*'Population Figures'!$AI$5) -> 0 | U12: =ABS('Population Figures'!Y12-'Population Figures'!AC12)*(B12*ABS('Population Figures'!D12-'Population Figures'!G12))*'Population Figures'!$AI$5 -> 0 | V12: =ABS('Population Figures'!Z12-'Population Figures'!AD12)*(B12*ABS('Population Figures'!D12-'Population Figures'!G12)*'Population Figures'!$AI$5) -> 0 | W12: =IF('Population Figures'!E12<>"",IF(T12<>0,('Population Figures'!X12-'Population Figures'!AB12)*(ABS('Population Figures'!E12-'Population Figures'!H12)*B12)*'Population Figures'!$AI$5, IF(U12<>0, ('Population Figures'!Y12-'Population Figures'!AC12)*(ABS('Population Figures'!E12-'Population Figures'!H12)*B12)*'Population Figures'!$AI$5, IF(V12<>0, ('Population Figures'!Z12-'Population Figures'!AD12)*(B12*ABS('Population Figures'!E12-'Population Figures'!H12))*'Population Figures'!$AI$4, "N/A"))), "N/A") -> N/A | X12: =IF('Population Figures'!F12<>"",IF(T12<>0,('Population Figures'!X12-'Population Figures'!AB12)*(ABS('Population Figures'!F12-'Population Figures'!I12)*B12)*'Population Figures'!$AI$5, IF(U12<>0, ('Population Figures'!Y12-'Population Figures'!AC12)*(ABS('Population Figures'!F12-'Population Figures'!I12)*B12)*'Population Figures'!$AI$5, IF(V12<>0, ('Population Figures'!Z12-'Population Figures'!AD12)*(B12*ABS('Population Figures'!F12-'Population Figures'!I12))*'Population Figures'!$AI$4, "N/A"))), "N/A") -> N/A | Y12: ='Population Figures'!M12*'Population Figures'!C12*'Population Figures'!$AI$9 -> 0 | Z12: =IF('Population Figures'!N12<>"",'Population Figures'!N12*'Population Figures'!C12*'Population Figures'!$AI$9,"N/A") -> N/A | AA12: =IF('Population Figures'!O12<>"",'Population Figures'!O12*'Population Figures'!C12*'Population Figures'!$AI$9,"N/A") -> N/A | AB12: =B12*'Population Figures'!P12*'Population Figures'!AA10 -> 0 | AC12: =B12*'Population Figures'!P12 -> 217484.757 | AD12: =B12*'Population Figures'!P12*ABS('Population Figures'!AA12-'Population Figures'!AE12)*'Population Figures'!$AI$14 -> 0 | AE12: =B12*'Population Figures'!P12*ABS('Population Figures'!AA10-'Population Figures'!AE12)*'Population Figures'!$AI$15 -> 0 | AF12: =IF('Scenario 2 Contributing Fact'!F15<>"", B12*'Population Figures'!R12*'Scenario 2 Contributing Fact'!F15,B12*'Population Figures'!R12*'Scenario 3 - Nut. Analysis'!J11) -> 0 | AG12: =IF('Population Figures'!T12<>"",B12*'Population Figures'!T12*AF12,"N/A") -> N/A | AH12: =IF('Population Figures'!S12<>"",B12*'Population Figures'!S12*AF12,"N/A") -> N/A | AI12: =B12*'Population Figures'!R12 -> 310692.51 | AJ12: =IF('Scenario 2 Contributing Fact'!G15<>"", B12*'Population Figures'!U12*'Scenario 2 Contributing Fact'!G15,B12*'Population Figures'!U12*'Scenario 3 - Nut. Analysis'!K11) -> 0 | AK12: =IF('Population Figures'!V12<>"",B12*'Population Figures'!V12*AJ12,"N/A") -> N/A | AL12: =IF('Population Figures'!W12<>"",B12*'Population Figures'!W12*AJ12,"N/A") -> N/A
A13: ='Population Figures'!B13 -> Ghazni | B13: ='Population Figures'!C13 -> 3823090.56 | C13: =B13*('Population Figures'!D13)*'Population Figures'!X13 -> 0 | D13: =B13*('Population Figures'!D13)*'Scenario 2 - Nut.Analysis'!B15 -> 30584.72448 | E13: =B13*('Population Figures'!D13)*'Scenario 2 - Nut.Analysis'!C15 -> 0 | F13: =IF('Population Figures'!E13<>"",IF(C13<>"",B13*('Population Figures'!E13)*#REF!, IF(D13<>"", B13*('Population Figures'!E13)*'Scenario 2 - Nut.Analysis'!B15, IF(E13<>"", B13*('Population Figures'!E13)*'Scenario 2 - Nut.Analysis'!C15, "N/A"))), "N/A") -> N/A | G13: =IF('Population Figures'!F13<>"",IF(C13<>"",B13*('Population Figures'!F13)*#REF!, IF(D13<>"", B13*('Population Figures'!F13)*'Scenario 2 - Nut.Analysis'!B15, IF(E13<>"", B13*('Population Figures'!F13)*'Scenario 2 - Nut.Analysis'!C15, "N/A"))), "N/A") -> N/A | H13: =B13*('Population Figures'!D13) -> 611694.4896 | I13: ='Population Figures'!AB13*(B13*'Population Figures'!D13)*'Population Figures'!$AI$4 -> 0 | J13: ='Population Figures'!AC13*(B13*'Population Figures'!D13)*'Population Figures'!$AI$4 -> 0 | K13: ='Population Figures'!AD13*(B13*'Population Figures'!D13)*'Population Figures'!$AI$4 -> 0 | L13: =IF('Population Figures'!E13<>"",IF(I13<>0,'Population Figures'!AB13*(B13*'Population Figures'!E13)*'Population Figures'!$AI$4, IF(J13<>0, 'Population Figures'!AC13*(B13*'Population Figures'!E13)*'Population Figures'!$AI$4, IF(K13<>0, 'Population Figures'!AD13*(B13*'Population Figures'!E13)*'Population Figures'!$AI$4, "N/A"))), "N/A") -> N/A | M13: =IF('Population Figures'!F13<>"",IF(I13<>0,'Population Figures'!AB13*(B13*'Population Figures'!F13)*'Population Figures'!$AI$4, IF(J13<>0, 'Population Figures'!AC13*(B13*'Population Figures'!F13)*'Population Figures'!$AI$4, IF(K13<>0, 'Population Figures'!AD13*(B13*'Population Figures'!F13)*'Population Figures'!$AI$4, "N/A"))), "N/A") -> N/A | N13: =IF(I13<>0,I13*'Population Figures'!$AI$6,IF(J13<>0,J13*'Population Figures'!$AI$6,IF(K13<>0,K13*'Population Figures'!$AI$6,"Key Values"))) -> Key Values | O13: =IF(L13<>"N/A",L13*'Population Figures'!$AI$6,"N/A") -> N/A | P13: =IF(M13<>"N/A",M13*'Population Figures'!$AI$6,"N/A") -> N/A | Q13: =IF(I13<>0,'Population Figures'!AB13*( B13*ABS('Population Figures'!D13-'Population Figures'!G13))*'Population Figures'!$AI$4*'Population Figures'!$AI$7, IF(J13<>0,'Population Figures'!AC13*( B13*ABS('Population Figures'!D13-'Population Figures'!G13))*'Population Figures'!$AI$4*'Population Figures'!$AI$7, IF(K13<>0,'Population Figures'!AD13*( B13*ABS('Population Figures'!D13-'Population Figures'!G13))*'Population Figures'!$AI$4*'Population Figures'!$AI$7, "Key Values"))) -> Key Values | R13: =IF('Population Figures'!E13<>"", IF(I13<>0,'Population Figures'!AB13*(B13*ABS('Population Figures'!E13-'Population Figures'!H13))*'Population Figures'!$AI$4, IF(J13<>0, 'Population Figures'!AC13*(B13*ABS('Population Figures'!E13-'Population Figures'!H13))*'Population Figures'!$AI$4, IF(K13<>0, 'Population Figures'!AD13*(B13*ABS('Population Figures'!E13-'Population Figures'!H13))*'Population Figures'!$AI$4, "N/A"))), "N/A") -> N/A | S13: =IF('Population Figures'!E13<>"", IF(I13<>0,'Population Figures'!AB13*(B13*ABS('Population Figures'!F13-'Population Figures'!I13))*'Population Figures'!$AI$4, IF(J13<>0, 'Population Figures'!AC13*(B13*ABS('Population Figures'!F13-'Population Figures'!I13))*'Population Figures'!$AI$4, IF(K13<>0, 'Population Figures'!AD13*(B13*ABS('Population Figures'!F13-'Population Figures'!I13))*'Population Figures'!$AI$4, "N/A"))), "N/A") -> N/A | T13: =('Population Figures'!X13-'Population Figures'!AB13)*(B13*ABS('Population Figures'!D13-'Population Figures'!G13)*'Population Figures'!$AI$5) -> 0 | U13: =ABS('Population Figures'!Y13-'Population Figures'!AC13)*(B13*ABS('Population Figures'!D13-'Population Figures'!G13))*'Population Figures'!$AI$5 -> 0 | V13: =ABS('Population Figures'!Z13-'Population Figures'!AD13)*(B13*ABS('Population Figures'!D13-'Population Figures'!G13)*'Population Figures'!$AI$5) -> 0 | W13: =IF('Population Figures'!E13<>"",IF(T13<>0,('Population Figures'!X13-'Population Figures'!AB13)*(ABS('Population Figures'!E13-'Population Figures'!H13)*B13)*'Population Figures'!$AI$5, IF(U13<>0, ('Population Figures'!Y13-'Population Figures'!AC13)*(ABS('Population Figures'!E13-'Population Figures'!H13)*B13)*'Population Figures'!$AI$5, IF(V13<>0, ('Population Figures'!Z13-'Population Figures'!AD13)*(B13*ABS('Population Figures'!E13-'Population Figures'!H13))*'Population Figures'!$AI$4, "N/A"))), "N/A") -> N/A | X13: =IF('Population Figures'!F13<>"",IF(T13<>0,('Population Figures'!X13-'Population Figures'!AB13)*(ABS('Population Figures'!F13-'Population Figures'!I13)*B13)*'Population Figures'!$AI$5, IF(U13<>0, ('Population Figures'!Y13-'Population Figures'!AC13)*(ABS('Population Figures'!F13-'Population Figures'!I13)*B13)*'Population Figures'!$AI$5, IF(V13<>0, ('Population Figures'!Z13-'Population Figures'!AD13)*(B13*ABS('Population Figures'!F13-'Population Figures'!I13))*'Population Figures'!$AI$4, "N/A"))), "N/A") -> N/A | Y13: ='Population Figures'!M13*'Population Figures'!C13*'Population Figures'!$AI$9 -> 0 | Z13: =IF('Population Figures'!N13<>"",'Population Figures'!N13*'Population Figures'!C13*'Population Figures'!$AI$9,"N/A") -> N/A | AA13: =IF('Population Figures'!O13<>"",'Population Figures'!O13*'Population Figures'!C13*'Population Figures'!$AI$9,"N/A") -> N/A | AB13: =B13*'Population Figures'!P13*'Population Figures'!AA11 -> 0 | AC13: =B13*'Population Figures'!P13 -> 267616.3392 | AD13: =B13*'Population Figures'!P13*ABS('Population Figures'!AA13-'Population Figures'!AE13)*'Population Figures'!$AI$14 -> 0 | AE13: =B13*'Population Figures'!P13*ABS('Population Figures'!AA11-'Population Figures'!AE13)*'Population Figures'!$AI$15 -> 0 | AF13: =IF('Scenario 2 Contributing Fact'!F16<>"", B13*'Population Figures'!R13*'Scenario 2 Contributing Fact'!F16,B13*'Population Figures'!R13*'Scenario 3 - Nut. Analysis'!J12) -> 0 | AG13: =IF('Population Figures'!T13<>"",B13*'Population Figures'!T13*AF13,"N/A") -> N/A | AH13: =IF('Population Figures'!S13<>"",B13*'Population Figures'!S13*AF13,"N/A") -> N/A | AI13: =B13*'Population Figures'!R13 -> 382309.056 | AJ13: =IF('Scenario 2 Contributing Fact'!G16<>"", B13*'Population Figures'!U13*'Scenario 2 Contributing Fact'!G16,B13*'Population Figures'!U13*'Scenario 3 - Nut. Analysis'!K12) -> 0 | AK13: =IF('Population Figures'!V13<>"",B13*'Population Figures'!V13*AJ13,"N/A") -> N/A | AL13: =IF('Population Figures'!W13<>"",B13*'Population Figures'!W13*AJ13,"N/A") -> N/A
A14: ='Population Figures'!B14 -> Ghor | B14: ='Population Figures'!C14 -> 2147058.18 | C14: =B14*('Population Figures'!D14)*'Population Figures'!X14 -> 0 | D14: =B14*('Population Figures'!D14)*'Scenario 2 - Nut.Analysis'!B16 -> 0 | E14: =B14*('Population Figures'!D14)*'Scenario 2 - Nut.Analysis'!C16 -> 0 | F14: =IF('Population Figures'!E14<>"",IF(C14<>"",B14*('Population Figures'!E14)*#REF!, IF(D14<>"", B14*('Population Figures'!E14)*'Scenario 2 - Nut.Analysis'!B16, IF(E14<>"", B14*('Population Figures'!E14)*'Scenario 2 - Nut.Analysis'!C16, "N/A"))), "N/A") -> N/A | G14: =IF('Population Figures'!F14<>"",IF(C14<>"",B14*('Population Figures'!F14)*#REF!, IF(D14<>"", B14*('Population Figures'!F14)*'Scenario 2 - Nut.Analysis'!B16, IF(E14<>"", B14*('Population Figures'!F14)*'Scenario 2 - Nut.Analysis'!C16, "N/A"))), "N/A") -> N/A | H14: =B14*('Population Figures'!D14) -> 343529.3088 | I14: ='Population Figures'!AB14*(B14*'Population Figures'!D14)*'Population Figures'!$AI$4 -> 0 | J14: ='Population Figures'!AC14*(B14*'Population Figures'!D14)*'Population Figures'!$AI$4 -> 0 | K14: ='Population Figures'!AD14*(B14*'Population Figures'!D14)*'Population Figures'!$AI$4 -> 0 | L14: =IF('Population Figures'!E14<>"",IF(I14<>0,'Population Figures'!AB14*(B14*'Population Figures'!E14)*'Population Figures'!$AI$4, IF(J14<>0, 'Population Figures'!AC14*(B14*'Population Figures'!E14)*'Population Figures'!$AI$4, IF(K14<>0, 'Population Figures'!AD14*(B14*'Population Figures'!E14)*'Population Figures'!$AI$4, "N/A"))), "N/A") -> N/A | M14: =IF('Population Figures'!F14<>"",IF(I14<>0,'Population Figures'!AB14*(B14*'Population Figures'!F14)*'Population Figures'!$AI$4, IF(J14<>0, 'Population Figures'!AC14*(B14*'Population Figures'!F14)*'Population Figures'!$AI$4, IF(K14<>0, 'Population Figures'!AD14*(B14*'Population Figures'!F14)*'Population Figures'!$AI$4, "N/A"))), "N/A") -> N/A | N14: =IF(I14<>0,I14*'Population Figures'!$AI$6,IF(J14<>0,J14*'Population Figures'!$AI$6,IF(K14<>0,K14*'Population Figures'!$AI$6,"Key Values"))) -> Key Values | O14: =IF(L14<>"N/A",L14*'Population Figures'!$AI$6,"N/A") -> N/A | P14: =IF(M14<>"N/A",M14*'Population Figures'!$AI$6,"N/A") -> N/A | Q14: =IF(I14<>0,'Population Figures'!AB14*( B14*ABS('Population Figures'!D14-'Population Figures'!G14))*'Population Figures'!$AI$4*'Population Figures'!$AI$7, IF(J14<>0,'Population Figures'!AC14*( B14*ABS('Population Figures'!D14-'Population Figures'!G14))*'Population Figures'!$AI$4*'Population Figures'!$AI$7, IF(K14<>0,'Population Figures'!AD14*( B14*ABS('Population Figures'!D14-'Population Figures'!G14))*'Population Figures'!$AI$4*'Population Figures'!$AI$7, "Key Values"))) -> Key Values | R14: =IF('Population Figures'!E14<>"", IF(I14<>0,'Population Figures'!AB14*(B14*ABS('Population Figures'!E14-'Population Figures'!H14))*'Population Figures'!$AI$4, IF(J14<>0, 'Population Figures'!AC14*(B14*ABS('Population Figures'!E14-'Population Figures'!H14))*'Population Figures'!$AI$4, IF(K14<>0, 'Population Figures'!AD14*(B14*ABS('Population Figures'!E14-'Population Figures'!H14))*'Population Figures'!$AI$4, "N/A"))), "N/A") -> N/A | S14: =IF('Population Figures'!E14<>"", IF(I14<>0,'Population Figures'!AB14*(B14*ABS('Population Figures'!F14-'Population Figures'!I14))*'Population Figures'!$AI$4, IF(J14<>0, 'Population Figures'!AC14*(B14*ABS('Population Figures'!F14-'Population Figures'!I14))*'Population Figures'!$AI$4, IF(K14<>0, 'Population Figures'!AD14*(B14*ABS('Population Figures'!F14-'Population Figures'!I14))*'Population Figures'!$AI$4, "N/A"))), "N/A") -> N/A | T14: =('Population Figures'!X14-'Population Figures'!AB14)*(B14*ABS('Population Figures'!D14-'Population Figures'!G14)*'Population Figures'!$AI$5) -> 0 | U14: =ABS('Population Figures'!Y14-'Population Figures'!AC14)*(B14*ABS('Population Figures'!D14-'Population Figures'!G14))*'Population Figures'!$AI$5 -> 0 | V14: =ABS('Population Figures'!Z14-'Population Figures'!AD14)*(B14*ABS('Population Figures'!D14-'Population Figures'!G14)*'Population Figures'!$AI$5) -> 0 | W14: =IF('Population Figures'!E14<>"",IF(T14<>0,('Population Figures'!X14-'Population Figures'!AB14)*(ABS('Population Figures'!E14-'Population Figures'!H14)*B14)*'Population Figures'!$AI$5, IF(U14<>0, ('Population Figures'!Y14-'Population Figures'!AC14)*(ABS('Population Figures'!E14-'Population Figures'!H14)*B14)*'Population Figures'!$AI$5, IF(V14<>0, ('Population Figures'!Z14-'Population Figures'!AD14)*(B14*ABS('Population Figures'!E14-'Population Figures'!H14))*'Population Figures'!$AI$4, "N/A"))), "N/A") -> N/A | X14: =IF('Population Figures'!F14<>"",IF(T14<>0,('Population Figures'!X14-'Population Figures'!AB14)*(ABS('Population Figures'!F14-'Population Figures'!I14)*B14)*'Population Figures'!$AI$5, IF(U14<>0, ('Population Figures'!Y14-'Population Figures'!AC14)*(ABS('Population Figures'!F14-'Population Figures'!I14)*B14)*'Population Figures'!$AI$5, IF(V14<>0, ('Population Figures'!Z14-'Population Figures'!AD14)*(B14*ABS('Population Figures'!F14-'Population Figures'!I14))*'Population Figures'!$AI$4, "N/A"))), "N/A") -> N/A | Y14: ='Population Figures'!M14*'Population Figures'!C14*'Population Figures'!$AI$9 -> 0 | Z14: =IF('Population Figures'!N14<>"",'Population Figures'!N14*'Population Figures'!C14*'Population Figures'!$AI$9,"N/A") -> N/A | AA14: =IF('Population Figures'!O14<>"",'Population Figures'!O14*'Population Figures'!C14*'Population Figures'!$AI$9,"N/A") -> N/A | AB14: =B14*'Population Figures'!P14*'Population Figures'!AA12 -> 0 | AC14: =B14*'Population Figures'!P14 -> 150294.0726 | AD14: =B14*'Population Figures'!P14*ABS('Population Figures'!AA14-'Population Figures'!AE14)*'Population Figures'!$AI$14 -> 0 | AE14: =B14*'Population Figures'!P14*ABS('Population Figures'!AA12-'Population Figures'!AE14)*'Population Figures'!$AI$15 -> 0 | AF14: =IF('Scenario 2 Contributing Fact'!F17<>"", B14*'Population Figures'!R14*'Scenario 2 Contributing Fact'!F17,B14*'Population Figures'!R14*'Scenario 3 - Nut. Analysis'!J13) -> 0 | AG14: =IF('Population Figures'!T14<>"",B14*'Population Figures'!T14*AF14,"N/A") -> N/A | AH14: =IF('Population Figures'!S14<>"",B14*'Population Figures'!S14*AF14,"N/A") -> N/A | AI14: =B14*'Population Figures'!R14 -> 214705.818 | AJ14: =IF('Scenario 2 Contributing Fact'!G17<>"", B14*'Population Figures'!U14*'Scenario 2 Contributing Fact'!G17,B14*'Population Figures'!U14*'Scenario 3 - Nut. Analysis'!K13) -> 0 | AK14: =IF('Population Figures'!V14<>"",B14*'Population Figures'!V14*AJ14,"N/A") -> N/A | AL14: =IF('Population Figures'!W14<>"",B14*'Population Figures'!W14*AJ14,"N/A") -> N/A
A15: ='Population Figures'!B15 -> Helmand | B15: ='Population Figures'!C15 -> 2877125.22 | C15: =B15*('Population Figures'!D15)*'Population Figures'!X15 -> 0 | D15: =B15*('Population Figures'!D15)*'Scenario 2 - Nut.Analysis'!B17 -> 23017.00176 | E15: =B15*('Population Figures'!D15)*'Scenario 2 - Nut.Analysis'!C17 -> 0 | F15: =IF('Population Figures'!E15<>"",IF(C15<>"",B15*('Population Figures'!E15)*#REF!, IF(D15<>"", B15*('Population Figures'!E15)*'Scenario 2 - Nut.Analysis'!B17, IF(E15<>"", B15*('Population Figures'!E15)*'Scenario 2 - Nut.Analysis'!C17, "N/A"))), "N/A") -> N/A | G15: =IF('Population Figures'!F15<>"",IF(C15<>"",B15*('Population Figures'!F15)*#REF!, IF(D15<>"", B15*('Population Figures'!F15)*'Scenario 2 - Nut.Analysis'!B17, IF(E15<>"", B15*('Population Figures'!F15)*'Scenario 2 - Nut.Analysis'!C17, "N/A"))), "N/A") -> N/A | H15: =B15*('Population Figures'!D15) -> 460340.0352 | I15: ='Population Figures'!AB15*(B15*'Population Figures'!D15)*'Population Figures'!$AI$4 -> 0 | J15: ='Population Figures'!AC15*(B15*'Population Figures'!D15)*'Population Figures'!$AI$4 -> 0 | K15: ='Population Figures'!AD15*(B15*'Population Figures'!D15)*'Population Figures'!$AI$4 -> 0 | L15: =IF('Population Figures'!E15<>"",IF(I15<>0,'Population Figures'!AB15*(B15*'Population Figures'!E15)*'Population Figures'!$AI$4, IF(J15<>0, 'Population Figures'!AC15*(B15*'Population Figures'!E15)*'Population Figures'!$AI$4, IF(K15<>0, 'Population Figures'!AD15*(B15*'Population Figures'!E15)*'Population Figures'!$AI$4, "N/A"))), "N/A") -> N/A | M15: =IF('Population Figures'!F15<>"",IF(I15<>0,'Population Figures'!AB15*(B15*'Population Figures'!F15)*'Population Figures'!$AI$4, IF(J15<>0, 'Population Figures'!AC15*(B15*'Population Figures'!F15)*'Population Figures'!$AI$4, IF(K15<>0, 'Population Figures'!AD15*(B15*'Population Figures'!F15)*'Population Figures'!$AI$4, "N/A"))), "N/A") -> N/A | N15: =IF(I15<>0,I15*'Population Figures'!$AI$6,IF(J15<>0,J15*'Population Figures'!$AI$6,IF(K15<>0,K15*'Population Figures'!$AI$6,"Key Values"))) -> Key Values | O15: =IF(L15<>"N/A",L15*'Population Figures'!$AI$6,"N/A") -> N/A | P15: =IF(M15<>"N/A",M15*'Population Figures'!$AI$6,"N/A") -> N/A | Q15: =IF(I15<>0,'Population Figures'!AB15*( B15*ABS('Population Figures'!D15-'Population Figures'!G15))*'Population Figures'!$AI$4*'Population Figures'!$AI$7, IF(J15<>0,'Population Figures'!AC15*( B15*ABS('Population Figures'!D15-'Population Figures'!G15))*'Population Figures'!$AI$4*'Population Figures'!$AI$7, IF(K15<>0,'Population Figures'!AD15*( B15*ABS('Population Figures'!D15-'Population Figures'!G15))*'Population Figures'!$AI$4*'Population Figures'!$AI$7, "Key Values"))) -> Key Values | R15: =IF('Population Figures'!E15<>"", IF(I15<>0,'Population Figures'!AB15*(B15*ABS('Population Figures'!E15-'Population Figures'!H15))*'Population Figures'!$AI$4, IF(J15<>0, 'Population Figures'!AC15*(B15*ABS('Population Figures'!E15-'Population Figures'!H15))*'Population Figures'!$AI$4, IF(K15<>0, 'Population Figures'!AD15*(B15*ABS('Population Figures'!E15-'Population Figures'!H15))*'Population Figures'!$AI$4, "N/A"))), "N/A") -> N/A | S15: =IF('Population Figures'!E15<>"", IF(I15<>0,'Population Figures'!AB15*(B15*ABS('Population Figures'!F15-'Population Figures'!I15))*'Population Figures'!$AI$4, IF(J15<>0, 'Population Figures'!AC15*(B15*ABS('Population Figures'!F15-'Population Figures'!I15))*'Population Figures'!$AI$4, IF(K15<>0, 'Population Figures'!AD15*(B15*ABS('Population Figures'!F15-'Population Figures'!I15))*'Population Figures'!$AI$4, "N/A"))), "N/A") -> N/A | T15: =('Population Figures'!X15-'Population Figures'!AB15)*(B15*ABS('Population Figures'!D15-'Population Figures'!G15)*'Population Figures'!$AI$5) -> 0 | U15: =ABS('Population Figures'!Y15-'Population Figures'!AC15)*(B15*ABS('Population Figures'!D15-'Population Figures'!G15))*'Population Figures'!$AI$5 -> 0 | V15: =ABS('Population Figures'!Z15-'Population Figures'!AD15)*(B15*ABS('Population Figures'!D15-'Population Figures'!G15)*'Population Figures'!$AI$5) -> 0 | W15: =IF('Population Figures'!E15<>"",IF(T15<>0,('Population Figures'!X15-'Population Figures'!AB15)*(ABS('Population Figures'!E15-'Population Figures'!H15)*B15)*'Population Figures'!$AI$5, IF(U15<>0, ('Population Figures'!Y15-'Population Figures'!AC15)*(ABS('Population Figures'!E15-'Population Figures'!H15)*B15)*'Population Figures'!$AI$5, IF(V15<>0, ('Population Figures'!Z15-'Population Figures'!AD15)*(B15*ABS('Population Figures'!E15-'Population Figures'!H15))*'Population Figures'!$AI$4, "N/A"))), "N/A") -> N/A | X15: =IF('Population Figures'!F15<>"",IF(T15<>0,('Population Figures'!X15-'Population Figures'!AB15)*(ABS('Population Figures'!F15-'Population Figures'!I15)*B15)*'Population Figures'!$AI$5, IF(U15<>0, ('Population Figures'!Y15-'Population Figures'!AC15)*(ABS('Population Figures'!F15-'Population Figures'!I15)*B15)*'Population Figures'!$AI$5, IF(V15<>0, ('Population Figures'!Z15-'Population Figures'!AD15)*(B15*ABS('Population Figures'!F15-'Population Figures'!I15))*'Population Figures'!$AI$4, "N/A"))), "N/A") -> N/A | Y15: ='Population Figures'!M15*'Population Figures'!C15*'Population Figures'!$AI$9 -> 0 | Z15: =IF('Population Figures'!N15<>"",'Population Figures'!N15*'Population Figures'!C15*'Population Figures'!$AI$9,"N/A") -> N/A | AA15: =IF('Population Figures'!O15<>"",'Population Figures'!O15*'Population Figures'!C15*'Population Figures'!$AI$9,"N/A") -> N/A | AB15: =B15*'Population Figures'!P15*'Population Figures'!AA13 -> 0 | AC15: =B15*'Population Figures'!P15 -> 201398.7654 | AD15: =B15*'Population Figures'!P15*ABS('Population Figures'!AA15-'Population Figures'!AE15)*'Population Figures'!$AI$14 -> 0 | AE15: =B15*'Population Figures'!P15*ABS('Population Figures'!AA13-'Population Figures'!AE15)*'Population Figures'!$AI$15 -> 0 | AF15: =IF('Scenario 2 Contributing Fact'!F18<>"", B15*'Population Figures'!R15*'Scenario 2 Contributing Fact'!F18,B15*'Population Figures'!R15*'Scenario 3 - Nut. Analysis'!J14) -> 0 | AG15: =IF('Population Figures'!T15<>"",B15*'Population Figures'!T15*AF15,"N/A") -> N/A | AH15: =IF('Population Figures'!S15<>"",B15*'Population Figures'!S15*AF15,"N/A") -> N/A | AI15: =B15*'Population Figures'!R15 -> 287712.522 | AJ15: =IF('Scenario 2 Contributing Fact'!G18<>"", B15*'Population Figures'!U15*'Scenario 2 Contributing Fact'!G18,B15*'Population Figures'!U15*'Scenario 3 - Nut. Analysis'!K14) -> 0 | AK15: =IF('Population Figures'!V15<>"",B15*'Population Figures'!V15*AJ15,"N/A") -> N/A | AL15: =IF('Population Figures'!W15<>"",B15*'Population Figures'!W15*AJ15,"N/A") -> N/A
A16: ='Population Figures'!B16 -> Hirat | B16: ='Population Figures'!C16 -> 5900680.62 | C16: =B16*('Population Figures'!D16)*'Population Figures'!X16 -> 0 | D16: =B16*('Population Figures'!D16)*'Scenario 2 - Nut.Analysis'!B18 -> 47205.44496 | E16: =B16*('Population Figures'!D16)*'Scenario 2 - Nut.Analysis'!C18 -> 0 | F16: =IF('Population Figures'!E16<>"",IF(C16<>"",B16*('Population Figures'!E16)*#REF!, IF(D16<>"", B16*('Population Figures'!E16)*'Scenario 2 - Nut.Analysis'!B18, IF(E16<>"", B16*('Population Figures'!E16)*'Scenario 2 - Nut.Analysis'!C18, "N/A"))), "N/A") -> N/A | G16: =IF('Population Figures'!F16<>"",IF(C16<>"",B16*('Population Figures'!F16)*#REF!, IF(D16<>"", B16*('Population Figures'!F16)*'Scenario 2 - Nut.Analysis'!B18, IF(E16<>"", B16*('Population Figures'!F16)*'Scenario 2 - Nut.Analysis'!C18, "N/A"))), "N/A") -> N/A | H16: =B16*('Population Figures'!D16) -> 944108.8992 | I16: ='Population Figures'!AB16*(B16*'Population Figures'!D16)*'Population Figures'!$AI$4 -> 0 | J16: ='Population Figures'!AC16*(B16*'Population Figures'!D16)*'Population Figures'!$AI$4 -> 0 | K16: ='Population Figures'!AD16*(B16*'Population Figures'!D16)*'Population Figures'!$AI$4 -> 0 | L16: =IF('Population Figures'!E16<>"",IF(I16<>0,'Population Figures'!AB16*(B16*'Population Figures'!E16)*'Population Figures'!$AI$4, IF(J16<>0, 'Population Figures'!AC16*(B16*'Population Figures'!E16)*'Population Figures'!$AI$4, IF(K16<>0, 'Population Figures'!AD16*(B16*'Population Figures'!E16)*'Population Figures'!$AI$4, "N/A"))), "N/A") -> N/A | M16: =IF('Population Figures'!F16<>"",IF(I16<>0,'Population Figures'!AB16*(B16*'Population Figures'!F16)*'Population Figures'!$AI$4, IF(J16<>0, 'Population Figures'!AC16*(B16*'Population Figures'!F16)*'Population Figures'!$AI$4, IF(K16<>0, 'Population Figures'!AD16*(B16*'Population Figures'!F16)*'Population Figures'!$AI$4, "N/A"))), "N/A") -> N/A | N16: =IF(I16<>0,I16*'Population Figures'!$AI$6,IF(J16<>0,J16*'Population Figures'!$AI$6,IF(K16<>0,K16*'Population Figures'!$AI$6,"Key Values"))) -> Key Values | O16: =IF(L16<>"N/A",L16*'Population Figures'!$AI$6,"N/A") -> N/A | P16: =IF(M16<>"N/A",M16*'Population Figures'!$AI$6,"N/A") -> N/A | Q16: =IF(I16<>0,'Population Figures'!AB16*( B16*ABS('Population Figures'!D16-'Population Figures'!G16))*'Population Figures'!$AI$4*'Population Figures'!$AI$7, IF(J16<>0,'Population Figures'!AC16*( B16*ABS('Population Figures'!D16-'Population Figures'!G16))*'Population Figures'!$AI$4*'Population Figures'!$AI$7, IF(K16<>0,'Population Figures'!AD16*( B16*ABS('Population Figures'!D16-'Population Figures'!G16))*'Population Figures'!$AI$4*'Population Figures'!$AI$7, "Key Values"))) -> Key Values | R16: =IF('Population Figures'!E16<>"", IF(I16<>0,'Population Figures'!AB16*(B16*ABS('Population Figures'!E16-'Population Figures'!H16))*'Population Figures'!$AI$4, IF(J16<>0, 'Population Figures'!AC16*(B16*ABS('Population Figures'!E16-'Population Figures'!H16))*'Population Figures'!$AI$4, IF(K16<>0, 'Population Figures'!AD16*(B16*ABS('Population Figures'!E16-'Population Figures'!H16))*'Population Figures'!$AI$4, "N/A"))), "N/A") -> N/A | S16: =IF('Population Figures'!E16<>"", IF(I16<>0,'Population Figures'!AB16*(B16*ABS('Population Figures'!F16-'Population Figures'!I16))*'Population Figures'!$AI$4, IF(J16<>0, 'Population Figures'!AC16*(B16*ABS('Population Figures'!F16-'Population Figures'!I16))*'Population Figures'!$AI$4, IF(K16<>0, 'Population Figures'!AD16*(B16*ABS('Population Figures'!F16-'Population Figures'!I16))*'Population Figures'!$AI$4, "N/A"))), "N/A") -> N/A | T16: =('Population Figures'!X16-'Population Figures'!AB16)*(B16*ABS('Population Figures'!D16-'Population Figures'!G16)*'Population Figures'!$AI$5) -> 0 | U16: =ABS('Population Figures'!Y16-'Population Figures'!AC16)*(B16*ABS('Population Figures'!D16-'Population Figures'!G16))*'Population Figures'!$AI$5 -> 0 | V16: =ABS('Population Figures'!Z16-'Population Figures'!AD16)*(B16*ABS('Population Figures'!D16-'Population Figures'!G16)*'Population Figures'!$AI$5) -> 0 | W16: =IF('Population Figures'!E16<>"",IF(T16<>0,('Population Figures'!X16-'Population Figures'!AB16)*(ABS('Population Figures'!E16-'Population Figures'!H16)*B16)*'Population Figures'!$AI$5, IF(U16<>0, ('Population Figures'!Y16-'Population Figures'!AC16)*(ABS('Population Figures'!E16-'Population Figures'!H16)*B16)*'Population Figures'!$AI$5, IF(V16<>0, ('Population Figures'!Z16-'Population Figures'!AD16)*(B16*ABS('Population Figures'!E16-'Population Figures'!H16))*'Population Figures'!$AI$4, "N/A"))), "N/A") -> N/A | X16: =IF('Population Figures'!F16<>"",IF(T16<>0,('Population Figures'!X16-'Population Figures'!AB16)*(ABS('Population Figures'!F16-'Population Figures'!I16)*B16)*'Population Figures'!$AI$5, IF(U16<>0, ('Population Figures'!Y16-'Population Figures'!AC16)*(ABS('Population Figures'!F16-'Population Figures'!I16)*B16)*'Population Figures'!$AI$5, IF(V16<>0, ('Population Figures'!Z16-'Population Figures'!AD16)*(B16*ABS('Population Figures'!F16-'Population Figures'!I16))*'Population Figures'!$AI$4, "N/A"))), "N/A") -> N/A | Y16: ='Population Figures'!M16*'Population Figures'!C16*'Population Figures'!$AI$9 -> 0 | Z16: =IF('Population Figures'!N16<>"",'Population Figures'!N16*'Population Figures'!C16*'Population Figures'!$AI$9,"N/A") -> N/A | AA16: =IF('Population Figures'!O16<>"",'Population Figures'!O16*'Population Figures'!C16*'Population Figures'!$AI$9,"N/A") -> N/A | AB16: =B16*'Population Figures'!P16*'Population Figures'!AA14 -> 0 | AC16: =B16*'Population Figures'!P16 -> 413047.6434 | AD16: =B16*'Population Figures'!P16*ABS('Population Figures'!AA16-'Population Figures'!AE16)*'Population Figures'!$AI$14 -> 0 | AE16: =B16*'Population Figures'!P16*ABS('Population Figures'!AA14-'Population Figures'!AE16)*'Population Figures'!$AI$15 -> 0 | AF16: =IF('Scenario 2 Contributing Fact'!F19<>"", B16*'Population Figures'!R16*'Scenario 2 Contributing Fact'!F19,B16*'Population Figures'!R16*'Scenario 3 - Nut. Analysis'!J15) -> 0 | AG16: =IF('Population Figures'!T16<>"",B16*'Population Figures'!T16*AF16,"N/A") -> N/A | AH16: =IF('Population Figures'!S16<>"",B16*'Population Figures'!S16*AF16,"N/A") -> N/A | AI16: =B16*'Population Figures'!R16 -> 590068.062 | AJ16: =IF('Scenario 2 Contributing Fact'!G19<>"", B16*'Population Figures'!U16*'Scenario 2 Contributing Fact'!G19,B16*'Population Figures'!U16*'Scenario 3 - Nut. Analysis'!K15) -> 0 | AK16: =IF('Population Figures'!V16<>"",B16*'Population Figures'!V16*AJ16,"N/A") -> N/A | AL16: =IF('Population Figures'!W16<>"",B16*'Population Figures'!W16*AJ16,"N/A") -> N/A
A17: ='Population Figures'!B17 -> Jawzjan | B17: ='Population Figures'!C17 -> 1682694 | C17: =B17*('Population Figures'!D17)*'Population Figures'!X17 -> 0 | D17: =B17*('Population Figures'!D17)*'Scenario 2 - Nut.Analysis'!B19 -> 13461.552 | E17: =B17*('Population Figures'!D17)*'Scenario 2 - Nut.Analysis'!C19 -> 0 | F17: =IF('Population Figures'!E17<>"",IF(C17<>"",B17*('Population Figures'!E17)*#REF!, IF(D17<>"", B17*('Population Figures'!E17)*'Scenario 2 - Nut.Analysis'!B19, IF(E17<>"", B17*('Population Figures'!E17)*'Scenario 2 - Nut.Analysis'!C19, "N/A"))), "N/A") -> N/A | G17: =IF('Population Figures'!F17<>"",IF(C17<>"",B17*('Population Figures'!F17)*#REF!, IF(D17<>"", B17*('Population Figures'!F17)*'Scenario 2 - Nut.Analysis'!B19, IF(E17<>"", B17*('Population Figures'!F17)*'Scenario 2 - Nut.Analysis'!C19, "N/A"))), "N/A") -> N/A | H17: =B17*('Population Figures'!D17) -> 269231.04 | I17: ='Population Figures'!AB17*(B17*'Population Figures'!D17)*'Population Figures'!$AI$4 -> 0 | J17: ='Population Figures'!AC17*(B17*'Population Figures'!D17)*'Population Figures'!$AI$4 -> 0 | K17: ='Population Figures'!AD17*(B17*'Population Figures'!D17)*'Population Figures'!$AI$4 -> 0 | L17: =IF('Population Figures'!E17<>"",IF(I17<>0,'Population Figures'!AB17*(B17*'Population Figures'!E17)*'Population Figures'!$AI$4, IF(J17<>0, 'Population Figures'!AC17*(B17*'Population Figures'!E17)*'Population Figures'!$AI$4, IF(K17<>0, 'Population Figures'!AD17*(B17*'Population Figures'!E17)*'Population Figures'!$AI$4, "N/A"))), "N/A") -> N/A | M17: =IF('Population Figures'!F17<>"",IF(I17<>0,'Population Figures'!AB17*(B17*'Population Figures'!F17)*'Population Figures'!$AI$4, IF(J17<>0, 'Population Figures'!AC17*(B17*'Population Figures'!F17)*'Population Figures'!$AI$4, IF(K17<>0, 'Population Figures'!AD17*(B17*'Population Figures'!F17)*'Population Figures'!$AI$4, "N/A"))), "N/A") -> N/A | N17: =IF(I17<>0,I17*'Population Figures'!$AI$6,IF(J17<>0,J17*'Population Figures'!$AI$6,IF(K17<>0,K17*'Population Figures'!$AI$6,"Key Values"))) -> Key Values | O17: =IF(L17<>"N/A",L17*'Population Figures'!$AI$6,"N/A") -> N/A | P17: =IF(M17<>"N/A",M17*'Population Figures'!$AI$6,"N/A") -> N/A | Q17: =IF(I17<>0,'Population Figures'!AB17*( B17*ABS('Population Figures'!D17-'Population Figures'!G17))*'Population Figures'!$AI$4*'Population Figures'!$AI$7, IF(J17<>0,'Population Figures'!AC17*( B17*ABS('Population Figures'!D17-'Population Figures'!G17))*'Population Figures'!$AI$4*'Population Figures'!$AI$7, IF(K17<>0,'Population Figures'!AD17*( B17*ABS('Population Figures'!D17-'Population Figures'!G17))*'Population Figures'!$AI$4*'Population Figures'!$AI$7, "Key Values"))) -> Key Values | R17: =IF('Population Figures'!E17<>"", IF(I17<>0,'Population Figures'!AB17*(B17*ABS('Population Figures'!E17-'Population Figures'!H17))*'Population Figures'!$AI$4, IF(J17<>0, 'Population Figures'!AC17*(B17*ABS('Population Figures'!E17-'Population Figures'!H17))*'Population Figures'!$AI$4, IF(K17<>0, 'Population Figures'!AD17*(B17*ABS('Population Figures'!E17-'Population Figures'!H17))*'Population Figures'!$AI$4, "N/A"))), "N/A") -> N/A | S17: =IF('Population Figures'!E17<>"", IF(I17<>0,'Population Figures'!AB17*(B17*ABS('Population Figures'!F17-'Population Figures'!I17))*'Population Figures'!$AI$4, IF(J17<>0, 'Population Figures'!AC17*(B17*ABS('Population Figures'!F17-'Population Figures'!I17))*'Population Figures'!$AI$4, IF(K17<>0, 'Population Figures'!AD17*(B17*ABS('Population Figures'!F17-'Population Figures'!I17))*'Population Figures'!$AI$4, "N/A"))), "N/A") -> N/A | T17: =('Population Figures'!X17-'Population Figures'!AB17)*(B17*ABS('Population Figures'!D17-'Population Figures'!G17)*'Population Figures'!$AI$5) -> 0 | U17: =ABS('Population Figures'!Y17-'Population Figures'!AC17)*(B17*ABS('Population Figures'!D17-'Population Figures'!G17))*'Population Figures'!$AI$5 -> 0 | V17: =ABS('Population Figures'!Z17-'Population Figures'!AD17)*(B17*ABS('Population Figures'!D17-'Population Figures'!G17)*'Population Figures'!$AI$5) -> 0 | W17: =IF('Population Figures'!E17<>"",IF(T17<>0,('Population Figures'!X17-'Population Figures'!AB17)*(ABS('Population Figures'!E17-'Population Figures'!H17)*B17)*'Population Figures'!$AI$5, IF(U17<>0, ('Population Figures'!Y17-'Population Figures'!AC17)*(ABS('Population Figures'!E17-'Population Figures'!H17)*B17)*'Population Figures'!$AI$5, IF(V17<>0, ('Population Figures'!Z17-'Population Figures'!AD17)*(B17*ABS('Population Figures'!E17-'Population Figures'!H17))*'Population Figures'!$AI$4, "N/A"))), "N/A") -> N/A | X17: =IF('Population Figures'!F17<>"",IF(T17<>0,('Population Figures'!X17-'Population Figures'!AB17)*(ABS('Population Figures'!F17-'Population Figures'!I17)*B17)*'Population Figures'!$AI$5, IF(U17<>0, ('Population Figures'!Y17-'Population Figures'!AC17)*(ABS('Population Figures'!F17-'Population Figures'!I17)*B17)*'Population Figures'!$AI$5, IF(V17<>0, ('Population Figures'!Z17-'Population Figures'!AD17)*(B17*ABS('Population Figures'!F17-'Population Figures'!I17))*'Population Figures'!$AI$4, "N/A"))), "N/A") -> N/A | Y17: ='Population Figures'!M17*'Population Figures'!C17*'Population Figures'!$AI$9 -> 0 | Z17: =IF('Population Figures'!N17<>"",'Population Figures'!N17*'Population Figures'!C17*'Population Figures'!$AI$9,"N/A") -> N/A | AA17: =IF('Population Figures'!O17<>"",'Population Figures'!O17*'Population Figures'!C17*'Population Figures'!$AI$9,"N/A") -> N/A | AB17: =B17*'Population Figures'!P17*'Population Figures'!AA15 -> 0 | AC17: =B17*'Population Figures'!P17 -> 117788.58 | AD17: =B17*'Population Figures'!P17*ABS('Population Figures'!AA17-'Population Figures'!AE17)*'Population Figures'!$AI$14 -> 0 | AE17: =B17*'Population Figures'!P17*ABS('Population Figures'!AA15-'Population Figures'!AE17)*'Population Figures'!$AI$15 -> 0 | AF17: =IF('Scenario 2 Contributing Fact'!F20<>"", B17*'Population Figures'!R17*'Scenario 2 Contributing Fact'!F20,B17*'Population Figures'!R17*'Scenario 3 - Nut. Analysis'!J16) -> 0 | AG17: =IF('Population Figures'!T17<>"",B17*'Population Figures'!T17*AF17,"N/A") -> N/A | AH17: =IF('Population Figures'!S17<>"",B17*'Population Figures'!S17*AF17,"N/A") -> N/A | AI17: =B17*'Population Figures'!R17 -> 168269.4 | AJ17: =IF('Scenario 2 Contributing Fact'!G20<>"", B17*'Population Figures'!U17*'Scenario 2 Contributing Fact'!G20,B17*'Population Figures'!U17*'Scenario 3 - Nut. Analysis'!K16) -> 0 | AK17: =IF('Population Figures'!V17<>"",B17*'Population Figures'!V17*AJ17,"N/A") -> N/A | AL17: =IF('Population Figures'!W17<>"",B17*'Population Figures'!W17*AJ17,"N/A") -> N/A
A18: ='Population Figures'!B18 -> Kabul | B18: ='Population Figures'!C18 -> 13842577.08 | C18: =B18*('Population Figures'!D18)*'Population Figures'!X18 -> 0 | D18: =B18*('Population Figures'!D18)*'Scenario 2 - Nut.Analysis'!B20 -> 442962.4666 | E18: =B18*('Population Figures'!D18)*'Scenario 2 - Nut.Analysis'!C20 -> 0 | F18: =IF('Population Figures'!E18<>"",IF(C18<>"",B18*('Population Figures'!E18)*#REF!, IF(D18<>"", B18*('Population Figures'!E18)*'Scenario 2 - Nut.Analysis'!B20, IF(E18<>"", B18*('Population Figures'!E18)*'Scenario 2 - Nut.Analysis'!C20, "N/A"))), "N/A") -> N/A | G18: =IF('Population Figures'!F18<>"",IF(C18<>"",B18*('Population Figures'!F18)*#REF!, IF(D18<>"", B18*('Population Figures'!F18)*'Scenario 2 - Nut.Analysis'!B20, IF(E18<>"", B18*('Population Figures'!F18)*'Scenario 2 - Nut.Analysis'!C20, "N/A"))), "N/A") -> N/A | H18: =B18*('Population Figures'!D18) -> 2214812.333 | I18: ='Population Figures'!AB18*(B18*'Population Figures'!D18)*'Population Figures'!$AI$4 -> 0 | J18: ='Population Figures'!AC18*(B18*'Population Figures'!D18)*'Population Figures'!$AI$4 -> 0 | K18: ='Population Figures'!AD18*(B18*'Population Figures'!D18)*'Population Figures'!$AI$4 -> 0 | L18: =IF('Population Figures'!E18<>"",IF(I18<>0,'Population Figures'!AB18*(B18*'Population Figures'!E18)*'Population Figures'!$AI$4, IF(J18<>0, 'Population Figures'!AC18*(B18*'Population Figures'!E18)*'Population Figures'!$AI$4, IF(K18<>0, 'Population Figures'!AD18*(B18*'Population Figures'!E18)*'Population Figures'!$AI$4, "N/A"))), "N/A") -> N/A | M18: =IF('Population Figures'!F18<>"",IF(I18<>0,'Population Figures'!AB18*(B18*'Population Figures'!F18)*'Population Figures'!$AI$4, IF(J18<>0, 'Population Figures'!AC18*(B18*'Population Figures'!F18)*'Population Figures'!$AI$4, IF(K18<>0, 'Population Figures'!AD18*(B18*'Population Figures'!F18)*'Population Figures'!$AI$4, "N/A"))), "N/A") -> N/A | N18: =IF(I18<>0,I18*'Population Figures'!$AI$6,IF(J18<>0,J18*'Population Figures'!$AI$6,IF(K18<>0,K18*'Population Figures'!$AI$6,"Key Values"))) -> Key Values | O18: =IF(L18<>"N/A",L18*'Population Figures'!$AI$6,"N/A") -> N/A | P18: =IF(M18<>"N/A",M18*'Population Figures'!$AI$6,"N/A") -> N/A | Q18: =IF(I18<>0,'Population Figures'!AB18*( B18*ABS('Population Figures'!D18-'Population Figures'!G18))*'Population Figures'!$AI$4*'Population Figures'!$AI$7, IF(J18<>0,'Population Figures'!AC18*( B18*ABS('Population Figures'!D18-'Population Figures'!G18))*'Population Figures'!$AI$4*'Population Figures'!$AI$7, IF(K18<>0,'Population Figures'!AD18*( B18*ABS('Population Figures'!D18-'Population Figures'!G18))*'Population Figures'!$AI$4*'Population Figures'!$AI$7, "Key Values"))) -> Key Values | R18: =IF('Population Figures'!E18<>"", IF(I18<>0,'Population Figures'!AB18*(B18*ABS('Population Figures'!E18-'Population Figures'!H18))*'Population Figures'!$AI$4, IF(J18<>0, 'Population Figures'!AC18*(B18*ABS('Population Figures'!E18-'Population Figures'!H18))*'Population Figures'!$AI$4, IF(K18<>0, 'Population Figures'!AD18*(B18*ABS('Population Figures'!E18-'Population Figures'!H18))*'Population Figures'!$AI$4, "N/A"))), "N/A") -> N/A | S18: =IF('Population Figures'!E18<>"", IF(I18<>0,'Population Figures'!AB18*(B18*ABS('Population Figures'!F18-'Population Figures'!I18))*'Population Figures'!$AI$4, IF(J18<>0, 'Population Figures'!AC18*(B18*ABS('Population Figures'!F18-'Population Figures'!I18))*'Population Figures'!$AI$4, IF(K18<>0, 'Population Figures'!AD18*(B18*ABS('Population Figures'!F18-'Population Figures'!I18))*'Population Figures'!$AI$4, "N/A"))), "N/A") -> N/A | T18: =('Population Figures'!X18-'Population Figures'!AB18)*(B18*ABS('Population Figures'!D18-'Population Figures'!G18)*'Population Figures'!$AI$5) -> 0 | U18: =ABS('Population Figures'!Y18-'Population Figures'!AC18)*(B18*ABS('Population Figures'!D18-'Population Figures'!G18))*'Population Figures'!$AI$5 -> 0 | V18: =ABS('Population Figures'!Z18-'Population Figures'!AD18)*(B18*ABS('Population Figures'!D18-'Population Figures'!G18)*'Population Figures'!$AI$5) -> 0 | W18: =IF('Population Figures'!E18<>"",IF(T18<>0,('Population Figures'!X18-'Population Figures'!AB18)*(ABS('Population Figures'!E18-'Population Figures'!H18)*B18)*'Population Figures'!$AI$5, IF(U18<>0, ('Population Figures'!Y18-'Population Figures'!AC18)*(ABS('Population Figures'!E18-'Population Figures'!H18)*B18)*'Population Figures'!$AI$5, IF(V18<>0, ('Population Figures'!Z18-'Population Figures'!AD18)*(B18*ABS('Population Figures'!E18-'Population Figures'!H18))*'Population Figures'!$AI$4, "N/A"))), "N/A") -> N/A | X18: =IF('Population Figures'!F18<>"",IF(T18<>0,('Population Figures'!X18-'Population Figures'!AB18)*(ABS('Population Figures'!F18-'Population Figures'!I18)*B18)*'Population Figures'!$AI$5, IF(U18<>0, ('Population Figures'!Y18-'Population Figures'!AC18)*(ABS('Population Figures'!F18-'Population Figures'!I18)*B18)*'Population Figures'!$AI$5, IF(V18<>0, ('Population Figures'!Z18-'Population Figures'!AD18)*(B18*ABS('Population Figures'!F18-'Population Figures'!I18))*'Population Figures'!$AI$4, "N/A"))), "N/A") -> N/A | Y18: ='Population Figures'!M18*'Population Figures'!C18*'Population Figures'!$AI$9 -> 0 | Z18: =IF('Population Figures'!N18<>"",'Population Figures'!N18*'Population Figures'!C18*'Population Figures'!$AI$9,"N/A") -> N/A | AA18: =IF('Population Figures'!O18<>"",'Population Figures'!O18*'Population Figures'!C18*'Population Figures'!$AI$9,"N/A") -> N/A | AB18: =B18*'Population Figures'!P18*'Population Figures'!AA16 -> 0 | AC18: =B18*'Population Figures'!P18 -> 968980.3956 | AD18: =B18*'Population Figures'!P18*ABS('Population Figures'!AA18-'Population Figures'!AE18)*'Population Figures'!$AI$14 -> 0 | AE18: =B18*'Population Figures'!P18*ABS('Population Figures'!AA16-'Population Figures'!AE18)*'Population Figures'!$AI$15 -> 0 | AF18: =IF('Scenario 2 Contributing Fact'!F21<>"", B18*'Population Figures'!R18*'Scenario 2 Contributing Fact'!F21,B18*'Population Figures'!R18*'Scenario 3 - Nut. Analysis'!J17) -> 0 | AG18: =IF('Population Figures'!T18<>"",B18*'Population Figures'!T18*AF18,"N/A") -> N/A | AH18: =IF('Population Figures'!S18<>"",B18*'Population Figures'!S18*AF18,"N/A") -> N/A | AI18: =B18*'Population Figures'!R18 -> 1384257.708 | AJ18: =IF('Scenario 2 Contributing Fact'!G21<>"", B18*'Population Figures'!U18*'Scenario 2 Contributing Fact'!G21,B18*'Population Figures'!U18*'Scenario 3 - Nut. Analysis'!K17) -> 0 | AK18: =IF('Population Figures'!V18<>"",B18*'Population Figures'!V18*AJ18,"N/A") -> N/A | AL18: =IF('Population Figures'!W18<>"",B18*'Population Figures'!W18*AJ18,"N/A") -> N/A
A19: ='Population Figures'!B19 -> Kandahar | B19: ='Population Figures'!C19 -> 3833525.16 | C19: =B19*('Population Figures'!D19)*'Population Figures'!X19 -> 0 | D19: =B19*('Population Figures'!D19)*'Scenario 2 - Nut.Analysis'!B21 -> 30668.20128 | E19: =B19*('Population Figures'!D19)*'Scenario 2 - Nut.Analysis'!C21 -> 0 | F19: =IF('Population Figures'!E19<>"",IF(C19<>"",B19*('Population Figures'!E19)*#REF!, IF(D19<>"", B19*('Population Figures'!E19)*'Scenario 2 - Nut.Analysis'!B21, IF(E19<>"", B19*('Population Figures'!E19)*'Scenario 2 - Nut.Analysis'!C21, "N/A"))), "N/A") -> N/A | G19: =IF('Population Figures'!F19<>"",IF(C19<>"",B19*('Population Figures'!F19)*#REF!, IF(D19<>"", B19*('Population Figures'!F19)*'Scenario 2 - Nut.Analysis'!B21, IF(E19<>"", B19*('Population Figures'!F19)*'Scenario 2 - Nut.Analysis'!C21, "N/A"))), "N/A") -> N/A | H19: =B19*('Population Figures'!D19) -> 613364.0256 | I19: ='Population Figures'!AB19*(B19*'Population Figures'!D19)*'Population Figures'!$AI$4 -> 0 | J19: ='Population Figures'!AC19*(B19*'Population Figures'!D19)*'Population Figures'!$AI$4 -> 0 | K19: ='Population Figures'!AD19*(B19*'Population Figures'!D19)*'Population Figures'!$AI$4 -> 0 | L19: =IF('Population Figures'!E19<>"",IF(I19<>0,'Population Figures'!AB19*(B19*'Population Figures'!E19)*'Population Figures'!$AI$4, IF(J19<>0, 'Population Figures'!AC19*(B19*'Population Figures'!E19)*'Population Figures'!$AI$4, IF(K19<>0, 'Population Figures'!AD19*(B19*'Population Figures'!E19)*'Population Figures'!$AI$4, "N/A"))), "N/A") -> N/A | M19: =IF('Population Figures'!F19<>"",IF(I19<>0,'Population Figures'!AB19*(B19*'Population Figures'!F19)*'Population Figures'!$AI$4, IF(J19<>0, 'Population Figures'!AC19*(B19*'Population Figures'!F19)*'Population Figures'!$AI$4, IF(K19<>0, 'Population Figures'!AD19*(B19*'Population Figures'!F19)*'Population Figures'!$AI$4, "N/A"))), "N/A") -> N/A | N19: =IF(I19<>0,I19*'Population Figures'!$AI$6,IF(J19<>0,J19*'Population Figures'!$AI$6,IF(K19<>0,K19*'Population Figures'!$AI$6,"Key Values"))) -> Key Values | O19: =IF(L19<>"N/A",L19*'Population Figures'!$AI$6,"N/A") -> N/A | P19: =IF(M19<>"N/A",M19*'Population Figures'!$AI$6,"N/A") -> N/A | Q19: =IF(I19<>0,'Population Figures'!AB19*( B19*ABS('Population Figures'!D19-'Population Figures'!G19))*'Population Figures'!$AI$4*'Population Figures'!$AI$7, IF(J19<>0,'Population Figures'!AC19*( B19*ABS('Population Figures'!D19-'Population Figures'!G19))*'Population Figures'!$AI$4*'Population Figures'!$AI$7, IF(K19<>0,'Population Figures'!AD19*( B19*ABS('Population Figures'!D19-'Population Figures'!G19))*'Population Figures'!$AI$4*'Population Figures'!$AI$7, "Key Values"))) -> Key Values | R19: =IF('Population Figures'!E19<>"", IF(I19<>0,'Population Figures'!AB19*(B19*ABS('Population Figures'!E19-'Population Figures'!H19))*'Population Figures'!$AI$4, IF(J19<>0, 'Population Figures'!AC19*(B19*ABS('Population Figures'!E19-'Population Figures'!H19))*'Population Figures'!$AI$4, IF(K19<>0, 'Population Figures'!AD19*(B19*ABS('Population Figures'!E19-'Population Figures'!H19))*'Population Figures'!$AI$4, "N/A"))), "N/A") -> N/A | S19: =IF('Population Figures'!E19<>"", IF(I19<>0,'Population Figures'!AB19*(B19*ABS('Population Figures'!F19-'Population Figures'!I19))*'Population Figures'!$AI$4, IF(J19<>0, 'Population Figures'!AC19*(B19*ABS('Population Figures'!F19-'Population Figures'!I19))*'Population Figures'!$AI$4, IF(K19<>0, 'Population Figures'!AD19*(B19*ABS('Population Figures'!F19-'Population Figures'!I19))*'Population Figures'!$AI$4, "N/A"))), "N/A") -> N/A | T19: =('Population Figures'!X19-'Population Figures'!AB19)*(B19*ABS('Population Figures'!D19-'Population Figures'!G19)*'Population Figures'!$AI$5) -> 0 | U19: =ABS('Population Figures'!Y19-'Population Figures'!AC19)*(B19*ABS('Population Figures'!D19-'Population Figures'!G19))*'Population Figures'!$AI$5 -> 0 | V19: =ABS('Population Figures'!Z19-'Population Figures'!AD19)*(B19*ABS('Population Figures'!D19-'Population Figures'!G19)*'Population Figures'!$AI$5) -> 0 | W19: =IF('Population Figures'!E19<>"",IF(T19<>0,('Population Figures'!X19-'Population Figures'!AB19)*(ABS('Population Figures'!E19-'Population Figures'!H19)*B19)*'Population Figures'!$AI$5, IF(U19<>0, ('Population Figures'!Y19-'Population Figures'!AC19)*(ABS('Population Figures'!E19-'Population Figures'!H19)*B19)*'Population Figures'!$AI$5, IF(V19<>0, ('Population Figures'!Z19-'Population Figures'!AD19)*(B19*ABS('Population Figures'!E19-'Population Figures'!H19))*'Population Figures'!$AI$4, "N/A"))), "N/A") -> N/A | X19: =IF('Population Figures'!F19<>"",IF(T19<>0,('Population Figures'!X19-'Population Figures'!AB19)*(ABS('Population Figures'!F19-'Population Figures'!I19)*B19)*'Population Figures'!$AI$5, IF(U19<>0, ('Population Figures'!Y19-'Population Figures'!AC19)*(ABS('Population Figures'!F19-'Population Figures'!I19)*B19)*'Population Figures'!$AI$5, IF(V19<>0, ('Population Figures'!Z19-'Population Figures'!AD19)*(B19*ABS('Population Figures'!F19-'Population Figures'!I19))*'Population Figures'!$AI$4, "N/A"))), "N/A") -> N/A | Y19: ='Population Figures'!M19*'Population Figures'!C19*'Population Figures'!$AI$9 -> 0 | Z19: =IF('Population Figures'!N19<>"",'Population Figures'!N19*'Population Figures'!C19*'Population Figures'!$AI$9,"N/A") -> N/A | AA19: =IF('Population Figures'!O19<>"",'Population Figures'!O19*'Population Figures'!C19*'Population Figures'!$AI$9,"N/A") -> N/A | AB19: =B19*'Population Figures'!P19*'Population Figures'!AA17 -> 0 | AC19: =B19*'Population Figures'!P19 -> 268346.7612 | AD19: =B19*'Population Figures'!P19*ABS('Population Figures'!AA19-'Population Figures'!AE19)*'Population Figures'!$AI$14 -> 0 | AE19: =B19*'Population Figures'!P19*ABS('Population Figures'!AA17-'Population Figures'!AE19)*'Population Figures'!$AI$15 -> 0 | AF19: =IF('Scenario 2 Contributing Fact'!F22<>"", B19*'Population Figures'!R19*'Scenario 2 Contributing Fact'!F22,B19*'Population Figures'!R19*'Scenario 3 - Nut. Analysis'!J18) -> 0 | AG19: =IF('Population Figures'!T19<>"",B19*'Population Figures'!T19*AF19,"N/A") -> N/A | AH19: =IF('Population Figures'!S19<>"",B19*'Population Figures'!S19*AF19,"N/A") -> N/A | AI19: =B19*'Population Figures'!R19 -> 383352.516 | AJ19: =IF('Scenario 2 Contributing Fact'!G22<>"", B19*'Population Figures'!U19*'Scenario 2 Contributing Fact'!G22,B19*'Population Figures'!U19*'Scenario 3 - Nut. Analysis'!K18) -> 0 | AK19: =IF('Population Figures'!V19<>"",B19*'Population Figures'!V19*AJ19,"N/A") -> N/A | AL19: =IF('Population Figures'!W19<>"",B19*'Population Figures'!W19*AJ19,"N/A") -> N/A
A20: ='Population Figures'!B20 -> Kapisa | B20: ='Population Figures'!C20 -> 1371629.7 | C20: =B20*('Population Figures'!D20)*'Population Figures'!X20 -> 0 | D20: =B20*('Population Figures'!D20)*'Scenario 2 - Nut.Analysis'!B22 -> 10973.0376 | E20: =B20*('Population Figures'!D20)*'Scenario 2 - Nut.Analysis'!C22 -> 0 | F20: =IF('Population Figures'!E20<>"",IF(C20<>"",B20*('Population Figures'!E20)*#REF!, IF(D20<>"", B20*('Population Figures'!E20)*'Scenario 2 - Nut.Analysis'!B22, IF(E20<>"", B20*('Population Figures'!E20)*'Scenario 2 - Nut.Analysis'!C22, "N/A"))), "N/A") -> N/A | G20: =IF('Population Figures'!F20<>"",IF(C20<>"",B20*('Population Figures'!F20)*#REF!, IF(D20<>"", B20*('Population Figures'!F20)*'Scenario 2 - Nut.Analysis'!B22, IF(E20<>"", B20*('Population Figures'!F20)*'Scenario 2 - Nut.Analysis'!C22, "N/A"))), "N/A") -> N/A | H20: =B20*('Population Figures'!D20) -> 219460.752 | I20: ='Population Figures'!AB20*(B20*'Population Figures'!D20)*'Population Figures'!$AI$4 -> 0 | J20: ='Population Figures'!AC20*(B20*'Population Figures'!D20)*'Population Figures'!$AI$4 -> 0 | K20: ='Population Figures'!AD20*(B20*'Population Figures'!D20)*'Population Figures'!$AI$4 -> 0 | L20: =IF('Population Figures'!E20<>"",IF(I20<>0,'Population Figures'!AB20*(B20*'Population Figures'!E20)*'Population Figures'!$AI$4, IF(J20<>0, 'Population Figures'!AC20*(B20*'Population Figures'!E20)*'Population Figures'!$AI$4, IF(K20<>0, 'Population Figures'!AD20*(B20*'Population Figures'!E20)*'Population Figures'!$AI$4, "N/A"))), "N/A") -> N/A | M20: =IF('Population Figures'!F20<>"",IF(I20<>0,'Population Figures'!AB20*(B20*'Population Figures'!F20)*'Population Figures'!$AI$4, IF(J20<>0, 'Population Figures'!AC20*(B20*'Population Figures'!F20)*'Population Figures'!$AI$4, IF(K20<>0, 'Population Figures'!AD20*(B20*'Population Figures'!F20)*'Population Figures'!$AI$4, "N/A"))), "N/A") -> N/A | N20: =IF(I20<>0,I20*'Population Figures'!$AI$6,IF(J20<>0,J20*'Population Figures'!$AI$6,IF(K20<>0,K20*'Population Figures'!$AI$6,"Key Values"))) -> Key Values | O20: =IF(L20<>"N/A",L20*'Population Figures'!$AI$6,"N/A") -> N/A | P20: =IF(M20<>"N/A",M20*'Population Figures'!$AI$6,"N/A") -> N/A | Q20: =IF(I20<>0,'Population Figures'!AB20*( B20*ABS('Population Figures'!D20-'Population Figures'!G20))*'Population Figures'!$AI$4*'Population Figures'!$AI$7, IF(J20<>0,'Population Figures'!AC20*( B20*ABS('Population Figures'!D20-'Population Figures'!G20))*'Population Figures'!$AI$4*'Population Figures'!$AI$7, IF(K20<>0,'Population Figures'!AD20*( B20*ABS('Population Figures'!D20-'Population Figures'!G20))*'Population Figures'!$AI$4*'Population Figures'!$AI$7, "Key Values"))) -> Key Values | R20: =IF('Population Figures'!E20<>"", IF(I20<>0,'Population Figures'!AB20*(B20*ABS('Population Figures'!E20-'Population Figures'!H20))*'Population Figures'!$AI$4, IF(J20<>0, 'Population Figures'!AC20*(B20*ABS('Population Figures'!E20-'Population Figures'!H20))*'Population Figures'!$AI$4, IF(K20<>0, 'Population Figures'!AD20*(B20*ABS('Population Figures'!E20-'Population Figures'!H20))*'Population Figures'!$AI$4, "N/A"))), "N/A") -> N/A | S20: =IF('Population Figures'!E20<>"", IF(I20<>0,'Population Figures'!AB20*(B20*ABS('Population Figures'!F20-'Population Figures'!I20))*'Population Figures'!$AI$4, IF(J20<>0, 'Population Figures'!AC20*(B20*ABS('Population Figures'!F20-'Population Figures'!I20))*'Population Figures'!$AI$4, IF(K20<>0, 'Population Figures'!AD20*(B20*ABS('Population Figures'!F20-'Population Figures'!I20))*'Population Figures'!$AI$4, "N/A"))), "N/A") -> N/A | T20: =('Population Figures'!X20-'Population Figures'!AB20)*(B20*ABS('Population Figures'!D20-'Population Figures'!G20)*'Population Figures'!$AI$5) -> 0 | U20: =ABS('Population Figures'!Y20-'Population Figures'!AC20)*(B20*ABS('Population Figures'!D20-'Population Figures'!G20))*'Population Figures'!$AI$5 -> 0 | V20: =ABS('Population Figures'!Z20-'Population Figures'!AD20)*(B20*ABS('Population Figures'!D20-'Population Figures'!G20)*'Population Figures'!$AI$5) -> 0 | W20: =IF('Population Figures'!E20<>"",IF(T20<>0,('Population Figures'!X20-'Population Figures'!AB20)*(ABS('Population Figures'!E20-'Population Figures'!H20)*B20)*'Population Figures'!$AI$5, IF(U20<>0, ('Population Figures'!Y20-'Population Figures'!AC20)*(ABS('Population Figures'!E20-'Population Figures'!H20)*B20)*'Population Figures'!$AI$5, IF(V20<>0, ('Population Figures'!Z20-'Population Figures'!AD20)*(B20*ABS('Population Figures'!E20-'Population Figures'!H20))*'Population Figures'!$AI$4, "N/A"))), "N/A") -> N/A | X20: =IF('Population Figures'!F20<>"",IF(T20<>0,('Population Figures'!X20-'Population Figures'!AB20)*(ABS('Population Figures'!F20-'Population Figures'!I20)*B20)*'Population Figures'!$AI$5, IF(U20<>0, ('Population Figures'!Y20-'Population Figures'!AC20)*(ABS('Population Figures'!F20-'Population Figures'!I20)*B20)*'Population Figures'!$AI$5, IF(V20<>0, ('Population Figures'!Z20-'Population Figures'!AD20)*(B20*ABS('Population Figures'!F20-'Population Figures'!I20))*'Population Figures'!$AI$4, "N/A"))), "N/A") -> N/A | Y20: ='Population Figures'!M20*'Population Figures'!C20*'Population Figures'!$AI$9 -> 0 | Z20: =IF('Population Figures'!N20<>"",'Population Figures'!N20*'Population Figures'!C20*'Population Figures'!$AI$9,"N/A") -> N/A | AA20: =IF('Population Figures'!O20<>"",'Population Figures'!O20*'Population Figures'!C20*'Population Figures'!$AI$9,"N/A") -> N/A | AB20: =B20*'Population Figures'!P20*'Population Figures'!AA18 -> 0 | AC20: =B20*'Population Figures'!P20 -> 96014.079 | AD20: =B20*'Population Figures'!P20*ABS('Population Figures'!AA20-'Population Figures'!AE20)*'Population Figures'!$AI$14 -> 0 | AE20: =B20*'Population Figures'!P20*ABS('Population Figures'!AA18-'Population Figures'!AE20)*'Population Figures'!$AI$15 -> 0 | AF20: =IF('Scenario 2 Contributing Fact'!F23<>"", B20*'Population Figures'!R20*'Scenario 2 Contributing Fact'!F23,B20*'Population Figures'!R20*'Scenario 3 - Nut. Analysis'!J19) -> 0 | AG20: =IF('Population Figures'!T20<>"",B20*'Population Figures'!T20*AF20,"N/A") -> N/A | AH20: =IF('Population Figures'!S20<>"",B20*'Population Figures'!S20*AF20,"N/A") -> N/A | AI20: =B20*'Population Figures'!R20 -> 137162.97 | AJ20: =IF('Scenario 2 Contributing Fact'!G23<>"", B20*'Population Figures'!U20*'Scenario 2 Contributing Fact'!G23,B20*'Population Figures'!U20*'Scenario 3 - Nut. Analysis'!K19) -> 0 | AK20: =IF('Population Figures'!V20<>"",B20*'Population Figures'!V20*AJ20,"N/A") -> N/A | AL20: =IF('Population Figures'!W20<>"",B20*'Population Figures'!W20*AJ20,"N/A") -> N/A
A21: ='Population Figures'!B21 -> Khost | B21: ='Population Figures'!C21 -> 1787269.5 | C21: =B21*('Population Figures'!D21)*'Population Figures'!X21 -> 0 | D21: =B21*('Population Figures'!D21)*'Scenario 2 - Nut.Analysis'!B23 -> 14298.156 | E21: =B21*('Population Figures'!D21)*'Scenario 2 - Nut.Analysis'!C23 -> 0 | F21: =IF('Population Figures'!E21<>"",IF(C21<>"",B21*('Population Figures'!E21)*#REF!, IF(D21<>"", B21*('Population Figures'!E21)*'Scenario 2 - Nut.Analysis'!B23, IF(E21<>"", B21*('Population Figures'!E21)*'Scenario 2 - Nut.Analysis'!C23, "N/A"))), "N/A") -> N/A | G21: =IF('Population Figures'!F21<>"",IF(C21<>"",B21*('Population Figures'!F21)*#REF!, IF(D21<>"", B21*('Population Figures'!F21)*'Scenario 2 - Nut.Analysis'!B23, IF(E21<>"", B21*('Population Figures'!F21)*'Scenario 2 - Nut.Analysis'!C23, "N/A"))), "N/A") -> N/A | H21: =B21*('Population Figures'!D21) -> 285963.12 | I21: ='Population Figures'!AB21*(B21*'Population Figures'!D21)*'Population Figures'!$AI$4 -> 0 | J21: ='Population Figures'!AC21*(B21*'Population Figures'!D21)*'Population Figures'!$AI$4 -> 0 | K21: ='Population Figures'!AD21*(B21*'Population Figures'!D21)*'Population Figures'!$AI$4 -> 0 | L21: =IF('Population Figures'!E21<>"",IF(I21<>0,'Population Figures'!AB21*(B21*'Population Figures'!E21)*'Population Figures'!$AI$4, IF(J21<>0, 'Population Figures'!AC21*(B21*'Population Figures'!E21)*'Population Figures'!$AI$4, IF(K21<>0, 'Population Figures'!AD21*(B21*'Population Figures'!E21)*'Population Figures'!$AI$4, "N/A"))), "N/A") -> N/A | M21: =IF('Population Figures'!F21<>"",IF(I21<>0,'Population Figures'!AB21*(B21*'Population Figures'!F21)*'Population Figures'!$AI$4, IF(J21<>0, 'Population Figures'!AC21*(B21*'Population Figures'!F21)*'Population Figures'!$AI$4, IF(K21<>0, 'Population Figures'!AD21*(B21*'Population Figures'!F21)*'Population Figures'!$AI$4, "N/A"))), "N/A") -> N/A | N21: =IF(I21<>0,I21*'Population Figures'!$AI$6,IF(J21<>0,J21*'Population Figures'!$AI$6,IF(K21<>0,K21*'Population Figures'!$AI$6,"Key Values"))) -> Key Values | O21: =IF(L21<>"N/A",L21*'Population Figures'!$AI$6,"N/A") -> N/A | P21: =IF(M21<>"N/A",M21*'Population Figures'!$AI$6,"N/A") -> N/A | Q21: =IF(I21<>0,'Population Figures'!AB21*( B21*ABS('Population Figures'!D21-'Population Figures'!G21))*'Population Figures'!$AI$4*'Population Figures'!$AI$7, IF(J21<>0,'Population Figures'!AC21*( B21*ABS('Population Figures'!D21-'Population Figures'!G21))*'Population Figures'!$AI$4*'Population Figures'!$AI$7, IF(K21<>0,'Population Figures'!AD21*( B21*ABS('Population Figures'!D21-'Population Figures'!G21))*'Population Figures'!$AI$4*'Population Figures'!$AI$7, "Key Values"))) -> Key Values | R21: =IF('Population Figures'!E21<>"", IF(I21<>0,'Population Figures'!AB21*(B21*ABS('Population Figures'!E21-'Population Figures'!H21))*'Population Figures'!$AI$4, IF(J21<>0, 'Population Figures'!AC21*(B21*ABS('Population Figures'!E21-'Population Figures'!H21))*'Population Figures'!$AI$4, IF(K21<>0, 'Population Figures'!AD21*(B21*ABS('Population Figures'!E21-'Population Figures'!H21))*'Population Figures'!$AI$4, "N/A"))), "N/A") -> N/A | S21: =IF('Population Figures'!E21<>"", IF(I21<>0,'Population Figures'!AB21*(B21*ABS('Population Figures'!F21-'Population Figures'!I21))*'Population Figures'!$AI$4, IF(J21<>0, 'Population Figures'!AC21*(B21*ABS('Population Figures'!F21-'Population Figures'!I21))*'Population Figures'!$AI$4, IF(K21<>0, 'Population Figures'!AD21*(B21*ABS('Population Figures'!F21-'Population Figures'!I21))*'Population Figures'!$AI$4, "N/A"))), "N/A") -> N/A | T21: =('Population Figures'!X21-'Population Figures'!AB21)*(B21*ABS('Population Figures'!D21-'Population Figures'!G21)*'Population Figures'!$AI$5) -> 0 | U21: =ABS('Population Figures'!Y21-'Population Figures'!AC21)*(B21*ABS('Population Figures'!D21-'Population Figures'!G21))*'Population Figures'!$AI$5 -> 0 | V21: =ABS('Population Figures'!Z21-'Population Figures'!AD21)*(B21*ABS('Population Figures'!D21-'Population Figures'!G21)*'Population Figures'!$AI$5) -> 0 | W21: =IF('Population Figures'!E21<>"",IF(T21<>0,('Population Figures'!X21-'Population Figures'!AB21)*(ABS('Population Figures'!E21-'Population Figures'!H21)*B21)*'Population Figures'!$AI$5, IF(U21<>0, ('Population Figures'!Y21-'Population Figures'!AC21)*(ABS('Population Figures'!E21-'Population Figures'!H21)*B21)*'Population Figures'!$AI$5, IF(V21<>0, ('Population Figures'!Z21-'Population Figures'!AD21)*(B21*ABS('Population Figures'!E21-'Population Figures'!H21))*'Population Figures'!$AI$4, "N/A"))), "N/A") -> N/A | X21: =IF('Population Figures'!F21<>"",IF(T21<>0,('Population Figures'!X21-'Population Figures'!AB21)*(ABS('Population Figures'!F21-'Population Figures'!I21)*B21)*'Population Figures'!$AI$5, IF(U21<>0, ('Population Figures'!Y21-'Population Figures'!AC21)*(ABS('Population Figures'!F21-'Population Figures'!I21)*B21)*'Population Figures'!$AI$5, IF(V21<>0, ('Population Figures'!Z21-'Population Figures'!AD21)*(B21*ABS('Population Figures'!F21-'Population Figures'!I21))*'Population Figures'!$AI$4, "N/A"))), "N/A") -> N/A | Y21: ='Population Figures'!M21*'Population Figures'!C21*'Population Figures'!$AI$9 -> 0 | Z21: =IF('Population Figures'!N21<>"",'Population Figures'!N21*'Population Figures'!C21*'Population Figures'!$AI$9,"N/A") -> N/A | AA21: =IF('Population Figures'!O21<>"",'Population Figures'!O21*'Population Figures'!C21*'Population Figures'!$AI$9,"N/A") -> N/A | AB21: =B21*'Population Figures'!P21*'Population Figures'!AA19 -> 0 | AC21: =B21*'Population Figures'!P21 -> 125108.865 | AD21: =B21*'Population Figures'!P21*ABS('Population Figures'!AA21-'Population Figures'!AE21)*'Population Figures'!$AI$14 -> 0 | AE21: =B21*'Population Figures'!P21*ABS('Population Figures'!AA19-'Population Figures'!AE21)*'Population Figures'!$AI$15 -> 0 | AF21: =IF('Scenario 2 Contributing Fact'!F24<>"", B21*'Population Figures'!R21*'Scenario 2 Contributing Fact'!F24,B21*'Population Figures'!R21*'Scenario 3 - Nut. Analysis'!J20) -> 0 | AG21: =IF('Population Figures'!T21<>"",B21*'Population Figures'!T21*AF21,"N/A") -> N/A | AH21: =IF('Population Figures'!S21<>"",B21*'Population Figures'!S21*AF21,"N/A") -> N/A | AI21: =B21*'Population Figures'!R21 -> 178726.95 | AJ21: =IF('Scenario 2 Contributing Fact'!G24<>"", B21*'Population Figures'!U21*'Scenario 2 Contributing Fact'!G24,B21*'Population Figures'!U21*'Scenario 3 - Nut. Analysis'!K20) -> 0 | AK21: =IF('Population Figures'!V21<>"",B21*'Population Figures'!V21*AJ21,"N/A") -> N/A | AL21: =IF('Population Figures'!W21<>"",B21*'Population Figures'!W21*AJ21,"N/A") -> N/A
A22: ='Population Figures'!B22 -> Kunar | B22: ='Population Figures'!C22 -> 1401877.8 | C22: =B22*('Population Figures'!D22)*'Population Figures'!X22 -> 0 | D22: =B22*('Population Figures'!D22)*'Scenario 2 - Nut.Analysis'!B24 -> 11215.0224 | E22: =B22*('Population Figures'!D22)*'Scenario 2 - Nut.Analysis'!C24 -> 0 | F22: =IF('Population Figures'!E22<>"",IF(C22<>"",B22*('Population Figures'!E22)*#REF!, IF(D22<>"", B22*('Population Figures'!E22)*'Scenario 2 - Nut.Analysis'!B24, IF(E22<>"", B22*('Population Figures'!E22)*'Scenario 2 - Nut.Analysis'!C24, "N/A"))), "N/A") -> N/A | G22: =IF('Population Figures'!F22<>"",IF(C22<>"",B22*('Population Figures'!F22)*#REF!, IF(D22<>"", B22*('Population Figures'!F22)*'Scenario 2 - Nut.Analysis'!B24, IF(E22<>"", B22*('Population Figures'!F22)*'Scenario 2 - Nut.Analysis'!C24, "N/A"))), "N/A") -> N/A | H22: =B22*('Population Figures'!D22) -> 224300.448 | I22: ='Population Figures'!AB22*(B22*'Population Figures'!D22)*'Population Figures'!$AI$4 -> 0 | J22: ='Population Figures'!AC22*(B22*'Population Figures'!D22)*'Population Figures'!$AI$4 -> 0 | K22: ='Population Figures'!AD22*(B22*'Population Figures'!D22)*'Population Figures'!$AI$4 -> 0 | L22: =IF('Population Figures'!E22<>"",IF(I22<>0,'Population Figures'!AB22*(B22*'Population Figures'!E22)*'Population Figures'!$AI$4, IF(J22<>0, 'Population Figures'!AC22*(B22*'Population Figures'!E22)*'Population Figures'!$AI$4, IF(K22<>0, 'Population Figures'!AD22*(B22*'Population Figures'!E22)*'Population Figures'!$AI$4, "N/A"))), "N/A") -> N/A | M22: =IF('Population Figures'!F22<>"",IF(I22<>0,'Population Figures'!AB22*(B22*'Population Figures'!F22)*'Population Figures'!$AI$4, IF(J22<>0, 'Population Figures'!AC22*(B22*'Population Figures'!F22)*'Population Figures'!$AI$4, IF(K22<>0, 'Population Figures'!AD22*(B22*'Population Figures'!F22)*'Population Figures'!$AI$4, "N/A"))), "N/A") -> N/A | N22: =IF(I22<>0,I22*'Population Figures'!$AI$6,IF(J22<>0,J22*'Population Figures'!$AI$6,IF(K22<>0,K22*'Population Figures'!$AI$6,"Key Values"))) -> Key Values | O22: =IF(L22<>"N/A",L22*'Population Figures'!$AI$6,"N/A") -> N/A | P22: =IF(M22<>"N/A",M22*'Population Figures'!$AI$6,"N/A") -> N/A | Q22: =IF(I22<>0,'Population Figures'!AB22*( B22*ABS('Population Figures'!D22-'Population Figures'!G22))*'Population Figures'!$AI$4*'Population Figures'!$AI$7, IF(J22<>0,'Population Figures'!AC22*( B22*ABS('Population Figures'!D22-'Population Figures'!G22))*'Population Figures'!$AI$4*'Population Figures'!$AI$7, IF(K22<>0,'Population Figures'!AD22*( B22*ABS('Population Figures'!D22-'Population Figures'!G22))*'Population Figures'!$AI$4*'Population Figures'!$AI$7, "Key Values"))) -> Key Values | R22: =IF('Population Figures'!E22<>"", IF(I22<>0,'Population Figures'!AB22*(B22*ABS('Population Figures'!E22-'Population Figures'!H22))*'Population Figures'!$AI$4, IF(J22<>0, 'Population Figures'!AC22*(B22*ABS('Population Figures'!E22-'Population Figures'!H22))*'Population Figures'!$AI$4, IF(K22<>0, 'Population Figures'!AD22*(B22*ABS('Population Figures'!E22-'Population Figures'!H22))*'Population Figures'!$AI$4, "N/A"))), "N/A") -> N/A | S22: =IF('Population Figures'!E22<>"", IF(I22<>0,'Population Figures'!AB22*(B22*ABS('Population Figures'!F22-'Population Figures'!I22))*'Population Figures'!$AI$4, IF(J22<>0, 'Population Figures'!AC22*(B22*ABS('Population Figures'!F22-'Population Figures'!I22))*'Population Figures'!$AI$4, IF(K22<>0, 'Population Figures'!AD22*(B22*ABS('Population Figures'!F22-'Population Figures'!I22))*'Population Figures'!$AI$4, "N/A"))), "N/A") -> N/A | T22: =('Population Figures'!X22-'Population Figures'!AB22)*(B22*ABS('Population Figures'!D22-'Population Figures'!G22)*'Population Figures'!$AI$5) -> 0 | U22: =ABS('Population Figures'!Y22-'Population Figures'!AC22)*(B22*ABS('Population Figures'!D22-'Population Figures'!G22))*'Population Figures'!$AI$5 -> 0 | V22: =ABS('Population Figures'!Z22-'Population Figures'!AD22)*(B22*ABS('Population Figures'!D22-'Population Figures'!G22)*'Population Figures'!$AI$5) -> 0 | W22: =IF('Population Figures'!E22<>"",IF(T22<>0,('Population Figures'!X22-'Population Figures'!AB22)*(ABS('Population Figures'!E22-'Population Figures'!H22)*B22)*'Population Figures'!$AI$5, IF(U22<>0, ('Population Figures'!Y22-'Population Figures'!AC22)*(ABS('Population Figures'!E22-'Population Figures'!H22)*B22)*'Population Figures'!$AI$5, IF(V22<>0, ('Population Figures'!Z22-'Population Figures'!AD22)*(B22*ABS('Population Figures'!E22-'Population Figures'!H22))*'Population Figures'!$AI$4, "N/A"))), "N/A") -> N/A | X22: =IF('Population Figures'!F22<>"",IF(T22<>0,('Population Figures'!X22-'Population Figures'!AB22)*(ABS('Population Figures'!F22-'Population Figures'!I22)*B22)*'Population Figures'!$AI$5, IF(U22<>0, ('Population Figures'!Y22-'Population Figures'!AC22)*(ABS('Population Figures'!F22-'Population Figures'!I22)*B22)*'Population Figures'!$AI$5, IF(V22<>0, ('Population Figures'!Z22-'Population Figures'!AD22)*(B22*ABS('Population Figures'!F22-'Population Figures'!I22))*'Population Figures'!$AI$4, "N/A"))), "N/A") -> N/A | Y22: ='Population Figures'!M22*'Population Figures'!C22*'Population Figures'!$AI$9 -> 0 | Z22: =IF('Population Figures'!N22<>"",'Population Figures'!N22*'Population Figures'!C22*'Population Figures'!$AI$9,"N/A") -> N/A | AA22: =IF('Population Figures'!O22<>"",'Population Figures'!O22*'Population Figures'!C22*'Population Figures'!$AI$9,"N/A") -> N/A | AB22: =B22*'Population Figures'!P22*'Population Figures'!AA20 -> 0 | AC22: =B22*'Population Figures'!P22 -> 98131.446 | AD22: =B22*'Population Figures'!P22*ABS('Population Figures'!AA22-'Population Figures'!AE22)*'Population Figures'!$AI$14 -> 0 | AE22: =B22*'Population Figures'!P22*ABS('Population Figures'!AA20-'Population Figures'!AE22)*'Population Figures'!$AI$15 -> 0 | AF22: =IF('Scenario 2 Contributing Fact'!F25<>"", B22*'Population Figures'!R22*'Scenario 2 Contributing Fact'!F25,B22*'Population Figures'!R22*'Scenario 3 - Nut. Analysis'!J21) -> 0 | AG22: =IF('Population Figures'!T22<>"",B22*'Population Figures'!T22*AF22,"N/A") -> N/A | AH22: =IF('Population Figures'!S22<>"",B22*'Population Figures'!S22*AF22,"N/A") -> N/A | AI22: =B22*'Population Figures'!R22 -> 140187.78 | AJ22: =IF('Scenario 2 Contributing Fact'!G25<>"", B22*'Population Figures'!U22*'Scenario 2 Contributing Fact'!G25,B22*'Population Figures'!U22*'Scenario 3 - Nut. Analysis'!K21) -> 0 | AK22: =IF('Population Figures'!V22<>"",B22*'Population Figures'!V22*AJ22,"N/A") -> N/A | AL22: =IF('Population Figures'!W22<>"",B22*'Population Figures'!W22*AJ22,"N/A") -> N/A
A23: ='Population Figures'!B23 -> Kunduz | B23: ='Population Figures'!C23 -> 3150187.38 | C23: =B23*('Population Figures'!D23)*'Population Figures'!X23 -> 0 | D23: =B23*('Population Figures'!D23)*'Scenario 2 - Nut.Analysis'!B25 -> 25201.49904 | E23: =B23*('Population Figures'!D23)*'Scenario 2 - Nut.Analysis'!C25 -> 0 | F23: =IF('Population Figures'!E23<>"",IF(C23<>"",B23*('Population Figures'!E23)*#REF!, IF(D23<>"", B23*('Population Figures'!E23)*'Scenario 2 - Nut.Analysis'!B25, IF(E23<>"", B23*('Population Figures'!E23)*'Scenario 2 - Nut.Analysis'!C25, "N/A"))), "N/A") -> N/A | G23: =IF('Population Figures'!F23<>"",IF(C23<>"",B23*('Population Figures'!F23)*#REF!, IF(D23<>"", B23*('Population Figures'!F23)*'Scenario 2 - Nut.Analysis'!B25, IF(E23<>"", B23*('Population Figures'!F23)*'Scenario 2 - Nut.Analysis'!C25, "N/A"))), "N/A") -> N/A | H23: =B23*('Population Figures'!D23) -> 504029.9808 | I23: ='Population Figures'!AB23*(B23*'Population Figures'!D23)*'Population Figures'!$AI$4 -> 0 | J23: ='Population Figures'!AC23*(B23*'Population Figures'!D23)*'Population Figures'!$AI$4 -> 0 | K23: ='Population Figures'!AD23*(B23*'Population Figures'!D23)*'Population Figures'!$AI$4 -> 0 | L23: =IF('Population Figures'!E23<>"",IF(I23<>0,'Population Figures'!AB23*(B23*'Population Figures'!E23)*'Population Figures'!$AI$4, IF(J23<>0, 'Population Figures'!AC23*(B23*'Population Figures'!E23)*'Population Figures'!$AI$4, IF(K23<>0, 'Population Figures'!AD23*(B23*'Population Figures'!E23)*'Population Figures'!$AI$4, "N/A"))), "N/A") -> N/A | M23: =IF('Population Figures'!F23<>"",IF(I23<>0,'Population Figures'!AB23*(B23*'Population Figures'!F23)*'Population Figures'!$AI$4, IF(J23<>0, 'Population Figures'!AC23*(B23*'Population Figures'!F23)*'Population Figures'!$AI$4, IF(K23<>0, 'Population Figures'!AD23*(B23*'Population Figures'!F23)*'Population Figures'!$AI$4, "N/A"))), "N/A") -> N/A | N23: =IF(I23<>0,I23*'Population Figures'!$AI$6,IF(J23<>0,J23*'Population Figures'!$AI$6,IF(K23<>0,K23*'Population Figures'!$AI$6,"Key Values"))) -> Key Values | O23: =IF(L23<>"N/A",L23*'Population Figures'!$AI$6,"N/A") -> N/A | P23: =IF(M23<>"N/A",M23*'Population Figures'!$AI$6,"N/A") -> N/A | Q23: =IF(I23<>0,'Population Figures'!AB23*( B23*ABS('Population Figures'!D23-'Population Figures'!G23))*'Population Figures'!$AI$4*'Population Figures'!$AI$7, IF(J23<>0,'Population Figures'!AC23*( B23*ABS('Population Figures'!D23-'Population Figures'!G23))*'Population Figures'!$AI$4*'Population Figures'!$AI$7, IF(K23<>0,'Population Figures'!AD23*( B23*ABS('Population Figures'!D23-'Population Figures'!G23))*'Population Figures'!$AI$4*'Population Figures'!$AI$7, "Key Values"))) -> Key Values | R23: =IF('Population Figures'!E23<>"", IF(I23<>0,'Population Figures'!AB23*(B23*ABS('Population Figures'!E23-'Population Figures'!H23))*'Population Figures'!$AI$4, IF(J23<>0, 'Population Figures'!AC23*(B23*ABS('Population Figures'!E23-'Population Figures'!H23))*'Population Figures'!$AI$4, IF(K23<>0, 'Population Figures'!AD23*(B23*ABS('Population Figures'!E23-'Population Figures'!H23))*'Population Figures'!$AI$4, "N/A"))), "N/A") -> N/A | S23: =IF('Population Figures'!E23<>"", IF(I23<>0,'Population Figures'!AB23*(B23*ABS('Population Figures'!F23-'Population Figures'!I23))*'Population Figures'!$AI$4, IF(J23<>0, 'Population Figures'!AC23*(B23*ABS('Population Figures'!F23-'Population Figures'!I23))*'Population Figures'!$AI$4, IF(K23<>0, 'Population Figures'!AD23*(B23*ABS('Population Figures'!F23-'Population Figures'!I23))*'Population Figures'!$AI$4, "N/A"))), "N/A") -> N/A | T23: =('Population Figures'!X23-'Population Figures'!AB23)*(B23*ABS('Population Figures'!D23-'Population Figures'!G23)*'Population Figures'!$AI$5) -> 0 | U23: =ABS('Population Figures'!Y23-'Population Figures'!AC23)*(B23*ABS('Population Figures'!D23-'Population Figures'!G23))*'Population Figures'!$AI$5 -> 0 | V23: =ABS('Population Figures'!Z23-'Population Figures'!AD23)*(B23*ABS('Population Figures'!D23-'Population Figures'!G23)*'Population Figures'!$AI$5) -> 0 | W23: =IF('Population Figures'!E23<>"",IF(T23<>0,('Population Figures'!X23-'Population Figures'!AB23)*(ABS('Population Figures'!E23-'Population Figures'!H23)*B23)*'Population Figures'!$AI$5, IF(U23<>0, ('Population Figures'!Y23-'Population Figures'!AC23)*(ABS('Population Figures'!E23-'Population Figures'!H23)*B23)*'Population Figures'!$AI$5, IF(V23<>0, ('Population Figures'!Z23-'Population Figures'!AD23)*(B23*ABS('Population Figures'!E23-'Population Figures'!H23))*'Population Figures'!$AI$4, "N/A"))), "N/A") -> N/A | X23: =IF('Population Figures'!F23<>"",IF(T23<>0,('Population Figures'!X23-'Population Figures'!AB23)*(ABS('Population Figures'!F23-'Population Figures'!I23)*B23)*'Population Figures'!$AI$5, IF(U23<>0, ('Population Figures'!Y23-'Population Figures'!AC23)*(ABS('Population Figures'!F23-'Population Figures'!I23)*B23)*'Population Figures'!$AI$5, IF(V23<>0, ('Population Figures'!Z23-'Population Figures'!AD23)*(B23*ABS('Population Figures'!F23-'Population Figures'!I23))*'Population Figures'!$AI$4, "N/A"))), "N/A") -> N/A | Y23: ='Population Figures'!M23*'Population Figures'!C23*'Population Figures'!$AI$9 -> 0 | Z23: =IF('Population Figures'!N23<>"",'Population Figures'!N23*'Population Figures'!C23*'Population Figures'!$AI$9,"N/A") -> N/A | AA23: =IF('Population Figures'!O23<>"",'Population Figures'!O23*'Population Figures'!C23*'Population Figures'!$AI$9,"N/A") -> N/A | AB23: =B23*'Population Figures'!P23*'Population Figures'!AA21 -> 0 | AC23: =B23*'Population Figures'!P23 -> 220513.1166 | AD23: =B23*'Population Figures'!P23*ABS('Population Figures'!AA23-'Population Figures'!AE23)*'Population Figures'!$AI$14 -> 0 | AE23: =B23*'Population Figures'!P23*ABS('Population Figures'!AA21-'Population Figures'!AE23)*'Population Figures'!$AI$15 -> 0 | AF23: =IF('Scenario 2 Contributing Fact'!F26<>"", B23*'Population Figures'!R23*'Scenario 2 Contributing Fact'!F26,B23*'Population Figures'!R23*'Scenario 3 - Nut. Analysis'!J22) -> 0 | AG23: =IF('Population Figures'!T23<>"",B23*'Population Figures'!T23*AF23,"N/A") -> N/A | AH23: =IF('Population Figures'!S23<>"",B23*'Population Figures'!S23*AF23,"N/A") -> N/A | AI23: =B23*'Population Figures'!R23 -> 315018.738 | AJ23: =IF('Scenario 2 Contributing Fact'!G26<>"", B23*'Population Figures'!U23*'Scenario 2 Contributing Fact'!G26,B23*'Population Figures'!U23*'Scenario 3 - Nut. Analysis'!K22) -> 0 | AK23: =IF('Population Figures'!V23<>"",B23*'Population Figures'!V23*AJ23,"N/A") -> N/A | AL23: =IF('Population Figures'!W23<>"",B23*'Population Figures'!W23*AJ23,"N/A") -> N/A
